Body Name,Body,Service Area Catergorisation,Service Division Catergorisation,Responsible Unit,Expenses Type,Detailed Expenses Type,Expenses Code,Date,Transaction Number,Amount,Capital / Revenue,Supplier Name,Supplier ID
North East Lincolnshire Council,http://statistics.data.gov.uk/id/local-authority/00FC,Cap Resources,Cap Commission & Inform System,Childcare Mgmt System (Ics),Cap Intangible Assets,Cap Intangible Assets,YH101,2/10/2014,258587,3000,CAPITAL,NORTHGATE INFORMATION SOLUTIONS UK LTD,101841
North East Lincolnshire Council,http://statistics.data.gov.uk/id/local-authority/00FC,Cap Resources,Cap Commission & Inform System,Isms Project,Cap Veh Plt Eqp-Purchase,Cap Veh Plt Eqp-Purchase,YB101,2/24/2014,257972,2250,CAPITAL,WELCOM SOFTWARE LLP,104463
North East Lincolnshire Council,http://statistics.data.gov.uk/id/local-authority/00FC,Cap Resources,Cap Commission & Inform System,Ict Design Fwk &I Ct Strategy,Cap Intangible Assets,Cap Intangible Assets,YH101,2/27/2014,262850,2500,CAPITAL,LEEDS CITY COUNCIL,100545
North East Lincolnshire Council,http://statistics.data.gov.uk/id/local-authority/00FC,Cap Resources,Cap Commission & Inform System,Ict Design Fwk &I Ct Strategy,Cap Intangible Assets,Cap Intangible Assets,YH101,2/24/2014,262280,154218,CAPITAL,SOPRA GROUP LTD,124753
North East Lincolnshire Council,http://statistics.data.gov.uk/id/local-authority/00FC,Cap Economy Env And Housing,Cap Neighbourhood Services,Fleet,Cap Veh Plt Eqp-Purchase,Cap Veh Plt Eqp-Purchase,YB101,2/10/2014,258191,3150,CAPITAL,LAWNMOWER SERVICE(LINCOLN)LTD,100544
North East Lincolnshire Council,http://statistics.data.gov.uk/id/local-authority/00FC,Cap Economy Env And Housing,Cap Neighbourhood Services,Fleet,Cap Veh Plt Eqp-Purchase,Cap Veh Plt Eqp-Purchase,YB101,2/20/2014,260082,63399,CAPITAL,JOHNSTON SWEEPERS LTD,101463
North East Lincolnshire Council,http://statistics.data.gov.uk/id/local-authority/00FC,Cap Economy Env And Housing,Cap Neighbourhood Services,Fleet,Cap Veh Plt Eqp-Purchase,Cap Veh Plt Eqp-Purchase,YB101,2/24/2014,260078,63399,CAPITAL,JOHNSTON SWEEPERS LTD,101463
North East Lincolnshire Council,http://statistics.data.gov.uk/id/local-authority/00FC,Cap Economy Env And Housing,Cap Neighbourhood Services,Fleet,Cap Veh Plt Eqp-Purchase,Cap Veh Plt Eqp-Purchase,YB101,2/24/2014,260012,14500,CAPITAL,VALE ENGINEERING (YORK) LTD,101700
North East Lincolnshire Council,http://statistics.data.gov.uk/id/local-authority/00FC,Cap Economy Env And Housing,Cap Neighbourhood Services,Waste Obc (Rev B),Cap Land/Build-Build Enh Wrk,Cap Land/Build-Build Enh Wrk,YA102,2/6/2014,254482,10350,CAPITAL,ESE LTD,106583
North East Lincolnshire Council,http://statistics.data.gov.uk/id/local-authority/00FC,Cap Economy Env And Housing,Cap Neighbourhood Services,Scartho Cemetry Road Scheme,Cap Land/Build-Build Enh Wrk,Cap Land/Build-Build Enh Wrk,YA102,2/25/2014,262460,2370,CAPITAL,EMMA STOTHARD,124335
North East Lincolnshire Council,http://statistics.data.gov.uk/id/local-authority/00FC,Cap Economy Env And Housing,Cap Neighbourhood Services,Scartho Cemetry Road Scheme,Cap Land/Build-Build Enh Wrk,Cap Land/Build-Build Enh Wrk,YA102,2/18/2014,260802,9670,CAPITAL,ETON-LINCS LIMITED,101510
North East Lincolnshire Council,http://statistics.data.gov.uk/id/local-authority/00FC,Cap Economy Env And Housing,Cap Neighbourhood Services,Scartho Cemetry Road Scheme,Cap Land/Build-Build Enh Wrk,Cap Land/Build-Build Enh Wrk,YA102,2/11/2014,258142,2211.12,CAPITAL,HAITH'S HEATING LTD,101342
North East Lincolnshire Council,http://statistics.data.gov.uk/id/local-authority/00FC,Cap Economy Env And Housing,Cap Development,Hps-Disabled Fac. Grants,Cap Grants To O/Side Sources,Cap Grants To O/Side Sources,YJ101,2/6/2014,257541,2533,CAPITAL,DOLPHIN MOBILITY EAST MIDLANDS LTD,101317
North East Lincolnshire Council,http://statistics.data.gov.uk/id/local-authority/00FC,Cap Economy Env And Housing,Cap Development,Hps-Disabled Fac. Grants,Cap Grants To O/Side Sources,Cap Grants To O/Side Sources,YJ101,2/18/2014,260603,2025,CAPITAL,HANDICARE ACCESSIIBILITY LTD,102647
North East Lincolnshire Council,http://statistics.data.gov.uk/id/local-authority/00FC,Cap Economy Env And Housing,Cap Development,Hps-Disabled Fac. Grants,Cap Grants To O/Side Sources,Cap Grants To O/Side Sources,YJ101,2/20/2014,260610,4266,CAPITAL,CLEVELAND JOINERY,102580
North East Lincolnshire Council,http://statistics.data.gov.uk/id/local-authority/00FC,Cap Economy Env And Housing,Cap Development,Hps-Disabled Fac. Grants,Cap Grants To O/Side Sources,Cap Grants To O/Side Sources,YJ101,2/20/2014,260602,2025,CAPITAL,HANDICARE ACCESSIIBILITY LTD,102647
North East Lincolnshire Council,http://statistics.data.gov.uk/id/local-authority/00FC,Cap Economy Env And Housing,Cap Development,Hps-Disabled Fac. Grants,Cap Grants To O/Side Sources,Cap Grants To O/Side Sources,YJ101,2/13/2014,259509,2592,CAPITAL,VIC HANSEN BUILDING & JOINERY LTD,103981
North East Lincolnshire Council,http://statistics.data.gov.uk/id/local-authority/00FC,Cap Economy Env And Housing,Cap Development,Hps-Disabled Fac. Grants,Cap Grants To O/Side Sources,Cap Grants To O/Side Sources,YJ101,2/24/2014,262215,8705,CAPITAL,VALAM BUILDERS LTD,100566
North East Lincolnshire Council,http://statistics.data.gov.uk/id/local-authority/00FC,Cap Economy Env And Housing,Cap Development,Hps-Disabled Fac. Grants,Cap Grants To O/Side Sources,Cap Grants To O/Side Sources,YJ101,2/4/2014,257594,1602,CAPITAL,HANDICARE ACCESSIIBILITY LTD,102647
North East Lincolnshire Council,http://statistics.data.gov.uk/id/local-authority/00FC,Cap Economy Env And Housing,Cap Development,Hps-Disabled Fac. Grants,Cap Grants To O/Side Sources,Cap Grants To O/Side Sources,YJ101,2/10/2014,258443,3420,CAPITAL,TOTAL HYGIENE LTD,100849
North East Lincolnshire Council,http://statistics.data.gov.uk/id/local-authority/00FC,Cap Economy Env And Housing,Cap Development,Hps-Disabled Fac. Grants,Cap Grants To O/Side Sources,Cap Grants To O/Side Sources,YJ101,2/28/2014,262716,7500,CAPITAL,VIC HANSEN BUILDING & JOINERY LTD,103981
North East Lincolnshire Council,http://statistics.data.gov.uk/id/local-authority/00FC,Cap Economy Env And Housing,Cap Development,Hps-Disabled Fac. Grants,Cap Grants To O/Side Sources,Cap Grants To O/Side Sources,YJ101,2/6/2014,257106,4600,CAPITAL,E J PARMENTER,100924
North East Lincolnshire Council,http://statistics.data.gov.uk/id/local-authority/00FC,Cap Economy Env And Housing,Cap Development,Hps-Disabled Fac. Grants,Cap Grants To O/Side Sources,Cap Grants To O/Side Sources,YJ101,2/28/2014,262717,6401.11,CAPITAL,MANTA BRC LTD,102230
North East Lincolnshire Council,http://statistics.data.gov.uk/id/local-authority/00FC,Cap Economy Env And Housing,Cap Development,Hps-Disabled Fac. Grants,Cap Grants To O/Side Sources,Cap Grants To O/Side Sources,YJ101,2/13/2014,259508,4525,CAPITAL,DOLPHIN MOBILITY EAST MIDLANDS LTD,101317
North East Lincolnshire Council,http://statistics.data.gov.uk/id/local-authority/00FC,Cap Economy Env And Housing,Cap Development,Hps-Disabled Fac. Grants,Cap Grants To O/Side Sources,Cap Grants To O/Side Sources,YJ101,2/24/2014,262246,3640,CAPITAL,LINCS PLUMBING & HEATING CO,102584
North East Lincolnshire Council,http://statistics.data.gov.uk/id/local-authority/00FC,Cap Economy Env And Housing,Cap Development,Hps-Disabled Fac. Grants,Cap Grants To O/Side Sources,Cap Grants To O/Side Sources,YJ101,2/6/2014,258399,4761,CAPITAL,OBAM LIFT SERVICES LTD,112666
North East Lincolnshire Council,http://statistics.data.gov.uk/id/local-authority/00FC,Cap Economy Env And Housing,Cap Development,Hps-Disabled Fac. Grants,Cap Grants To O/Side Sources,Cap Grants To O/Side Sources,YJ101,2/6/2014,256773,800,CAPITAL,DOLPHIN MOBILITY EAST MIDLANDS LTD,101317
North East Lincolnshire Council,http://statistics.data.gov.uk/id/local-authority/00FC,Cap Economy Env And Housing,Cap Development,Hps-Disabled Fac. Grants,Cap Grants To O/Side Sources,Cap Grants To O/Side Sources,YJ101,2/13/2014,259170,607.5,CAPITAL,STEVE BENNETT ARCHITECTURAL DESIGN,103819
North East Lincolnshire Council,http://statistics.data.gov.uk/id/local-authority/00FC,Cap Economy Env And Housing,Cap Development,Hps-Disabled Fac. Grants,Cap Grants To O/Side Sources,Cap Grants To O/Side Sources,YJ101,2/17/2014,259737,340,CAPITAL,STEVE BENNETT ARCHITECTURAL DESIGN,103819
North East Lincolnshire Council,http://statistics.data.gov.uk/id/local-authority/00FC,Cap Economy Env And Housing,Cap Development,Hps-Disabled Fac. Grants,Cap Grants To O/Side Sources,Cap Grants To O/Side Sources,YJ101,2/13/2014,259510,674.8,CAPITAL,STEVE BENNETT ARCHITECTURAL DESIGN,103819
North East Lincolnshire Council,http://statistics.data.gov.uk/id/local-authority/00FC,Cap Economy Env And Housing,Cap Development,Hps-Disabled Fac. Grants,Cap Grants To O/Side Sources,Cap Grants To O/Side Sources,YJ101,2/17/2014,259739,454.8,CAPITAL,STEVE BENNETT ARCHITECTURAL DESIGN,103819
North East Lincolnshire Council,http://statistics.data.gov.uk/id/local-authority/00FC,Cap Economy Env And Housing,Cap Development,Hps-Disabled Fac. Grants,Cap Grants To O/Side Sources,Cap Grants To O/Side Sources,YJ101,2/11/2014,259551,420,CAPITAL,STEVE BENNETT ARCHITECTURAL DESIGN,103819
North East Lincolnshire Council,http://statistics.data.gov.uk/id/local-authority/00FC,Cap Economy Env And Housing,Cap Development,Local Transport Plan,Cap Land/Build-Build Enh Wrk,Cap Land/Build-Build Enh Wrk,YA102,2/3/2014,257240,1000,CAPITAL,SWARCO TRAFFIC LTD,121266
North East Lincolnshire Council,http://statistics.data.gov.uk/id/local-authority/00FC,Cap Economy Env And Housing,Cap Development,Local Transport Plan,Cap Land/Build-Build Enh Wrk,Cap Land/Build-Build Enh Wrk,YA102,2/3/2014,257238,1000,CAPITAL,SWARCO TRAFFIC LTD,121266
North East Lincolnshire Council,http://statistics.data.gov.uk/id/local-authority/00FC,Cap Economy Env And Housing,Cap Development,Local Transport Plan,Cap Land/Build-Build Enh Wrk,Cap Land/Build-Build Enh Wrk,YA102,2/3/2014,257240,2400,CAPITAL,SWARCO TRAFFIC LTD,121266
North East Lincolnshire Council,http://statistics.data.gov.uk/id/local-authority/00FC,Cap Economy Env And Housing,Cap Development,Local Transport Plan,Cap Land/Build-Build Enh Wrk,Cap Land/Build-Build Enh Wrk,YA102,2/3/2014,257239,4800,CAPITAL,SWARCO TRAFFIC LTD,121266
North East Lincolnshire Council,http://statistics.data.gov.uk/id/local-authority/00FC,Cap Economy Env And Housing,Cap Development,Local Transport Plan,Cap Land/Build-Build Enh Wrk,Cap Land/Build-Build Enh Wrk,YA102,2/3/2014,257238,4800,CAPITAL,SWARCO TRAFFIC LTD,121266
North East Lincolnshire Council,http://statistics.data.gov.uk/id/local-authority/00FC,Cap Economy Env And Housing,Cap Development,Local Transport Plan,Cap Infrastr-Build Enh Wrk,Cap Infrastr-Build Enh Wrk,YC102,2/6/2014,258630,309.35,CAPITAL,NORTHERN POWERGRID (YORKSHIRE) PLC,108328
North East Lincolnshire Council,http://statistics.data.gov.uk/id/local-authority/00FC,Cap Economy Env And Housing,Cap Development,Local Transport Plan,Cap Infrastr-Build Enh Wrk,Cap Infrastr-Build Enh Wrk,YC102,2/6/2014,258666,309.35,CAPITAL,YORKSHIRE ELECTRICITY DISTRIBUTION PLC,103647
North East Lincolnshire Council,http://statistics.data.gov.uk/id/local-authority/00FC,Cap Economy Env And Housing,Cap Development,Local Transport Plan,Cap Infrastr-Build Enh Wrk,Cap Infrastr-Build Enh Wrk,YC102,2/10/2014,258629,309.35,CAPITAL,NORTHERN POWERGRID (YORKSHIRE) PLC,108328
North East Lincolnshire Council,http://statistics.data.gov.uk/id/local-authority/00FC,Cap Economy Env And Housing,Cap Development,Local Transport Plan,Cap Infrastr-Build Enh Wrk,Cap Infrastr-Build Enh Wrk,YC102,2/10/2014,258685,309.35,CAPITAL,NORTHERN POWERGRID (YORKSHIRE) PLC,108328
North East Lincolnshire Council,http://statistics.data.gov.uk/id/local-authority/00FC,Cap Economy Env And Housing,Cap Development,Local Transport Plan,Cap Infrastr-Build Enh Wrk,Cap Infrastr-Build Enh Wrk,YC102,2/3/2014,257150,309.35,CAPITAL,NORTHERN POWERGRID (YORKSHIRE) PLC,108328
North East Lincolnshire Council,http://statistics.data.gov.uk/id/local-authority/00FC,Cap Economy Env And Housing,Cap Development,Local Transport Plan,Cap Infrastr-Build Enh Wrk,Cap Infrastr-Build Enh Wrk,YC102,2/3/2014,257149,309.35,CAPITAL,NORTHERN POWERGRID (YORKSHIRE) PLC,108328
North East Lincolnshire Council,http://statistics.data.gov.uk/id/local-authority/00FC,Cap Economy Env And Housing,Cap Development,Local Transport Plan,Cap Infrastr-Build Enh Wrk,Cap Infrastr-Build Enh Wrk,YC102,2/3/2014,257146,309.35,CAPITAL,NORTHERN POWERGRID (YORKSHIRE) PLC,108328
North East Lincolnshire Council,http://statistics.data.gov.uk/id/local-authority/00FC,Cap Economy Env And Housing,Cap Development,Local Transport Plan,Cap Infrastr-Build Enh Wrk,Cap Infrastr-Build Enh Wrk,YC102,2/17/2014,257254,260,CAPITAL,J MCCANN & CO LTD,100841
North East Lincolnshire Council,http://statistics.data.gov.uk/id/local-authority/00FC,Cap Economy Env And Housing,Cap Development,Local Transport Plan,Cap Infrastr-Build Enh Wrk,Cap Infrastr-Build Enh Wrk,YC102,2/17/2014,259174,309.35,CAPITAL,NORTHERN POWERGRID (YORKSHIRE) PLC,108328
North East Lincolnshire Council,http://statistics.data.gov.uk/id/local-authority/00FC,Cap Economy Env And Housing,Cap Development,Local Transport Plan,Cap Land/Build-Build Enh Wrk,Cap Land/Build-Build Enh Wrk,YA102,2/3/2014,257241,2408,CAPITAL,SWARCO TRAFFIC LTD,121266
North East Lincolnshire Council,http://statistics.data.gov.uk/id/local-authority/00FC,Cap Economy Env And Housing,Cap Development,Local Transport Plan,Cap Land/Build-Build Enh Wrk,Cap Land/Build-Build Enh Wrk,YA102,2/3/2014,257241,11500,CAPITAL,SWARCO TRAFFIC LTD,121266
North East Lincolnshire Council,http://statistics.data.gov.uk/id/local-authority/00FC,Cap Economy Env And Housing,Cap Development,Local Transport Plan,Cap Infrastr-Build Enh Wrk,Cap Infrastr-Build Enh Wrk,YC102,2/27/2014,257731,13733.08,CAPITAL,PELL AND BALDWIN FABRICATIONS LTD,118853
North East Lincolnshire Council,http://statistics.data.gov.uk/id/local-authority/00FC,Cap Economy Env And Housing,Cap Development,Local Transport Plan,Cap Land/Build-Build Enh Wrk,Cap Land/Build-Build Enh Wrk,YA102,2/6/2014,258656,582.7,CAPITAL,YORKSHIRE ELECTRICITY DISTRIBUTION PLC,103647
North East Lincolnshire Council,http://statistics.data.gov.uk/id/local-authority/00FC,Cap Economy Env And Housing,Cap Development,Local Transport Plan,Cap Land/Build-Build Enh Wrk,Cap Land/Build-Build Enh Wrk,YA102,2/10/2014,258618,336.1,CAPITAL,NORTHERN POWERGRID (YORKSHIRE) PLC,108328
North East Lincolnshire Council,http://statistics.data.gov.uk/id/local-authority/00FC,Cap Economy Env And Housing,Cap Development,Local Transport Plan,Cap Land/Build-Build Enh Wrk,Cap Land/Build-Build Enh Wrk,YA102,2/17/2014,259177,835.86,CAPITAL,NORTHERN POWERGRID (YORKSHIRE) PLC,108328
North East Lincolnshire Council,http://statistics.data.gov.uk/id/local-authority/00FC,Cap Economy Env And Housing,Cap Development,Local Transport Plan,Cap Land/Build-Build Enh Wrk,Cap Land/Build-Build Enh Wrk,YA102,2/3/2014,257142,1101.37,CAPITAL,NORTHERN POWERGRID (YORKSHIRE) PLC,108328
North East Lincolnshire Council,http://statistics.data.gov.uk/id/local-authority/00FC,Cap Economy Env And Housing,Cap Development,Local Transport Plan,Cap Land/Build-Build Enh Wrk,Cap Land/Build-Build Enh Wrk,YA102,2/3/2014,257145,672.2,CAPITAL,NORTHERN POWERGRID (YORKSHIRE) PLC,108328
North East Lincolnshire Council,http://statistics.data.gov.uk/id/local-authority/00FC,Cap Economy Env And Housing,Cap Development,Local Transport Plan,Cap Infrastr-Purchase,Cap Infrastr-Purchase,YC101,2/27/2014,262919,7000,CAPITAL,YOUNGS SEAFOOD LTD,111391
North East Lincolnshire Council,http://statistics.data.gov.uk/id/local-authority/00FC,Cap Economy Env And Housing,Cap Development,Local Transport Plan,Cap Infrastr-Purchase,Cap Infrastr-Purchase,YC101,2/11/2014,257070,2100,CAPITAL,CYCLEPODS LTD,109419
North East Lincolnshire Council,http://statistics.data.gov.uk/id/local-authority/00FC,Cap Economy Env And Housing,Cap Development,Local Transport Plan,Cap Infrastr-Build Enh Wrk,Cap Infrastr-Build Enh Wrk,YC102,2/13/2014,257968,6294,CAPITAL,CA TRAFFIC LTD,105390
North East Lincolnshire Council,http://statistics.data.gov.uk/id/local-authority/00FC,Cap Economy Env And Housing,Cap Development,Local Transport Plan,Cap Infrastr-Build Enh Wrk,Cap Infrastr-Build Enh Wrk,YC102,2/20/2014,260746,460.5,CAPITAL,CA TRAFFIC LTD,105390
North East Lincolnshire Council,http://statistics.data.gov.uk/id/local-authority/00FC,Cap Economy Env And Housing,Cap Development,Local Transport Plan,Cap Infrastr-Build Enh Wrk,Cap Infrastr-Build Enh Wrk,YC102,2/17/2014,257269,940,CAPITAL,J MCCANN & CO LTD,100841
North East Lincolnshire Council,http://statistics.data.gov.uk/id/local-authority/00FC,Cap Economy Env And Housing,Cap Development,Local Transport Plan,Cap Infrastr-Build Enh Wrk,Cap Infrastr-Build Enh Wrk,YC102,2/6/2014,257542,46181.35,CAPITAL,SPECIALIST SURFACING LIMITED,100579
North East Lincolnshire Council,http://statistics.data.gov.uk/id/local-authority/00FC,Cap Economy Env And Housing,Cap Development,Local Transport Plan,Cap Infrastr-Build Enh Wrk,Cap Infrastr-Build Enh Wrk,YC102,2/27/2014,262910,6235,CAPITAL,SPECIALIST SURFACING LIMITED,100579
North East Lincolnshire Council,http://statistics.data.gov.uk/id/local-authority/00FC,Cap Economy Env And Housing,Cap Development,Local Transport Plan,Cap Infrastr-Build Enh Wrk,Cap Infrastr-Build Enh Wrk,YC102,2/3/2014,257255,390,CAPITAL,J MCCANN & CO LTD,100841
North East Lincolnshire Council,http://statistics.data.gov.uk/id/local-authority/00FC,Cap Economy Env And Housing,Cap Development,Local Transport Plan,Cap Infrastr-Prof Fees,Cap Infrastr-Prof Fees,YC103,2/24/2014,261364,260,CAPITAL,J MCCANN & CO LTD,100841
North East Lincolnshire Council,http://statistics.data.gov.uk/id/local-authority/00FC,Cap Economy Env And Housing,Cap Development,Local Transport Plan,Cap Infrastr-Build Enh Wrk,Cap Infrastr-Build Enh Wrk,YC102,2/17/2014,253743,2225,CAPITAL,ADVANTAGE TSC & D LTD,109136
North East Lincolnshire Council,http://statistics.data.gov.uk/id/local-authority/00FC,Cap Economy Env And Housing,Cap Development,Local Transport Plan,Cap Infrastr-Build Enh Wrk,Cap Infrastr-Build Enh Wrk,YC102,2/17/2014,260562,1988.4,CAPITAL,WRIGHT CIVIL ENGINEERING LTD,100624
North East Lincolnshire Council,http://statistics.data.gov.uk/id/local-authority/00FC,Cap Economy Env And Housing,Cap Development,Local Transport Plan,Cap Infrastr-Build Enh Wrk,Cap Infrastr-Build Enh Wrk,YC102,2/18/2014,260305,1684,CAPITAL,COMMUTAPORTS LTD,120108
North East Lincolnshire Council,http://statistics.data.gov.uk/id/local-authority/00FC,Cap Economy Env And Housing,Cap Development,Local Transport Plan,Cap Infrastr-Build Enh Wrk,Cap Infrastr-Build Enh Wrk,YC102,2/17/2014,257266,712.74,CAPITAL,J MCCANN & CO LTD,100841
North East Lincolnshire Council,http://statistics.data.gov.uk/id/local-authority/00FC,Cap Economy Env And Housing,Cap Development,Freeman Street Regeneration,Cap Land/Build-Build Enh Wrk,Cap Land/Build-Build Enh Wrk,YA102,2/28/2014,262472,250,CAPITAL,BALFOUR BEATTY,102595
North East Lincolnshire Council,http://statistics.data.gov.uk/id/local-authority/00FC,Cap Economy Env And Housing,Cap Development,Freeman Street Regeneration,Cap Land/Build-Build Enh Wrk,Cap Land/Build-Build Enh Wrk,YA102,2/28/2014,262471,250,CAPITAL,BALFOUR BEATTY,102595
North East Lincolnshire Council,http://statistics.data.gov.uk/id/local-authority/00FC,Cap Economy Env And Housing,Cap Development,Freeman Street Regeneration,Cap Land/Build-Build Enh Wrk,Cap Land/Build-Build Enh Wrk,YA102,2/11/2014,259277,420,CAPITAL,CHOCOLATE CREATIVE LTD,106314
North East Lincolnshire Council,http://statistics.data.gov.uk/id/local-authority/00FC,Cap Economy Env And Housing,Cap Development,Freeman Street Regeneration,Cap Land/Build-Build Enh Wrk,Cap Land/Build-Build Enh Wrk,YA102,2/20/2014,260018,582,CAPITAL,FURNITUBES INTERNATIONAL LIMITED,109382
North East Lincolnshire Council,http://statistics.data.gov.uk/id/local-authority/00FC,Cap Economy Env And Housing,Cap Development,Freeman Street Regeneration,Cap Invest Prop-Build Enh Wrk,Cap Invest Prop-Build Enh Wrk,YE102,2/11/2014,259106,526.51,CAPITAL,NORTHERN POWERGRID (YORKSHIRE) PLC,108328
North East Lincolnshire Council,http://statistics.data.gov.uk/id/local-authority/00FC,Cap Economy Env And Housing,Cap Development,Freeman Street Regeneration,Cap Invest Prop-Build Enh Wrk,Cap Invest Prop-Build Enh Wrk,YE102,2/10/2014,258683,336.1,CAPITAL,NORTHERN POWERGRID (YORKSHIRE) PLC,108328
North East Lincolnshire Council,http://statistics.data.gov.uk/id/local-authority/00FC,Cap Economy Env And Housing,Cap Development,Freeman Street Regeneration,Cap Invest Prop-Build Enh Wrk,Cap Invest Prop-Build Enh Wrk,YE102,2/10/2014,258653,981.55,CAPITAL,NORTHERN POWERGRID (YORKSHIRE) PLC,108328
North East Lincolnshire Council,http://statistics.data.gov.uk/id/local-authority/00FC,Cap Economy Env And Housing,Cap Development,Freeman Street Regeneration,Cap Invest Prop-Build Enh Wrk,Cap Invest Prop-Build Enh Wrk,YE102,2/10/2014,258684,309.35,CAPITAL,NORTHERN POWERGRID (YORKSHIRE) PLC,108328
North East Lincolnshire Council,http://statistics.data.gov.uk/id/local-authority/00FC,Cap Economy Env And Housing,Cap Development,Freeman Street Regeneration,Cap Invest Prop-Build Enh Wrk,Cap Invest Prop-Build Enh Wrk,YE102,2/3/2014,257140,928.05,CAPITAL,NORTHERN POWERGRID (YORKSHIRE) PLC,108328
North East Lincolnshire Council,http://statistics.data.gov.uk/id/local-authority/00FC,Cap Economy Env And Housing,Cap Development,Freeman Street Regeneration,Cap Invest Prop-Build Enh Wrk,Cap Invest Prop-Build Enh Wrk,YE102,2/3/2014,257139,618.7,CAPITAL,NORTHERN POWERGRID (YORKSHIRE) PLC,108328
North East Lincolnshire Council,http://statistics.data.gov.uk/id/local-authority/00FC,Cap Economy Env And Housing,Cap Development,Freeman Street Regeneration,Cap Invest Prop-Build Enh Wrk,Cap Invest Prop-Build Enh Wrk,YE102,2/3/2014,257138,8726.95,CAPITAL,NORTHERN POWERGRID (YORKSHIRE) PLC,108328
North East Lincolnshire Council,http://statistics.data.gov.uk/id/local-authority/00FC,Cap Economy Env And Housing,Cap Development,Freeman Street Regeneration,Cap Invest Prop-Build Enh Wrk,Cap Invest Prop-Build Enh Wrk,YE102,2/13/2014,259179,336.1,CAPITAL,NORTHERN POWERGRID (YORKSHIRE) PLC,108328
North East Lincolnshire Council,http://statistics.data.gov.uk/id/local-authority/00FC,Cap Economy Env And Housing,Cap Development,Housing Assistance,Cap Grants To O/Side Sources,Cap Grants To O/Side Sources,YJ101,2/6/2014,258682,5084.4,CAPITAL,ETON-LINCS LIMITED,101510
North East Lincolnshire Council,http://statistics.data.gov.uk/id/local-authority/00FC,Cap Economy Env And Housing,Cap Development,Housing Assistance,Cap Grants To O/Side Sources,Cap Grants To O/Side Sources,YJ101,2/20/2014,260609,4526.4,CAPITAL,D THORPE PLUMBING & HEATING SERVICES,118800
North East Lincolnshire Council,http://statistics.data.gov.uk/id/local-authority/00FC,Cap Economy Env And Housing,Cap Development,Housing Assistance,Cap Grants To O/Side Sources,Cap Grants To O/Side Sources,YJ101,2/11/2014,259552,4770,CAPITAL,QUICK FIX GLASS LTD,100969
North East Lincolnshire Council,http://statistics.data.gov.uk/id/local-authority/00FC,Cap Economy Env And Housing,Cap Development,Housing Assistance,Cap Grants To O/Side Sources,Cap Grants To O/Side Sources,YJ101,2/6/2014,257540,6654,CAPITAL,VALAM BUILDERS LTD,100566
North East Lincolnshire Council,http://statistics.data.gov.uk/id/local-authority/00FC,Cap Economy Env And Housing,Cap Development,Housing Assistance,Cap Grants To O/Side Sources,Cap Grants To O/Side Sources,YJ101,2/6/2014,256772,3280.8,CAPITAL,D THORPE PLUMBING & HEATING SERVICES,118800
North East Lincolnshire Council,http://statistics.data.gov.uk/id/local-authority/00FC,Cap Economy Env And Housing,Cap Development,Housing Assistance,Cap Grants To O/Side Sources,Cap Grants To O/Side Sources,YJ101,2/6/2014,258302,10422,CAPITAL,B G JOHNSON,122821
North East Lincolnshire Council,http://statistics.data.gov.uk/id/local-authority/00FC,Cap Economy Env And Housing,Cap Development,Housing Assistance,Cap Grants To O/Side Sources,Cap Grants To O/Side Sources,YJ101,2/13/2014,258250,9111.11,CAPITAL,TRIMAR,110063
North East Lincolnshire Council,http://statistics.data.gov.uk/id/local-authority/00FC,Cap Economy Env And Housing,Cap Development,Housing Assistance,Cap Grants To O/Side Sources,Cap Grants To O/Side Sources,YJ101,2/20/2014,260612,2100,CAPITAL,M J QUICKFALL,102499
North East Lincolnshire Council,http://statistics.data.gov.uk/id/local-authority/00FC,Cap Economy Env And Housing,Cap Development,Housing Assistance,Cap Grants To O/Side Sources,Cap Grants To O/Side Sources,YJ101,2/10/2014,258559,11050,CAPITAL,MR BEN NICHOLLS,124417
North East Lincolnshire Council,http://statistics.data.gov.uk/id/local-authority/00FC,Cap Economy Env And Housing,Cap Development,Housing Assistance,Cap Grants To O/Side Sources,Cap Grants To O/Side Sources,YJ101,2/10/2014,258557,12999.6,CAPITAL,NEWVIC PROPERTY SERVICES LTD,123637
North East Lincolnshire Council,http://statistics.data.gov.uk/id/local-authority/00FC,Cap Economy Env And Housing,Cap Development,Housing Assistance,Cap Grants To O/Side Sources,Cap Grants To O/Side Sources,YJ101,2/6/2014,258404,9912,CAPITAL,MR BEN NICHOLLS,124417
North East Lincolnshire Council,http://statistics.data.gov.uk/id/local-authority/00FC,Cap Economy Env And Housing,Cap Development,Housing Assistance,Cap Grants To O/Side Sources,Cap Grants To O/Side Sources,YJ101,2/10/2014,258976,15795.31,CAPITAL,SHEFFIELD CITY COUNCIL,119344
North East Lincolnshire Council,http://statistics.data.gov.uk/id/local-authority/00FC,Cap Economy Env And Housing,Cap Development,Housing Assistance,Cap Grants To O/Side Sources,Cap Grants To O/Side Sources,YJ101,2/10/2014,258619,11600,CAPITAL,SHEFFIELD CITY COUNCIL,119344
North East Lincolnshire Council,http://statistics.data.gov.uk/id/local-authority/00FC,Cap Economy Env And Housing,Cap Development,Local Sustainable Trans Fund,Cap Infrastr-Build Enh Wrk,Cap Infrastr-Build Enh Wrk,YC102,2/13/2014,259632,8016.18,CAPITAL,BRITISH TELECOMMUNICATIONS PLC,112750
North East Lincolnshire Council,http://statistics.data.gov.uk/id/local-authority/00FC,Cap Economy Env And Housing,Cap Development,Local Sustainable Trans Fund,Cap Infrastr-Build Enh Wrk,Cap Infrastr-Build Enh Wrk,YC102,2/6/2014,258259,968,CAPITAL,COMMUTAPORTS LTD,120108
North East Lincolnshire Council,http://statistics.data.gov.uk/id/local-authority/00FC,Cap Economy Env And Housing,Cap Development,A18 - A180 Link,Cap Infrastr-Build Enh Wrk,Cap Infrastr-Build Enh Wrk,YC102,2/17/2014,259702,4478.4,CAPITAL,BRITISH TELECOMMUNICATIONS PLC,100974
North East Lincolnshire Council,http://statistics.data.gov.uk/id/local-authority/00FC,Cap Economy Env And Housing,Cap Development,A18 - A180 Link,Cap Infrastr-Build Enh Wrk,Cap Infrastr-Build Enh Wrk,YC102,2/10/2014,258556,1153.49,CAPITAL,VIRGIN MEDIA LTD,101831
North East Lincolnshire Council,http://statistics.data.gov.uk/id/local-authority/00FC,Cap Economy Env And Housing,Cap Development,Energy Sol - Street Light Lant,Cap Land/Build-Build Enh Wrk,Cap Land/Build-Build Enh Wrk,YA102,2/17/2014,260558,37967.16,CAPITAL,J MCCANN & CO LTD,100841
North East Lincolnshire Council,http://statistics.data.gov.uk/id/local-authority/00FC,Cap Economy Env And Housing,Cap Development,Energy Sol - Street Light Lant,Cap Land/Build-Build Enh Wrk,Cap Land/Build-Build Enh Wrk,YA102,2/17/2014,260607,17266.61,CAPITAL,J MCCANN & CO LTD,100841
North East Lincolnshire Council,http://statistics.data.gov.uk/id/local-authority/00FC,Cap Economy Env And Housing,Cap Culture Leisure And Sport,Leisure/Library - Library,Cap Land/Build-Build Enh Wrk,Cap Land/Build-Build Enh Wrk,YA102,2/6/2014,258657,6552,CAPITAL,BROXAP LIMITED,106136
North East Lincolnshire Council,http://statistics.data.gov.uk/id/local-authority/00FC,Cap Economy Env And Housing,Cap Culture Leisure And Sport,Leisure/Library - Library,Cap Land/Build-Build Enh Wrk,Cap Land/Build-Build Enh Wrk,YA102,2/18/2014,260834,950,CAPITAL,W R CULLUM,100811
North East Lincolnshire Council,http://statistics.data.gov.uk/id/local-authority/00FC,Cap Economy Env And Housing,Cap Culture Leisure And Sport,Leisure/Library - Library,Cap Land/Build-Build Enh Wrk,Cap Land/Build-Build Enh Wrk,YA102,2/17/2014,257093,1104.57,CAPITAL,GRESSWELL,101461
North East Lincolnshire Council,http://statistics.data.gov.uk/id/local-authority/00FC,Cap Economy Env And Housing,Cap Culture Leisure And Sport,Leisure/Library - Library,Cap Land/Build-Build Enh Wrk,Cap Land/Build-Build Enh Wrk,YA102,2/18/2014,260681,3984.23,CAPITAL,EXCELL ELECTRICAL CONTRACTORS,100601
North East Lincolnshire Council,http://statistics.data.gov.uk/id/local-authority/00FC,Cap Economy Env And Housing,Cap Culture Leisure And Sport,Leisure/Library - Library,Cap Land/Build-Build Enh Wrk,Cap Land/Build-Build Enh Wrk,YA102,2/20/2014,260800,1899.06,CAPITAL,EXCELL ELECTRICAL CONTRACTORS,100601
North East Lincolnshire Council,http://statistics.data.gov.uk/id/local-authority/00FC,Cap Economy Env And Housing,Cap Culture Leisure And Sport,Leisure/Library - Library,Cap Land/Build-Build Enh Wrk,Cap Land/Build-Build Enh Wrk,YA102,2/13/2014,259262,2008,CAPITAL,STANNAH LIFT SERVICES LTD,100622
North East Lincolnshire Council,http://statistics.data.gov.uk/id/local-authority/00FC,Cap Economy Env And Housing,Cap Culture Leisure And Sport,Leisure/Library - Library,Cap Veh Plt Eqp-Purchase,Cap Veh Plt Eqp-Purchase,YB101,2/11/2014,256806,20615,CAPITAL,F G LIBRARY PRODUCTS,119227
North East Lincolnshire Council,http://statistics.data.gov.uk/id/local-authority/00FC,Cap Economy Env And Housing,Cap Culture Leisure And Sport,Grimsby Leisure Centre,Cap Land/Build-Build Enh Wrk,Cap Land/Build-Build Enh Wrk,YA102,2/24/2014,262240,900,CAPITAL,PMC SAFETY NETTING LTD,109192
North East Lincolnshire Council,http://statistics.data.gov.uk/id/local-authority/00FC,Cap Economy Env And Housing,Cap Culture Leisure And Sport,Grimsby Leisure Centre,Cap Land/Build-Build Enh Wrk,Cap Land/Build-Build Enh Wrk,YA102,2/27/2014,262856,3685,CAPITAL,JAMES BRATTON & CO LTD,100714
North East Lincolnshire Council,http://statistics.data.gov.uk/id/local-authority/00FC,Cap Economy Env And Housing,Cap Culture Leisure And Sport,Grimsby Leisure Centre,Cap Land/Build-Build Enh Wrk,Cap Land/Build-Build Enh Wrk,YA102,2/24/2014,262259,1900,CAPITAL,CLEE TREE SERVICES,124776
North East Lincolnshire Council,http://statistics.data.gov.uk/id/local-authority/00FC,Cap Economy Env And Housing,Cap Culture Leisure And Sport,Grimsby Leisure Centre,Cap Comm Asset-Build Enh Wrk,Cap Comm Asset-Build Enh Wrk,YD102,2/6/2014,257578,70820,CAPITAL,COFELY WORKPLACE LIMITED,123983
North East Lincolnshire Council,http://statistics.data.gov.uk/id/local-authority/00FC,Cap Economy Env And Housing,Cap Culture Leisure And Sport,Cleethorpes Leis Cent Refurb,Cap Land/Build-Build Enh Wrk,Cap Land/Build-Build Enh Wrk,YA102,2/6/2014,257583,10000,CAPITAL,COFELY WORKPLACE LIMITED,123983
North East Lincolnshire Council,http://statistics.data.gov.uk/id/local-authority/00FC,Cap Economy Env And Housing,Cap Culture Leisure And Sport,Cleethorpes Leis Cent Refurb,Cap Land/Build-Build Enh Wrk,Cap Land/Build-Build Enh Wrk,YA102,2/6/2014,258338,189540,CAPITAL,THE GELDER GROUP,103601
North East Lincolnshire Council,http://statistics.data.gov.uk/id/local-authority/00FC,Cap Economy Env And Housing,Cap Culture Leisure And Sport,Cleethorpes Leis Cent Refurb,Cap Land/Build-Build Enh Wrk,Cap Land/Build-Build Enh Wrk,YA102,2/27/2014,262920,221543,CAPITAL,THE GELDER GROUP,103601
North East Lincolnshire Council,http://statistics.data.gov.uk/id/local-authority/00FC,Cap Economy Env And Housing,Cap Culture Leisure And Sport,Cleethorpes Leis Cent Refurb,Cap Land/Build-Build Enh Wrk,Cap Land/Build-Build Enh Wrk,YA102,2/24/2014,262234,1224,CAPITAL,DEVIN CONSULTING LTD,122686
North East Lincolnshire Council,http://statistics.data.gov.uk/id/local-authority/00FC,Cap Economy Env And Housing,Cap Culture Leisure And Sport,Cleethorpes Leis Cent Refurb,Cap Land/Build-Build Enh Wrk,Cap Land/Build-Build Enh Wrk,YA102,2/24/2014,262258,7500,CAPITAL,HEMINGWAY CC LTD,124775
North East Lincolnshire Council,http://statistics.data.gov.uk/id/local-authority/00FC,Cap Economy Env And Housing,Cap Culture Leisure And Sport,Cleethorpes Leis Cent Refurb,Cap Land/Build-Build Enh Wrk,Cap Land/Build-Build Enh Wrk,YA102,2/6/2014,257581,30000,CAPITAL,COFELY WORKPLACE LIMITED,123983
North East Lincolnshire Council,http://statistics.data.gov.uk/id/local-authority/00FC,Cap Economy Env And Housing,Cap Culture Leisure And Sport,Cleethorpes Leis Cent Refurb,Cap Land/Build-Build Enh Wrk,Cap Land/Build-Build Enh Wrk,YA102,2/27/2014,262542,2720,CAPITAL,DEVIN CONSULTING LTD,122686
North East Lincolnshire Council,http://statistics.data.gov.uk/id/local-authority/00FC,Cap Economy Env And Housing,Cap Culture Leisure And Sport,Cleethorpes Leis Cent Refurb,Cap Land/Build-Build Enh Wrk,Cap Land/Build-Build Enh Wrk,YA102,2/6/2014,258338,53374,CAPITAL,THE GELDER GROUP,103601
North East Lincolnshire Council,http://statistics.data.gov.uk/id/local-authority/00FC,Cap Economy Env And Housing,Cap Culture Leisure And Sport,Immingham Pool,Cap Land/Build-Build Enh Wrk,Cap Land/Build-Build Enh Wrk,YA102,2/24/2014,262226,1224,CAPITAL,DEVIN CONSULTING LTD,122686
North East Lincolnshire Council,http://statistics.data.gov.uk/id/local-authority/00FC,Cap Economy Env And Housing,Cap Culture Leisure And Sport,Immingham Muga,Cap Land/Build-Build Enh Wrk,Cap Land/Build-Build Enh Wrk,YA102,2/6/2014,257580,500,CAPITAL,COFELY WORKPLACE LIMITED,123983
North East Lincolnshire Council,http://statistics.data.gov.uk/id/local-authority/00FC,Cap Economy Env And Housing,Cap Eeh Assets,Backlog Maintenance,Cap Land/Build-Build Enh Wrk,Cap Land/Build-Build Enh Wrk,YA102,2/17/2014,260352,3445,CAPITAL,COFELY WORKPLACE LIMITED,123983
North East Lincolnshire Council,http://statistics.data.gov.uk/id/local-authority/00FC,Cap Economy Env And Housing,Cap Eeh Assets,Backlog Maintenance,Cap Comm Asset-Purchase,Cap Comm Asset-Purchase,YD101,2/6/2014,258462,6210,CAPITAL,CAD-CAPTURE DATA SERVICES LIMITED,102715
North East Lincolnshire Council,http://statistics.data.gov.uk/id/local-authority/00FC,Cap Economy Env And Housing,Cap Eeh Assets,Backlog Maintenance,Cap Land/Build-Build Enh Wrk,Cap Land/Build-Build Enh Wrk,YA102,2/24/2014,262237,2625,CAPITAL,BURROWS DAVIES LIMITED,102722
North East Lincolnshire Council,http://statistics.data.gov.uk/id/local-authority/00FC,Cap Economy Env And Housing,Cap Eeh Assets,Backlog Maintenance,Cap Land/Build-Build Enh Wrk,Cap Land/Build-Build Enh Wrk,YA102,2/4/2014,256756,399.85,CAPITAL,JAMES BRATTON & CO LTD,100714
North East Lincolnshire Council,http://statistics.data.gov.uk/id/local-authority/00FC,Cap Economy Env And Housing,Cap Eeh Assets,Backlog Maintenance,Cap Land/Build-Build Enh Wrk,Cap Land/Build-Build Enh Wrk,YA102,2/27/2014,262947,830,CAPITAL,MANTA BRC LTD,102230
North East Lincolnshire Council,http://statistics.data.gov.uk/id/local-authority/00FC,Cap Economy Env And Housing,Cap Eeh Assets,Backlog Maintenance,Cap Land/Build-Build Enh Wrk,Cap Land/Build-Build Enh Wrk,YA102,2/20/2014,260818,6876.94,CAPITAL,EAST KIRKBY ENGINEERING CO LTD,122478
North East Lincolnshire Council,http://statistics.data.gov.uk/id/local-authority/00FC,Cap Economy Env And Housing,Cap Eeh Assets,Backlog Maintenance,Cap Land/Build-Build Enh Wrk,Cap Land/Build-Build Enh Wrk,YA102,2/11/2014,259209,718.6,CAPITAL,MANTA BRC LTD,102230
North East Lincolnshire Council,http://statistics.data.gov.uk/id/local-authority/00FC,Cap Economy Env And Housing,Cap Eeh Assets,Backlog Maintenance,Cap Land/Build-Prof Fees,Cap Land/Build-Prof Fees,YA103,2/20/2014,260682,6728.9,CAPITAL,COFELY WORKPLACE LIMITED,123983
North East Lincolnshire Council,http://statistics.data.gov.uk/id/local-authority/00FC,Cap Economy Env And Housing,Cap Eeh Assets,Market Hall,Cap Land/Build-Prof Fees,Cap Land/Build-Prof Fees,YA103,2/20/2014,260677,2704,CAPITAL,COFELY WORKPLACE LIMITED,123983
North East Lincolnshire Council,http://statistics.data.gov.uk/id/local-authority/00FC,Cap Economy Env And Housing,Cap Eeh Assets,Saltings Allotments Developmt,Cap Land/Build-Build Enh Wrk,Cap Land/Build-Build Enh Wrk,YA102,2/20/2014,261612,14065,CAPITAL,CONSTRUCTION SERVICES DIRECT LTD,124419
North East Lincolnshire Council,http://statistics.data.gov.uk/id/local-authority/00FC,Cap Economy Env And Housing,Cap Eeh Assets,Property Rationalisation,Cap Land/Build-Build Enh Wrk,Cap Land/Build-Build Enh Wrk,YA102,2/6/2014,258228,342,CAPITAL,SIGNS EXPRESS (N & NE LINCS),100983
North East Lincolnshire Council,http://statistics.data.gov.uk/id/local-authority/00FC,Cap Economy Env And Housing,Cap Eeh Assets,Property Rationalisation,Cap Land/Build-Build Enh Wrk,Cap Land/Build-Build Enh Wrk,YA102,2/18/2014,260833,515,CAPITAL,W R CULLUM,100811
North East Lincolnshire Council,http://statistics.data.gov.uk/id/local-authority/00FC,Cap Economy Env And Housing,Cap Eeh Assets,Property Rationalisation,Cap Land/Build-Build Enh Wrk,Cap Land/Build-Build Enh Wrk,YA102,2/18/2014,260893,933,CAPITAL,W R CULLUM,100811
North East Lincolnshire Council,http://statistics.data.gov.uk/id/local-authority/00FC,Cap Economy Env And Housing,Cap Eeh Assets,Property Rationalisation,Cap Land/Build-Build Enh Wrk,Cap Land/Build-Build Enh Wrk,YA102,2/18/2014,260875,875,CAPITAL,W R CULLUM,100811
North East Lincolnshire Council,http://statistics.data.gov.uk/id/local-authority/00FC,Cap Economy Env And Housing,Cap Eeh Assets,Property Rationalisation,Cap Land/Build-Build Enh Wrk,Cap Land/Build-Build Enh Wrk,YA102,2/10/2014,259028,744.1,CAPITAL,BELL WASTE CONTROL,101433
North East Lincolnshire Council,http://statistics.data.gov.uk/id/local-authority/00FC,Cap Economy Env And Housing,Cap Eeh Assets,Property Rationalisation,Cap Land/Build-Build Enh Wrk,Cap Land/Build-Build Enh Wrk,YA102,2/18/2014,260965,529.9,CAPITAL,BELL WASTE CONTROL,101433
North East Lincolnshire Council,http://statistics.data.gov.uk/id/local-authority/00FC,Cap Economy Env And Housing,Cap Eeh Assets,Property Rationalisation,Cap Land/Build-Build Enh Wrk,Cap Land/Build-Build Enh Wrk,YA102,2/24/2014,261810,1116,CAPITAL,COMPLETE OFFICE SOLUTIONS (UK) LTD,123664
North East Lincolnshire Council,http://statistics.data.gov.uk/id/local-authority/00FC,Cap Economy Env And Housing,Cap Eeh Assets,Property Rationalisation,Cap Land/Build-Build Enh Wrk,Cap Land/Build-Build Enh Wrk,YA102,2/18/2014,260816,146161.25,CAPITAL,MANTA BRC LTD,102230
North East Lincolnshire Council,http://statistics.data.gov.uk/id/local-authority/00FC,Cap Economy Env And Housing,Cap Eeh Assets,Property Rationalisation,Cap Land/Build-Build Enh Wrk,Cap Land/Build-Build Enh Wrk,YA102,2/10/2014,257161,798.7,CAPITAL,BELL WASTE CONTROL,101433
North East Lincolnshire Council,http://statistics.data.gov.uk/id/local-authority/00FC,Cap Economy Env And Housing,Cap Eeh Assets,Property Rationalisation,Cap Land/Build-Build Enh Wrk,Cap Land/Build-Build Enh Wrk,YA102,2/20/2014,260871,1140,CAPITAL,W R CULLUM,100811
North East Lincolnshire Council,http://statistics.data.gov.uk/id/local-authority/00FC,Cap Economy Env And Housing,Cap Eeh Assets,Property Rationalisation,Cap Land/Build-Build Enh Wrk,Cap Land/Build-Build Enh Wrk,YA102,2/20/2014,260872,815,CAPITAL,W R CULLUM,100811
North East Lincolnshire Council,http://statistics.data.gov.uk/id/local-authority/00FC,Cap Economy Env And Housing,Cap Eeh Assets,Property Rationalisation,Cap Land/Build-Build Enh Wrk,Cap Land/Build-Build Enh Wrk,YA102,2/20/2014,260874,1220,CAPITAL,W R CULLUM,100811
North East Lincolnshire Council,http://statistics.data.gov.uk/id/local-authority/00FC,Cap Economy Env And Housing,Cap Eeh Assets,Property Rationalisation,Cap Infrastr-Purchase,Cap Infrastr-Purchase,YC101,2/6/2014,258691,6897.66,CAPITAL,VIRGIN MEDIA LTD,101831
North East Lincolnshire Council,http://statistics.data.gov.uk/id/local-authority/00FC,Cap Economy Env And Housing,Cap Eeh Assets,Property Rationalisation,Cap Infrastr-Purchase,Cap Infrastr-Purchase,YC101,2/6/2014,256816,1300,CAPITAL,BADENOCH & CLARK,101427
North East Lincolnshire Council,http://statistics.data.gov.uk/id/local-authority/00FC,Cap Economy Env And Housing,Cap Eeh Assets,Property Rationalisation,Cap Infrastr-Purchase,Cap Infrastr-Purchase,YC101,2/6/2014,257613,1300,CAPITAL,BADENOCH & CLARK,101427
North East Lincolnshire Council,http://statistics.data.gov.uk/id/local-authority/00FC,Cap Economy Env And Housing,Cap Eeh Assets,Property Rationalisation,Cap Infrastr-Purchase,Cap Infrastr-Purchase,YC101,2/10/2014,258598,1300,CAPITAL,BADENOCH & CLARK,101427
North East Lincolnshire Council,http://statistics.data.gov.uk/id/local-authority/00FC,Cap Economy Env And Housing,Cap Eeh Assets,Property Rationalisation,Cap Infrastr-Purchase,Cap Infrastr-Purchase,YC101,2/13/2014,259625,1300,CAPITAL,BADENOCH & CLARK,101427
North East Lincolnshire Council,http://statistics.data.gov.uk/id/local-authority/00FC,Cap Economy Env And Housing,Cap Eeh Assets,Property Rationalisation,Cap Infrastr-Purchase,Cap Infrastr-Purchase,YC101,2/17/2014,260281,1300,CAPITAL,BADENOCH & CLARK,101427
North East Lincolnshire Council,http://statistics.data.gov.uk/id/local-authority/00FC,Cap Economy Env And Housing,Cap Eeh Assets,Property Rationalisation,Cap Infrastr-Purchase,Cap Infrastr-Purchase,YC101,2/18/2014,260837,1300,CAPITAL,BADENOCH & CLARK,101427
North East Lincolnshire Council,http://statistics.data.gov.uk/id/local-authority/00FC,Cap Economy Env And Housing,Cap Eeh Assets,Property Rationalisation,Cap Infrastr-Purchase,Cap Infrastr-Purchase,YC101,2/10/2014,258570,1048.12,CAPITAL,MATRIX SCM LTD,108117
North East Lincolnshire Council,http://statistics.data.gov.uk/id/local-authority/00FC,Cap Economy Env And Housing,Cap Eeh Assets,Property Rationalisation,Cap Infrastr-Purchase,Cap Infrastr-Purchase,YC101,2/20/2014,259240,648,CAPITAL,SPECIALIST COMPUTER CENTRES PLC,110715
North East Lincolnshire Council,http://statistics.data.gov.uk/id/local-authority/00FC,Cap Economy Env And Housing,Cap Eeh Assets,Property Rationalisation,Cap Infrastr-Purchase,Cap Infrastr-Purchase,YC101,2/20/2014,259240,22735,CAPITAL,SPECIALIST COMPUTER CENTRES PLC,110715
North East Lincolnshire Council,http://statistics.data.gov.uk/id/local-authority/00FC,Cap Economy Env And Housing,Cap Eeh Assets,Property Rationalisation,Cap Infrastr-Purchase,Cap Infrastr-Purchase,YC101,2/20/2014,258133,1501.74,CAPITAL,INSIGHT DIRECT (UK) LTD,101011
North East Lincolnshire Council,http://statistics.data.gov.uk/id/local-authority/00FC,Cap Economy Env And Housing,Cap Eeh Assets,Property Rationalisation,Cap Infrastr-Purchase,Cap Infrastr-Purchase,YC101,2/20/2014,261611,527.62,CAPITAL,MATRIX SCM LTD,108117
North East Lincolnshire Council,http://statistics.data.gov.uk/id/local-authority/00FC,Cap Economy Env And Housing,Cap Eeh Assets,Property Rationalisation,Cap Infrastr-Purchase,Cap Infrastr-Purchase,YC101,2/20/2014,256289,7644,CAPITAL,IMERJA LTD,102238
North East Lincolnshire Council,http://statistics.data.gov.uk/id/local-authority/00FC,Cap Economy Env And Housing,Cap Eeh Assets,Property Rationalisation,Cap Infrastr-Purchase,Cap Infrastr-Purchase,YC101,2/20/2014,256289,5389,CAPITAL,IMERJA LTD,102238
North East Lincolnshire Council,http://statistics.data.gov.uk/id/local-authority/00FC,Cap Economy Env And Housing,Cap Eeh Assets,Property Rationalisation,Cap Infrastr-Purchase,Cap Infrastr-Purchase,YC101,2/20/2014,256289,2694.94,CAPITAL,IMERJA LTD,102238
North East Lincolnshire Council,http://statistics.data.gov.uk/id/local-authority/00FC,Cap Economy Env And Housing,Cap Eeh Assets,Property Rationalisation,Cap Infrastr-Purchase,Cap Infrastr-Purchase,YC101,2/4/2014,257108,4320,CAPITAL,VIGLEN LIMITED,100883
North East Lincolnshire Council,http://statistics.data.gov.uk/id/local-authority/00FC,Cap Economy Env And Housing,Cap Eeh Assets,Property Rationalisation,Cap Infrastr-Purchase,Cap Infrastr-Purchase,YC101,2/6/2014,257107,288,CAPITAL,VIGLEN LIMITED,100883
North East Lincolnshire Council,http://statistics.data.gov.uk/id/local-authority/00FC,Cap Economy Env And Housing,Cap Eeh Assets,Property Rationalisation,Cap Land/Build-Build Enh Wrk,Cap Land/Build-Build Enh Wrk,YA102,2/18/2014,261308,2297,CAPITAL,REFLEX SYSTEMS LTD,102074
North East Lincolnshire Council,http://statistics.data.gov.uk/id/local-authority/00FC,Cap Economy Env And Housing,Cap Eeh Assets,Property Rationalisation,Cap Land/Build-Build Enh Wrk,Cap Land/Build-Build Enh Wrk,YA102,2/18/2014,260680,19585,CAPITAL,COMPLETE OFFICE SOLUTIONS (UK) LTD,123664
North East Lincolnshire Council,http://statistics.data.gov.uk/id/local-authority/00FC,Cap Economy Env And Housing,Cap Eeh Assets,Property Rationalisation,Cap Land/Build-Build Enh Wrk,Cap Land/Build-Build Enh Wrk,YA102,2/18/2014,260573,7533,CAPITAL,COMPLETE OFFICE SOLUTIONS (UK) LTD,123664
North East Lincolnshire Council,http://statistics.data.gov.uk/id/local-authority/00FC,Cap Economy Env And Housing,Cap Eeh Assets,Property Rationalisation,Cap Land/Build-Build Enh Wrk,Cap Land/Build-Build Enh Wrk,YA102,2/24/2014,261811,1498,CAPITAL,COMPLETE OFFICE SOLUTIONS (UK) LTD,123664
North East Lincolnshire Council,http://statistics.data.gov.uk/id/local-authority/00FC,Cap Economy Env And Housing,Cap Eeh Assets,Property Rationalisation,Cap Land/Build-Build Enh Wrk,Cap Land/Build-Build Enh Wrk,YA102,2/18/2014,261420,95222.07,CAPITAL,E S RUDKIN LTD,100632
North East Lincolnshire Council,http://statistics.data.gov.uk/id/local-authority/00FC,Cap Economy Env And Housing,Cap Eeh Assets,Property Rationalisation,Cap Infrastr-Purchase,Cap Infrastr-Purchase,YC101,2/4/2014,257588,6500,CAPITAL,COMPUTACENTER UK LTD,101303
North East Lincolnshire Council,http://statistics.data.gov.uk/id/local-authority/00FC,Cap Economy Env And Housing,Cap Eeh Assets,Property Rationalisation,Cap Infrastr-Purchase,Cap Infrastr-Purchase,YC101,2/6/2014,257107,5616,CAPITAL,VIGLEN LIMITED,100883
North East Lincolnshire Council,http://statistics.data.gov.uk/id/local-authority/00FC,Cap Economy Env And Housing,Cap Eeh Assets,Property Rationalisation,Cap Land/Build-Build Enh Wrk,Cap Land/Build-Build Enh Wrk,YA102,2/6/2014,258336,7542.24,CAPITAL,MANTA BRC LTD,102230
North East Lincolnshire Council,http://statistics.data.gov.uk/id/local-authority/00FC,Cap Economy Env And Housing,Cap Eeh Assets,Depot Investment,Cap Land/Build-Build Enh Wrk,Cap Land/Build-Build Enh Wrk,YA102,2/20/2014,261201,38800.55,CAPITAL,CONSTRUCTION SERVICES DIRECT LTD,124419
North East Lincolnshire Council,http://statistics.data.gov.uk/id/local-authority/00FC,Cap Economy Env And Housing,Cap Eeh Assets,Depot Investment,Cap Land/Build-Build Enh Wrk,Cap Land/Build-Build Enh Wrk,YA102,2/3/2014,257518,365,CAPITAL,MANTA BRC LTD,102230
North East Lincolnshire Council,http://statistics.data.gov.uk/id/local-authority/00FC,Cap Governance And Trans,Cap Transformation Project,Transformation Programme,Cap Intangible Assets,Cap Intangible Assets,YH101,2/28/2014,261343,7100,CAPITAL,NORTHGATE INFORMATION SOLUTIONS UK LTD,101841
North East Lincolnshire Council,http://statistics.data.gov.uk/id/local-authority/00FC,Cap Governance And Trans,Cap Transformation Project,Transformation Programme,Cap Intangible Assets,Cap Intangible Assets,YH101,2/28/2014,261342,1120,CAPITAL,NORTHGATE INFORMATION SOLUTIONS UK LTD,101841
North East Lincolnshire Council,http://statistics.data.gov.uk/id/local-authority/00FC,Other Corporate Budgets,Borrowing Costs,Misc Interest Bank Charges Etc,Miscellaneous Expenses,Card Processing Charges,LL106,2/17/2014,260335,342.48,REVENUE,ALLPAY LIMITED,112919
North East Lincolnshire Council,http://statistics.data.gov.uk/id/local-authority/00FC,Other Corporate Budgets,Borrowing Costs,Misc Interest Bank Charges Etc,Miscellaneous Expenses,Card Processing Charges,LL106,2/17/2014,259715,2935.84,REVENUE,ALLPAY LIMITED,112919
North East Lincolnshire Council,http://statistics.data.gov.uk/id/local-authority/00FC,Other Corporate Budgets,Other Corporate Budgets,Appropriations,Indirect Employee Expenses,Pension P/Ment Pension Inc Act,EB105,2/17/2014,260323,966.64,REVENUE,LINCOLNSHIRE COUNTY COUNCIL,101224
North East Lincolnshire Council,http://statistics.data.gov.uk/id/local-authority/00FC,People,Early Intervention,Integrated Youth Services,Contributions To Provisions,Contributions - Other,LK103,2/20/2014,261414,432,REVENUE,STREET BEAT DANCE ACADEMY,122443
North East Lincolnshire Council,http://statistics.data.gov.uk/id/local-authority/00FC,People,Early Intervention,Integrated Youth Services,Miscellaneous Expenses,Activities - Service Users,LL114,2/10/2014,256312,5000,REVENUE,GET HOOKED ON POSITIVE ACTIVITIES,111758
North East Lincolnshire Council,http://statistics.data.gov.uk/id/local-authority/00FC,People,Early Intervention,Integrated Youth Services,Indirect Employee Expenses,Staff Training,EB122,2/28/2014,262502,795,REVENUE,YOUNG ADVISORS COMPANY LTD,106899
North East Lincolnshire Council,http://statistics.data.gov.uk/id/local-authority/00FC,People,Early Intervention,Integrated Youth Services,Indirect Employee Expenses,Staff Training,EB122,2/18/2014,260700,6400,REVENUE,SPARK,119341
North East Lincolnshire Council,http://statistics.data.gov.uk/id/local-authority/00FC,People,Early Intervention,Integrated Youth Services,Direct Employee Expenses,Agency Staff,EA105,2/24/2014,262277,1284.64,REVENUE,VOLUNTARY ACTION NORTH EAST LINCOLNSHIRE,103631
North East Lincolnshire Council,http://statistics.data.gov.uk/id/local-authority/00FC,People,Early Intervention,Integrated Youth Services,Cleaning And Domestic Supplies,Cleaning - Services,GH102,2/6/2014,258272,308.8,REVENUE,FUTURE CLEANING SERVICES LTD,102557
North East Lincolnshire Council,http://statistics.data.gov.uk/id/local-authority/00FC,People,Early Intervention,Integrated Youth Services,Equip / Furniture / Materials,Furniture - Purchase,LA105,2/10/2014,258280,799.98,REVENUE,LYRECO UK LIMITED,101120
North East Lincolnshire Council,http://statistics.data.gov.uk/id/local-authority/00FC,People,Early Intervention,Childrens Health Provision,Rents,Rent,GC101,2/6/2014,258012,715,REVENUE,GRIMSBY CENTRAL HALL TRUST,100882
North East Lincolnshire Council,http://statistics.data.gov.uk/id/local-authority/00FC,People,Early Intervention,Childrens Health Provision,Rents,Rent,GC101,2/18/2014,259762,715,REVENUE,GRIMSBY CENTRAL HALL TRUST,100882
North East Lincolnshire Council,http://statistics.data.gov.uk/id/local-authority/00FC,People,Early Intervention,Childrens Health Provision,Print Stationery / Gen Off Exp,Printing And Stationery,LD103,2/20/2014,261394,379.19,REVENUE,TWOFOLD MAILING LTD,105163
North East Lincolnshire Council,http://statistics.data.gov.uk/id/local-authority/00FC,People,Early Intervention,Childrens Health Provision,Communications And Computing,Postage,LF111,2/13/2014,258339,250,REVENUE,LYRECO UK LIMITED,101120
North East Lincolnshire Council,http://statistics.data.gov.uk/id/local-authority/00FC,People,Early Intervention,Childrens Health Provision,Communications And Computing,Postage,LF111,2/17/2014,260027,250,REVENUE,LYRECO UK LIMITED,101120
North East Lincolnshire Council,http://statistics.data.gov.uk/id/local-authority/00FC,People,Early Intervention,Childrens Centre Development,Rep Alterations Maint Building,Buildings - Repairs And Maint,GA102,2/20/2014,261409,438.28,REVENUE,DORMA UK LIMITED,107806
North East Lincolnshire Council,http://statistics.data.gov.uk/id/local-authority/00FC,People,Early Intervention,Childrens Centre Development,Rep Alterations Maint Building,Buildings - Repairs And Maint,GA102,2/27/2014,262862,2420,REVENUE,ETON-LINCS LIMITED,101510
North East Lincolnshire Council,http://statistics.data.gov.uk/id/local-authority/00FC,People,Early Intervention,Childrens Centre Development,Energy Costs,Gas,GB101,2/24/2014,261836,2132.62,REVENUE,BRITISH GAS TRADING LTD,101507
North East Lincolnshire Council,http://statistics.data.gov.uk/id/local-authority/00FC,People,Early Intervention,Childrens Centre Development,Cleaning And Domestic Supplies,Cleaning - Services,GH102,2/3/2014,257328,529,REVENUE,FUTURE CLEANING SERVICES LTD,102557
North East Lincolnshire Council,http://statistics.data.gov.uk/id/local-authority/00FC,People,Early Intervention,Childrens Centre Development,Other Agencies,Further Ed Emp & Training,PJ130,2/27/2014,262870,399.8,REVENUE,MOISERS (GRIMSBY) LTD,100746
North East Lincolnshire Council,http://statistics.data.gov.uk/id/local-authority/00FC,People,Early Intervention,Childrens Centre Development,Rep Alterations Maint Building,Buildings - Repairs And Maint,GA102,2/11/2014,259224,560.3,REVENUE,EXCELL ELECTRICAL CONTRACTORS,100601
North East Lincolnshire Council,http://statistics.data.gov.uk/id/local-authority/00FC,People,Early Intervention,Childrens Centre Development,Cleaning And Domestic Supplies,Cleaning - Services,GH102,2/17/2014,259683,541,REVENUE,EASY CLEAN MARSHCHAPEL LTD,104531
North East Lincolnshire Council,http://statistics.data.gov.uk/id/local-authority/00FC,People,Early Intervention,Childrens Centre Development,Equip / Furniture / Materials,Non-Teaching Resources,LA118,2/20/2014,260275,600,REVENUE,FAMILY LINKS,101506
North East Lincolnshire Council,http://statistics.data.gov.uk/id/local-authority/00FC,People,Early Intervention,Childrens Centre Development,Communications And Computing,Computer H/Ware - Purchases,LF105,2/28/2014,259241,1818.84,REVENUE,SPECIALIST COMPUTER CENTRES PLC,110715
North East Lincolnshire Council,http://statistics.data.gov.uk/id/local-authority/00FC,People,Early Intervention,Childrens Centre Development,Private Contractors,Third Party Prov - Private,PH101,2/10/2014,258321,374.4,REVENUE,LYRECO UK LIMITED,101120
North East Lincolnshire Council,http://statistics.data.gov.uk/id/local-authority/00FC,People,Early Intervention,Childrens Centre Development,Private Contractors,Third Party Prov - Private,PH101,2/17/2014,259901,562,REVENUE,N LINCS & GOOLE HOSPITALS NHS,111074
North East Lincolnshire Council,http://statistics.data.gov.uk/id/local-authority/00FC,People,Early Intervention,Childrens Centre Development,Private Contractors,Third Party Prov - Private,PH101,2/6/2014,258690,8844,REVENUE,N LINCS & GOOLE HOSPITALS NHS,111074
North East Lincolnshire Council,http://statistics.data.gov.uk/id/local-authority/00FC,People,Early Intervention,Childrens Centre Development,Private Contractors,Third Party Prov - Private,PH101,2/4/2014,257544,6684.43,REVENUE,N LINCS & GOOLE HOSPITALS NHS,111074
North East Lincolnshire Council,http://statistics.data.gov.uk/id/local-authority/00FC,People,Early Intervention,Childrens Centre Development,Energy Costs,Gas,GB101,2/17/2014,259774,565.94,REVENUE,MACAULAY PRIMARY ACADEMY,112680
North East Lincolnshire Council,http://statistics.data.gov.uk/id/local-authority/00FC,People,Early Intervention,Childrens Centre Development,Other Agencies,Child Care Payments,PJ104,2/17/2014,259750,505.75,REVENUE,MOISERS (GRIMSBY) LTD,100746
North East Lincolnshire Council,http://statistics.data.gov.uk/id/local-authority/00FC,People,Early Intervention,Childrens Centre Development,Other Agencies,Child Care Payments,PJ104,2/20/2014,260789,378,REVENUE,ORMISTON SOUTH PARADE ACADEMY,111750
North East Lincolnshire Council,http://statistics.data.gov.uk/id/local-authority/00FC,People,Early Intervention,Childrens Centre Development,Other Agencies,Child Care Payments,PJ104,2/24/2014,260792,324,REVENUE,ORMISTON SOUTH PARADE ACADEMY,111750
North East Lincolnshire Council,http://statistics.data.gov.uk/id/local-authority/00FC,People,Early Intervention,Childrens Centre Development,Other Agencies,Child Care Payments,PJ104,2/13/2014,260196,638.53,REVENUE,PRE SCHOOL LEARNING ALLIANCE,101437
North East Lincolnshire Council,http://statistics.data.gov.uk/id/local-authority/00FC,People,Early Intervention,Childrens Centre Development,Other Agencies,Child Care Payments,PJ104,2/18/2014,260807,1500,REVENUE,TESCO STORES LIMITED,102576
North East Lincolnshire Council,http://statistics.data.gov.uk/id/local-authority/00FC,People,Early Intervention,Childrens Centre Development,Rep Alterations Maint Building,Buildings - Repairs And Maint,GA102,2/24/2014,261853,320,REVENUE,ETON-LINCS LIMITED,101510
North East Lincolnshire Council,http://statistics.data.gov.uk/id/local-authority/00FC,People,Early Intervention,Childrens Centre Development,Energy Costs,Gas,GB101,2/4/2014,257752,-59.93,REVENUE,BRITISH GAS TRADING LTD,101507
North East Lincolnshire Council,http://statistics.data.gov.uk/id/local-authority/00FC,People,Early Intervention,Childrens Centre Development,Energy Costs,Gas,GB101,2/4/2014,257648,-86.75,REVENUE,BRITISH GAS TRADING LTD,101507
North East Lincolnshire Council,http://statistics.data.gov.uk/id/local-authority/00FC,People,Early Intervention,Childrens Centre Development,Energy Costs,Gas,GB101,2/4/2014,257755,-209.38,REVENUE,BRITISH GAS TRADING LTD,101507
North East Lincolnshire Council,http://statistics.data.gov.uk/id/local-authority/00FC,People,Early Intervention,Childrens Centre Development,Energy Costs,Gas,GB101,2/4/2014,257753,-92.72,REVENUE,BRITISH GAS TRADING LTD,101507
North East Lincolnshire Council,http://statistics.data.gov.uk/id/local-authority/00FC,People,Early Intervention,Childrens Centre Development,Rep Alterations Maint Building,Buildings - Repairs And Maint,GA102,2/11/2014,259113,797,REVENUE,KES BUILDING MAINTENANCE LIMITED,100786
North East Lincolnshire Council,http://statistics.data.gov.uk/id/local-authority/00FC,People,Early Intervention,Childrens Centre Development,Rep Alterations Maint Building,Buildings - Repairs And Maint,GA102,2/24/2014,261867,320,REVENUE,ETON-LINCS LIMITED,101510
North East Lincolnshire Council,http://statistics.data.gov.uk/id/local-authority/00FC,People,Early Intervention,Childrens Centre Development,Rep Alterations Maint Building,Buildings - Repairs And Maint,GA102,2/13/2014,259225,281.83,REVENUE,HAITH'S HEATING LTD,101342
North East Lincolnshire Council,http://statistics.data.gov.uk/id/local-authority/00FC,People,Early Intervention,Childrens Centre Development,Energy Costs,Gas,GB101,2/13/2014,260222,488.72,REVENUE,BRITISH GAS TRADING LTD,101507
North East Lincolnshire Council,http://statistics.data.gov.uk/id/local-authority/00FC,People,Early Intervention,Childrens Centre Development,Equip / Furniture / Materials,Non-Teaching Resources,LA118,2/10/2014,258549,296.99,REVENUE,MAKE LEARN PLAY LTD,108696
North East Lincolnshire Council,http://statistics.data.gov.uk/id/local-authority/00FC,People,Early Intervention,Childrens Centre Development,Other Agencies,Child Care Payments,PJ104,2/4/2014,257591,615.61,REVENUE,PRE SCHOOL LEARNING ALLIANCE,101437
North East Lincolnshire Council,http://statistics.data.gov.uk/id/local-authority/00FC,People,Early Intervention,Childrens Centre Development,Other Agencies,Child Care Payments,PJ104,2/27/2014,262918,940.47,REVENUE,PRE SCHOOL LEARNING ALLIANCE,101437
North East Lincolnshire Council,http://statistics.data.gov.uk/id/local-authority/00FC,People,Early Intervention,Childrens Centre Development,Rep Alterations Maint Building,Buildings - Repairs And Maint,GA102,2/24/2014,261827,296.02,REVENUE,FRED MARGARSON LTD,100592
North East Lincolnshire Council,http://statistics.data.gov.uk/id/local-authority/00FC,People,Early Intervention,Childrens Centre Development,Rep Alterations Maint Building,Buildings - Repairs And Maint,GA102,2/24/2014,261851,320,REVENUE,ETON-LINCS LIMITED,101510
North East Lincolnshire Council,http://statistics.data.gov.uk/id/local-authority/00FC,People,Early Intervention,Childrens Centre Development,Rep Alterations Maint Building,Buildings - Repairs And Maint,GA102,2/13/2014,259228,1845,REVENUE,NEWBY LEISURE LTD,101227
North East Lincolnshire Council,http://statistics.data.gov.uk/id/local-authority/00FC,People,Early Intervention,Childrens Centre Development,Water Services,Water,GE101,2/20/2014,261430,272.19,REVENUE,EASTFIELD PRIMARY ACADEMY,121907
North East Lincolnshire Council,http://statistics.data.gov.uk/id/local-authority/00FC,People,Early Intervention,Childrens Centre Development,Other Agencies,Educational Visits,PJ152,2/20/2014,261684,295,REVENUE,AMVALE LIMITED,101030
North East Lincolnshire Council,http://statistics.data.gov.uk/id/local-authority/00FC,People,Early Intervention,Childrens Centre Development,Direct Employee Expenses,Agency Staff,EA105,2/6/2014,258674,375.44,REVENUE,THRUNSCOE PRIMARY SCHOOL FUND,102297
North East Lincolnshire Council,http://statistics.data.gov.uk/id/local-authority/00FC,People,Early Intervention,Childrens Centre Development,Direct Employee Expenses,Agency Staff,EA105,2/6/2014,258674,596.43,REVENUE,THRUNSCOE PRIMARY SCHOOL FUND,102297
North East Lincolnshire Council,http://statistics.data.gov.uk/id/local-authority/00FC,People,Early Intervention,Childrens Centre Development,Equip / Furniture / Materials,Non-Teaching Resources,LA118,2/3/2014,254902,725,REVENUE,ROMPA INTERNATIONAL,100790
North East Lincolnshire Council,http://statistics.data.gov.uk/id/local-authority/00FC,People,Early Intervention,Childrens Centre Development,Other Agencies,Child Care Payments,PJ104,2/17/2014,259687,1278.75,REVENUE,CLEETHORPES CHILDCARE,101591
North East Lincolnshire Council,http://statistics.data.gov.uk/id/local-authority/00FC,People,Early Intervention,Childrens Centre Development,Rep Alterations Maint Building,Buildings - Repairs And Maint,GA102,2/17/2014,257340,-6.9,REVENUE,PETER HOGARTH & SONS LTD,100815
North East Lincolnshire Council,http://statistics.data.gov.uk/id/local-authority/00FC,People,Early Intervention,Childrens Centre Development,Cleaning And Domestic Supplies,Cleaning - Services,GH102,2/24/2014,261756,690.08,REVENUE,FUTURE CLEANING SERVICES LTD,102557
North East Lincolnshire Council,http://statistics.data.gov.uk/id/local-authority/00FC,People,Early Intervention,Childrens Centre Development,Cleaning And Domestic Supplies,Cleaning - Services,GH102,2/24/2014,261758,860,REVENUE,FUTURE CLEANING SERVICES LTD,102557
North East Lincolnshire Council,http://statistics.data.gov.uk/id/local-authority/00FC,People,Early Intervention,Childrens Centre Development,Energy Costs,Gas,GB101,2/20/2014,260954,523.38,REVENUE,OLD CLEE PRIMARY ACADEMY,119822
North East Lincolnshire Council,http://statistics.data.gov.uk/id/local-authority/00FC,People,Early Intervention,Childrens Centre Development,Water Services,Water,GE101,2/24/2014,262274,435,REVENUE,OLD CLEE PRIMARY ACADEMY,119822
North East Lincolnshire Council,http://statistics.data.gov.uk/id/local-authority/00FC,People,Early Intervention,Childrens Centre Development,Equip / Furniture / Materials,Equipment - Purchase,LA101,2/6/2014,246377,354.35,REVENUE,HEALTH EDCO,119207
North East Lincolnshire Council,http://statistics.data.gov.uk/id/local-authority/00FC,People,Early Intervention,Childrens Centre Development,Equip / Furniture / Materials,Equipment - Purchase,LA101,2/6/2014,257726,860,REVENUE,FIRST CORPORATE CLOTHING LTD,102799
North East Lincolnshire Council,http://statistics.data.gov.uk/id/local-authority/00FC,People,Early Intervention,Childrens Centre Development,Equip / Furniture / Materials,Equipment - Purchase,LA101,2/27/2014,262691,440.84,REVENUE,THE SERVICE CENTRE (GRIMSBY) LTD,107715
North East Lincolnshire Council,http://statistics.data.gov.uk/id/local-authority/00FC,People,Early Intervention,Youth Offending Team,Public Transport,Public Transport - Employees,JD101,2/27/2014,262924,-26.86,REVENUE,NYS CORPORATE,102444
North East Lincolnshire Council,http://statistics.data.gov.uk/id/local-authority/00FC,People,Early Intervention,Youth Offending Team,Public Transport,Public Transport - Employees,JD101,2/24/2014,261765,279.22,REVENUE,NYS CORPORATE,102444
North East Lincolnshire Council,http://statistics.data.gov.uk/id/local-authority/00FC,People,Early Intervention,Youth Offending Team,Car Allowances,Travel - Employees,JF101,2/24/2014,262184,2250,REVENUE,VOLUNTARY ACTION NORTH EAST LINCOLNSHIRE,103631
North East Lincolnshire Council,http://statistics.data.gov.uk/id/local-authority/00FC,People,Early Intervention,Child Protection / Safeguardin,Direct Employee Expenses,Agency Staff,EA105,2/25/2014,262459,542.46,REVENUE,ESP LTD,101231
North East Lincolnshire Council,http://statistics.data.gov.uk/id/local-authority/00FC,People,Early Intervention,Child Protection / Safeguardin,Private Contractors,Third Party Prov - Private,PH101,2/20/2014,261405,1400,REVENUE,JENNY MYERS CONSULTANCY LTD,122269
North East Lincolnshire Council,http://statistics.data.gov.uk/id/local-authority/00FC,People,Early Intervention,Child Protection / Safeguardin,Private Contractors,Third Party Prov - Private,PH101,2/20/2014,261403,1100,REVENUE,SCIE-SOCIAL CARE INSTITUTE FOR EXCELLENCE,124578
North East Lincolnshire Council,http://statistics.data.gov.uk/id/local-authority/00FC,People,Early Intervention,Head Of Child Hlth - Fam Supp,Rents,Service Charge,GC102,2/27/2014,262946,439.83,REVENUE,E-ON (GAS),101983
North East Lincolnshire Council,http://statistics.data.gov.uk/id/local-authority/00FC,People,Early Intervention,Head Of Child Hlth - Fam Supp,Rents,Service Charge,GC102,2/27/2014,262852,712.86,REVENUE,NPOWER LIMITED,101414
North East Lincolnshire Council,http://statistics.data.gov.uk/id/local-authority/00FC,People,Early Intervention,Head Of Child Hlth - Fam Supp,Rents,Service Charge,GC102,2/18/2014,260686,2584.71,REVENUE,WEELSBY VIEW HEALTH CENTRE,101761
North East Lincolnshire Council,http://statistics.data.gov.uk/id/local-authority/00FC,People,Early Intervention,Head Of Child Hlth - Fam Supp,Rents,Service Charge,GC102,2/20/2014,260684,256.32,REVENUE,WEELSBY VIEW HEALTH CENTRE,101761
North East Lincolnshire Council,http://statistics.data.gov.uk/id/local-authority/00FC,People,Adult Serv & Hlth Improvement,Supporting People,Other Agencies,Third Pp - Block Gross,PJ103,2/25/2014,262664,REDACTED COMMERCIALLY SENSITIVE,REVENUE,DOORSTEP,100310
North East Lincolnshire Council,http://statistics.data.gov.uk/id/local-authority/00FC,People,Adult Serv & Hlth Improvement,Supporting People,Other Agencies,Third Pp - Block Gross,PJ103,2/25/2014,262662,REDACTED COMMERCIALLY SENSITIVE,REVENUE,DOORSTEP,100310
North East Lincolnshire Council,http://statistics.data.gov.uk/id/local-authority/00FC,People,Adult Serv & Hlth Improvement,Supporting People,Other Agencies,Third Pp - Block Gross,PJ103,2/25/2014,262663,REDACTED COMMERCIALLY SENSITIVE,REVENUE,DOORSTEP,100310
North East Lincolnshire Council,http://statistics.data.gov.uk/id/local-authority/00FC,People,Adult Serv & Hlth Improvement,Supporting People,Other Agencies,Third Pp - Block Gross,PJ103,2/25/2014,262674,REDACTED COMMERCIALLY SENSITIVE,REVENUE,YORK HOUSING ASSOCIATION LTD,100341
North East Lincolnshire Council,http://statistics.data.gov.uk/id/local-authority/00FC,People,Adult Serv & Hlth Improvement,Supporting People,Other Agencies,Third Pp - Block Gross,PJ103,2/25/2014,262660,REDACTED COMMERCIALLY SENSITIVE,REVENUE,THE SALVATION ARMY,100309
North East Lincolnshire Council,http://statistics.data.gov.uk/id/local-authority/00FC,People,Adult Serv & Hlth Improvement,Supporting People,Other Agencies,Third Pp - Block Gross,PJ103,2/25/2014,262659,REDACTED COMMERCIALLY SENSITIVE,REVENUE,THE SALVATION ARMY,100309
North East Lincolnshire Council,http://statistics.data.gov.uk/id/local-authority/00FC,People,Adult Serv & Hlth Improvement,Supporting People,Other Agencies,Third Pp - Block Gross,PJ103,2/25/2014,262670,REDACTED COMMERCIALLY SENSITIVE,REVENUE,HOUSING 21,100320
North East Lincolnshire Council,http://statistics.data.gov.uk/id/local-authority/00FC,People,Adult Serv & Hlth Improvement,Supporting People,Other Agencies,Third Pp - Block Gross,PJ103,2/25/2014,262668,REDACTED COMMERCIALLY SENSITIVE,REVENUE,CARE LTD,100314
North East Lincolnshire Council,http://statistics.data.gov.uk/id/local-authority/00FC,People,Adult Serv & Hlth Improvement,Supporting People,Other Agencies,Third Pp - Block Gross,PJ103,2/25/2014,262673,REDACTED COMMERCIALLY SENSITIVE,REVENUE,ANCHOR TRUST,100327
North East Lincolnshire Council,http://statistics.data.gov.uk/id/local-authority/00FC,People,Adult Serv & Hlth Improvement,Supporting People,Other Agencies,Third Pp - Block Gross,PJ103,2/25/2014,262672,REDACTED COMMERCIALLY SENSITIVE,REVENUE,WOMENS AID,100326
North East Lincolnshire Council,http://statistics.data.gov.uk/id/local-authority/00FC,People,Adult Serv & Hlth Improvement,Supporting People,Other Agencies,Third Pp - Block Gross,PJ103,2/25/2014,262656,REDACTED COMMERCIALLY SENSITIVE,REVENUE,GRIMSBY AND CLEETHORPES YMCA,100305
North East Lincolnshire Council,http://statistics.data.gov.uk/id/local-authority/00FC,People,Adult Serv & Hlth Improvement,Supporting People,Other Agencies,Third Pp - Block Gross,PJ103,2/25/2014,262680,REDACTED COMMERCIALLY SENSITIVE,REVENUE,LONGHURST AND HAVELOK HOMES LTD,100342
North East Lincolnshire Council,http://statistics.data.gov.uk/id/local-authority/00FC,People,Adult Serv & Hlth Improvement,Supporting People,Other Agencies,Third Pp - Block Gross,PJ103,2/25/2014,262655,REDACTED COMMERCIALLY SENSITIVE,REVENUE,GRIMSBY AND CLEETHORPES YMCA,100305
North East Lincolnshire Council,http://statistics.data.gov.uk/id/local-authority/00FC,People,Adult Serv & Hlth Improvement,Supporting People,Other Agencies,Third Pp - Block Gross,PJ103,2/25/2014,262683,REDACTED COMMERCIALLY SENSITIVE,REVENUE,LONGHURST AND HAVELOK HOMES LTD,100342
North East Lincolnshire Council,http://statistics.data.gov.uk/id/local-authority/00FC,People,Adult Serv & Hlth Improvement,Supporting People,Other Agencies,Third Pp - Block Gross,PJ103,2/25/2014,262677,REDACTED COMMERCIALLY SENSITIVE,REVENUE,LONGHURST AND HAVELOK HOMES LTD,100342
North East Lincolnshire Council,http://statistics.data.gov.uk/id/local-authority/00FC,People,Adult Serv & Hlth Improvement,Supporting People,Other Agencies,Third Pp - Block Gross,PJ103,2/25/2014,262679,REDACTED COMMERCIALLY SENSITIVE,REVENUE,LONGHURST AND HAVELOK HOMES LTD,100342
North East Lincolnshire Council,http://statistics.data.gov.uk/id/local-authority/00FC,People,Adult Serv & Hlth Improvement,Supporting People,Other Agencies,Third Pp - Block Gross,PJ103,2/25/2014,262676,REDACTED COMMERCIALLY SENSITIVE,REVENUE,LONGHURST AND HAVELOK HOMES LTD,100342
North East Lincolnshire Council,http://statistics.data.gov.uk/id/local-authority/00FC,People,Adult Serv & Hlth Improvement,Supporting People,Other Agencies,Third Pp - Block Gross,PJ103,2/25/2014,262681,REDACTED COMMERCIALLY SENSITIVE,REVENUE,LONGHURST AND HAVELOK HOMES LTD,100342
North East Lincolnshire Council,http://statistics.data.gov.uk/id/local-authority/00FC,People,Adult Serv & Hlth Improvement,Supporting People,Other Agencies,Third Pp - Block Gross,PJ103,2/25/2014,262675,REDACTED COMMERCIALLY SENSITIVE,REVENUE,LONGHURST AND HAVELOK HOMES LTD,100342
North East Lincolnshire Council,http://statistics.data.gov.uk/id/local-authority/00FC,People,Adult Serv & Hlth Improvement,Supporting People,Other Agencies,Third Pp - Block Gross,PJ103,2/25/2014,262682,REDACTED COMMERCIALLY SENSITIVE,REVENUE,LONGHURST AND HAVELOK HOMES LTD,100342
North East Lincolnshire Council,http://statistics.data.gov.uk/id/local-authority/00FC,People,Adult Serv & Hlth Improvement,Supporting People,Other Agencies,Third Pp - Block Gross,PJ103,2/25/2014,262669,REDACTED COMMERCIALLY SENSITIVE,REVENUE,HOUSING 21,100320
North East Lincolnshire Council,http://statistics.data.gov.uk/id/local-authority/00FC,People,Adult Serv & Hlth Improvement,Supporting People,Other Agencies,Third Pp - Block Gross,PJ103,2/25/2014,262684,REDACTED COMMERCIALLY SENSITIVE,REVENUE,OPEN DOOR,103147
North East Lincolnshire Council,http://statistics.data.gov.uk/id/local-authority/00FC,People,Adult Serv & Hlth Improvement,Supporting People,Other Agencies,Third Pp - Block Gross,PJ103,2/25/2014,262678,REDACTED COMMERCIALLY SENSITIVE,REVENUE,LONGHURST AND HAVELOK HOMES LTD,100342
North East Lincolnshire Council,http://statistics.data.gov.uk/id/local-authority/00FC,People,Adult Serv & Hlth Improvement,Supporting People,Other Agencies,Third Pp - Block Gross,PJ103,2/25/2014,262671,REDACTED COMMERCIALLY SENSITIVE,REVENUE,WOMENS AID,100326
North East Lincolnshire Council,http://statistics.data.gov.uk/id/local-authority/00FC,People,Adult Serv & Hlth Improvement,Supporting People,Other Agencies,Third Pp - Block Gross,PJ103,2/25/2014,262685,REDACTED COMMERCIALLY SENSITIVE,REVENUE,SANCTUARY HOUSING ASSOCIATION,103289
North East Lincolnshire Council,http://statistics.data.gov.uk/id/local-authority/00FC,People,Adult Serv & Hlth Improvement,Supporting People,Other Agencies,Third Pp - Block Gross,PJ103,2/25/2014,262686,REDACTED COMMERCIALLY SENSITIVE,REVENUE,SANCTUARY HOUSING ASSOCIATION,103289
North East Lincolnshire Council,http://statistics.data.gov.uk/id/local-authority/00FC,People,Adult Serv & Hlth Improvement,Supporting People,Other Agencies,Third Pp - Block Gross,PJ103,2/25/2014,262661,REDACTED COMMERCIALLY SENSITIVE,REVENUE,DOORSTEP,100310
North East Lincolnshire Council,http://statistics.data.gov.uk/id/local-authority/00FC,People,Adult Serv & Hlth Improvement,Supporting People,Other Agencies,Third Pp - Block Gross,PJ103,2/25/2014,262665,REDACTED COMMERCIALLY SENSITIVE,REVENUE,DOORSTEP,100310
North East Lincolnshire Council,http://statistics.data.gov.uk/id/local-authority/00FC,People,Adult Serv & Hlth Improvement,Supporting People,Other Agencies,Third Pp - Block Gross,PJ103,2/25/2014,262667,REDACTED COMMERCIALLY SENSITIVE,REVENUE,HUMBERCARE LTD,100311
North East Lincolnshire Council,http://statistics.data.gov.uk/id/local-authority/00FC,People,Adult Serv & Hlth Improvement,Supporting People,Other Agencies,Third Pp - Block Gross,PJ103,2/25/2014,262666,REDACTED COMMERCIALLY SENSITIVE,REVENUE,HUMBERCARE LTD,100311
North East Lincolnshire Council,http://statistics.data.gov.uk/id/local-authority/00FC,People,Adult Serv & Hlth Improvement,Supporting People,Other Agencies,Third Pp - Block Subsidy,PJ102,2/18/2014,261283,REDACTED COMMERCIALLY SENSITIVE,REVENUE,HUMBERCARE LTD,100311
North East Lincolnshire Council,http://statistics.data.gov.uk/id/local-authority/00FC,People,Adult Serv & Hlth Improvement,Supporting People,Other Agencies,Third Pp - Block Subsidy,PJ102,2/18/2014,261284,REDACTED COMMERCIALLY SENSITIVE,REVENUE,HICA,100319
North East Lincolnshire Council,http://statistics.data.gov.uk/id/local-authority/00FC,People,Adult Serv & Hlth Improvement,Supporting People,Other Agencies,Third Pp - Block Subsidy,PJ102,2/18/2014,261285,REDACTED COMMERCIALLY SENSITIVE,REVENUE,HOUSING & SUPPORT SOLUTIONS,100321
North East Lincolnshire Council,http://statistics.data.gov.uk/id/local-authority/00FC,People,Adult Serv & Hlth Improvement,Supporting People,Other Agencies,Third Pp - Block Subsidy,PJ102,2/18/2014,261287,REDACTED COMMERCIALLY SENSITIVE,REVENUE,LONGHURST AND HAVELOK HOMES LTD,100342
North East Lincolnshire Council,http://statistics.data.gov.uk/id/local-authority/00FC,People,Adult Serv & Hlth Improvement,Supporting People,Other Agencies,Third Pp - Block Subsidy,PJ102,2/18/2014,261288,REDACTED COMMERCIALLY SENSITIVE,REVENUE,NAVIGO,104262
North East Lincolnshire Council,http://statistics.data.gov.uk/id/local-authority/00FC,People,Adult Serv & Hlth Improvement,Supporting People,Other Agencies,Third Pp - Block Subsidy,PJ102,2/18/2014,261289,REDACTED COMMERCIALLY SENSITIVE,REVENUE,CARE PLUS GROUP,106467
North East Lincolnshire Council,http://statistics.data.gov.uk/id/local-authority/00FC,People,Adult Serv & Hlth Improvement,Supporting People,Other Agencies,Third Pp - Block Subsidy,PJ102,2/18/2014,261290,REDACTED COMMERCIALLY SENSITIVE,REVENUE,CREATIVE SUPPORT LTD,107198
North East Lincolnshire Council,http://statistics.data.gov.uk/id/local-authority/00FC,People,Adult Serv & Hlth Improvement,Supporting People,Other Agencies,Third Pp - Block Subsidy,PJ102,2/6/2014,256790,REDACTED COMMERCIALLY SENSITIVE,REVENUE,NHS NORTH EAST LINCOLNSHIRE CCG,121549
North East Lincolnshire Council,http://statistics.data.gov.uk/id/local-authority/00FC,People,Adult Serv & Hlth Improvement,Directors Public Health,Car Allowances,Travel - Employees,JF101,2/17/2014,213129,338.2,REVENUE,REDACTED PERSONAL INFORMATION,REDACTED PERSONAL INFORMATION
North East Lincolnshire Council,http://statistics.data.gov.uk/id/local-authority/00FC,People,Adult Serv & Hlth Improvement,Directors Public Health,Contributions To Provisions,Contributions - Third Sector,LK102,2/10/2014,258970,24295.1,REVENUE,GREEN FUTURES GREATER GRIMSBY LTD,113484
North East Lincolnshire Council,http://statistics.data.gov.uk/id/local-authority/00FC,People,Adult Serv & Hlth Improvement,Directors Public Health,Contributions To Provisions,Contributions - Third Sector,LK102,2/10/2014,258969,75000,REVENUE,NE LINCOLNSHIRE CLINICAL COMMISSIONING GROUP,121624
North East Lincolnshire Council,http://statistics.data.gov.uk/id/local-authority/00FC,People,Adult Serv & Hlth Improvement,Directors Public Health,Contributions To Provisions,Contributions - Third Sector,LK102,2/6/2014,258490,4553.28,REVENUE,WEST MARSH DEVELOPMENT TRUST,105846
North East Lincolnshire Council,http://statistics.data.gov.uk/id/local-authority/00FC,People,Adult Serv & Hlth Improvement,Directors Public Health,Private Contractors,Third Party Prov - Private,PH101,2/11/2014,258408,3000,REVENUE,WAKEFIELD MD COUNCIL,100967
North East Lincolnshire Council,http://statistics.data.gov.uk/id/local-authority/00FC,People,Adult Serv & Hlth Improvement,Directors Public Health,Private Contractors,Contract Payments,PH105,2/24/2014,260784,REDACTED COMMERCIALLY SENSITIVE,REVENUE,VIRGIN CARE SERVICES LTD,120538
North East Lincolnshire Council,http://statistics.data.gov.uk/id/local-authority/00FC,People,Adult Serv & Hlth Improvement,Directors Public Health,Private Contractors,Third Party Prov - Private,PH101,2/20/2014,260783,285,REVENUE,PATHVALLEY LTD T/A COHEN'S CHEMIST,103963
North East Lincolnshire Council,http://statistics.data.gov.uk/id/local-authority/00FC,People,Adult Serv & Hlth Improvement,Directors Public Health,Private Contractors,Third Party Prov - Private,PH101,2/20/2014,260782,278.02,REVENUE,ASDA PHARMACY,104011
North East Lincolnshire Council,http://statistics.data.gov.uk/id/local-authority/00FC,People,Adult Serv & Hlth Improvement,Directors Public Health,Private Contractors,Third Party Prov - Private,PH101,2/24/2014,260787,345.3,REVENUE,EA BROADBURN DISPENSING CHEMIST,101135
North East Lincolnshire Council,http://statistics.data.gov.uk/id/local-authority/00FC,People,Adult Serv & Hlth Improvement,Directors Public Health,Other Agencies,Contract Plus,PJ135,2/6/2014,258405,736,REVENUE,PASANTE HEALTHCARE LTD,103011
North East Lincolnshire Council,http://statistics.data.gov.uk/id/local-authority/00FC,People,Adult Serv & Hlth Improvement,Directors Public Health,Other Agencies,Health Charges,PJ131,2/11/2014,258409,REDACTED COMMERCIALLY SENSITIVE,REVENUE,VIRGIN CARE SERVICES LTD,120538
North East Lincolnshire Council,http://statistics.data.gov.uk/id/local-authority/00FC,People,Adult Serv & Hlth Improvement,Strategic Housing,Rents,Service Charge,GC102,2/18/2014,261207,255.63,REVENUE,ANGLIAN WATER,100508
North East Lincolnshire Council,http://statistics.data.gov.uk/id/local-authority/00FC,People,Adult Serv & Hlth Improvement,Strategic Housing,Rents,Rent,GC101,2/6/2014,258200,1400,REVENUE,REDACTED PERSONAL INFORMATION,REDACTED PERSONAL INFORMATION
North East Lincolnshire Council,http://statistics.data.gov.uk/id/local-authority/00FC,People,Adult Serv & Hlth Improvement,Strategic Housing,Rents,Rent,GC101,2/6/2014,258210,840,REVENUE,REDACTED PERSONAL INFORMATION,REDACTED PERSONAL INFORMATION
North East Lincolnshire Council,http://statistics.data.gov.uk/id/local-authority/00FC,People,Adult Serv & Hlth Improvement,Strategic Housing,Rents,Rent,GC101,2/6/2014,258221,520,REVENUE,REDACTED PERSONAL INFORMATION,REDACTED PERSONAL INFORMATION
North East Lincolnshire Council,http://statistics.data.gov.uk/id/local-authority/00FC,People,Adult Serv & Hlth Improvement,Strategic Housing,Rents,Rent,GC101,2/6/2014,258224,360,REVENUE,REDACTED PERSONAL INFORMATION,REDACTED PERSONAL INFORMATION
North East Lincolnshire Council,http://statistics.data.gov.uk/id/local-authority/00FC,People,Adult Serv & Hlth Improvement,Strategic Housing,Rents,Rent,GC101,2/10/2014,258195,450,REVENUE,REDACTED PERSONAL INFORMATION,REDACTED PERSONAL INFORMATION
North East Lincolnshire Council,http://statistics.data.gov.uk/id/local-authority/00FC,People,Adult Serv & Hlth Improvement,Strategic Housing,Rents,Rent,GC101,2/10/2014,258157,280,REVENUE,REDACTED PERSONAL INFORMATION,REDACTED PERSONAL INFORMATION
North East Lincolnshire Council,http://statistics.data.gov.uk/id/local-authority/00FC,People,Adult Serv & Hlth Improvement,Strategic Housing,Rents,Rent,GC101,2/10/2014,258194,450,REVENUE,REDACTED PERSONAL INFORMATION,REDACTED PERSONAL INFORMATION
North East Lincolnshire Council,http://statistics.data.gov.uk/id/local-authority/00FC,People,Adult Serv & Hlth Improvement,Strategic Housing,Rents,Rent,GC101,2/10/2014,258199,300,REVENUE,REDACTED PERSONAL INFORMATION,REDACTED PERSONAL INFORMATION
North East Lincolnshire Council,http://statistics.data.gov.uk/id/local-authority/00FC,People,Adult Serv & Hlth Improvement,Strategic Housing,Rents,Rent,GC101,2/10/2014,259054,612.5,REVENUE,REDACTED PERSONAL INFORMATION,REDACTED PERSONAL INFORMATION
North East Lincolnshire Council,http://statistics.data.gov.uk/id/local-authority/00FC,People,Adult Serv & Hlth Improvement,Strategic Housing,Rents,Rent,GC101,2/10/2014,259057,600,REVENUE,REDACTED PERSONAL INFORMATION,REDACTED PERSONAL INFORMATION
North East Lincolnshire Council,http://statistics.data.gov.uk/id/local-authority/00FC,People,Adult Serv & Hlth Improvement,Strategic Housing,Rents,Rent,GC101,2/11/2014,259537,408.33,REVENUE,REDACTED PERSONAL INFORMATION,REDACTED PERSONAL INFORMATION
North East Lincolnshire Council,http://statistics.data.gov.uk/id/local-authority/00FC,People,Adult Serv & Hlth Improvement,Strategic Housing,Rents,Rent,GC101,2/28/2014,262713,280,REVENUE,REDACTED PERSONAL INFORMATION,REDACTED PERSONAL INFORMATION
North East Lincolnshire Council,http://statistics.data.gov.uk/id/local-authority/00FC,People,Adult Serv & Hlth Improvement,Strategic Housing,Miscellaneous Income,Misc Income - Zero Vat 2,VG115,2/24/2014,262265,6978.8,REVENUE,NORTH EAST LINCOLNSHIRE COUNCIL,100894
North East Lincolnshire Council,http://statistics.data.gov.uk/id/local-authority/00FC,People,Adult Serv & Hlth Improvement,Strategic Housing,Contributions To Provisions,Bad Debt Provision,LK104,2/6/2014,258178,400,REVENUE,LOVELLE BACONS,103583
North East Lincolnshire Council,http://statistics.data.gov.uk/id/local-authority/00FC,People,Adult Serv & Hlth Improvement,Strategic Housing,Private Contractors,Third Party Prov - Private,PH101,2/6/2014,258233,2000,REVENUE,NRAM,124502
North East Lincolnshire Council,http://statistics.data.gov.uk/id/local-authority/00FC,People,Adult Serv & Hlth Improvement,Improved Health Operational,Equip / Furniture / Materials,Health & Safety Supplies,LA116,2/24/2014,262205,-1395.37,REVENUE,PRISM MEDICAL UK,119507
North East Lincolnshire Council,http://statistics.data.gov.uk/id/local-authority/00FC,People,Adult Serv & Hlth Improvement,Improved Health Operational,Equip / Furniture / Materials,Health & Safety Supplies,LA116,2/6/2014,258122,372.48,REVENUE,SUNRISE MEDICAL LTD,100990
North East Lincolnshire Council,http://statistics.data.gov.uk/id/local-authority/00FC,People,Adult Serv & Hlth Improvement,Improved Health Operational,Equip / Furniture / Materials,Health & Safety Supplies,LA116,2/27/2014,262875,1299.9,REVENUE,APOLLO HEALTHCARE TECHNOLOGIES LTD,122614
North East Lincolnshire Council,http://statistics.data.gov.uk/id/local-authority/00FC,People,Adult Serv & Hlth Improvement,Improved Health Operational,Equip / Furniture / Materials,Health & Safety Supplies,LA116,2/27/2014,262904,519.96,REVENUE,APOLLO HEALTHCARE TECHNOLOGIES LTD,122614
North East Lincolnshire Council,http://statistics.data.gov.uk/id/local-authority/00FC,People,Adult Serv & Hlth Improvement,Improved Health Operational,Equip / Furniture / Materials,Health & Safety Supplies,LA116,2/18/2014,258130,679,REVENUE,LISCLARE LTD,101785
North East Lincolnshire Council,http://statistics.data.gov.uk/id/local-authority/00FC,People,Adult Serv & Hlth Improvement,Improved Health Operational,Equip / Furniture / Materials,Health & Safety Supplies,LA116,2/17/2014,259270,310,REVENUE,PRISM MEDICAL UK,119507
North East Lincolnshire Council,http://statistics.data.gov.uk/id/local-authority/00FC,People,Adult Serv & Hlth Improvement,Improved Health Operational,Equip / Furniture / Materials,Health & Safety Supplies,LA116,2/6/2014,258002,399.44,REVENUE,PRISM MEDICAL UK,119507
North East Lincolnshire Council,http://statistics.data.gov.uk/id/local-authority/00FC,People,Adult Serv & Hlth Improvement,Improved Health Operational,Equip / Furniture / Materials,Health & Safety Supplies,LA116,2/20/2014,260621,621,REVENUE,THE HELPING HAND COMPANY (LEDBURY) LTD,101134
North East Lincolnshire Council,http://statistics.data.gov.uk/id/local-authority/00FC,People,Adult Serv & Hlth Improvement,Improved Health Operational,Equip / Furniture / Materials,Health & Safety Supplies,LA116,2/6/2014,257749,1645.6,REVENUE,SPECIALISED ORTHOTIC SERVICES LTD,110463
North East Lincolnshire Council,http://statistics.data.gov.uk/id/local-authority/00FC,People,Adult Serv & Hlth Improvement,Improved Health Operational,Equip / Furniture / Materials,Health & Safety Supplies,LA116,2/11/2014,258128,1695,REVENUE,BES REHAB LTD,109079
North East Lincolnshire Council,http://statistics.data.gov.uk/id/local-authority/00FC,People,Adult Serv & Hlth Improvement,Improved Health Operational,Equip / Furniture / Materials,Health & Safety Supplies,LA116,2/11/2014,258539,2487,REVENUE,R82 UK LTD,101710
North East Lincolnshire Council,http://statistics.data.gov.uk/id/local-authority/00FC,People,Adult Serv & Hlth Improvement,Improved Health Operational,Equip / Furniture / Materials,Health & Safety Supplies,LA116,2/6/2014,257548,782.48,REVENUE,PICKERINGS EUROPE LIMITED,100897
North East Lincolnshire Council,http://statistics.data.gov.uk/id/local-authority/00FC,People,Adult Serv & Hlth Improvement,Improved Health Operational,Equip / Furniture / Materials,Health & Safety Supplies,LA116,2/17/2014,259692,-3.23,REVENUE,PICKERINGS EUROPE LIMITED,100897
North East Lincolnshire Council,http://statistics.data.gov.uk/id/local-authority/00FC,People,Adult Serv & Hlth Improvement,Improved Health Operational,Equip / Furniture / Materials,Health & Safety Supplies,LA116,2/20/2014,261639,599.2,REVENUE,PICKERINGS EUROPE LIMITED,100897
North East Lincolnshire Council,http://statistics.data.gov.uk/id/local-authority/00FC,People,Adult Serv & Hlth Improvement,Improved Health Operational,Equip / Furniture / Materials,Health & Safety Supplies,LA116,2/20/2014,261637,823.9,REVENUE,PICKERINGS EUROPE LIMITED,100897
North East Lincolnshire Council,http://statistics.data.gov.uk/id/local-authority/00FC,People,Adult Serv & Hlth Improvement,Improved Health Operational,Equip / Furniture / Materials,Health & Safety Supplies,LA116,2/10/2014,259085,1425,REVENUE,SIDHIL LTD,101166
North East Lincolnshire Council,http://statistics.data.gov.uk/id/local-authority/00FC,People,Adult Serv & Hlth Improvement,Improved Health Operational,Equip / Furniture / Materials,Health & Safety Supplies,LA116,2/10/2014,259084,1425,REVENUE,SIDHIL LTD,101166
North East Lincolnshire Council,http://statistics.data.gov.uk/id/local-authority/00FC,People,Adult Serv & Hlth Improvement,Improved Health Operational,Equip / Furniture / Materials,Health & Safety Supplies,LA116,2/17/2014,260017,2750,REVENUE,ULTIMATE CARE GROUP LTD,103469
North East Lincolnshire Council,http://statistics.data.gov.uk/id/local-authority/00FC,People,Adult Serv & Hlth Improvement,Improved Health Operational,Equip / Furniture / Materials,Health & Safety Supplies,LA116,2/27/2014,262693,2750,REVENUE,ULTIMATE CARE GROUP LTD,103469
North East Lincolnshire Council,http://statistics.data.gov.uk/id/local-authority/00FC,People,Adult Serv & Hlth Improvement,Improved Health Operational,Equip / Furniture / Materials,Health & Safety Supplies,LA116,2/27/2014,261340,1120,REVENUE,ULTIMATE CARE GROUP LTD,103469
North East Lincolnshire Council,http://statistics.data.gov.uk/id/local-authority/00FC,People,Adult Serv & Hlth Improvement,Improved Health Operational,Equip / Furniture / Materials,Health & Safety Supplies,LA116,2/20/2014,259688,327.05,REVENUE,NORTHGATE VEHICLE HIRE LTD,109432
North East Lincolnshire Council,http://statistics.data.gov.uk/id/local-authority/00FC,People,Adult Serv & Hlth Improvement,Prevention And Wellbeing,Health Authorities,Third Pp - Health Auth,PD101,2/24/2014,261675,11472.25,REVENUE,CARERS FEDERATION LTD,121719
North East Lincolnshire Council,http://statistics.data.gov.uk/id/local-authority/00FC,People,Adult Serv & Hlth Improvement,Prevention And Wellbeing,Private Contractors,Contract Payments,PH105,2/24/2014,261676,1000,REVENUE,MP CONSULTING (UK) LTD,123037
North East Lincolnshire Council,http://statistics.data.gov.uk/id/local-authority/00FC,People,Adult Serv & Hlth Improvement,Prevention And Wellbeing,Private Contractors,Contract Payments,PH105,2/24/2014,261676,269.2,REVENUE,MP CONSULTING (UK) LTD,123037
North East Lincolnshire Council,http://statistics.data.gov.uk/id/local-authority/00FC,People,Adult Serv & Hlth Improvement,Lifestyle & Behave Chge Team,Print Stationery / Gen Off Exp,Publicity,LD105,2/13/2014,260223,296.4,REVENUE,MEDISAVE UK LTD,101716
North East Lincolnshire Council,http://statistics.data.gov.uk/id/local-authority/00FC,People,Adult Serv & Hlth Improvement,Lifestyle & Behave Chge Team,Private Contractors,Third Party Prov - Private,PH101,2/24/2014,261379,709,REVENUE,SCARTHO MEDICAL CENTRE,107570
North East Lincolnshire Council,http://statistics.data.gov.uk/id/local-authority/00FC,People,Adult Serv & Hlth Improvement,Lifestyle & Behave Chge Team,Private Contractors,Third Party Prov - Private,PH101,2/24/2014,261380,488,REVENUE,PELHAM MEDICAL GROUP,104350
North East Lincolnshire Council,http://statistics.data.gov.uk/id/local-authority/00FC,People,Adult Serv & Hlth Improvement,Lifestyle & Behave Chge Team,Private Contractors,Third Party Prov - Private,PH101,2/24/2014,261386,566,REVENUE,DR HOPPER & PARTNERS,103900
North East Lincolnshire Council,http://statistics.data.gov.uk/id/local-authority/00FC,People,Adult Serv & Hlth Improvement,Lifestyle & Behave Chge Team,Private Contractors,Third Party Prov - Private,PH101,2/24/2014,261388,339.5,REVENUE,CLEE MEDICAL CENTRE,105319
North East Lincolnshire Council,http://statistics.data.gov.uk/id/local-authority/00FC,People,Adult Serv & Hlth Improvement,Developing Healthier Comm,Catering,Provisions,LB101,2/17/2014,260075,266,REVENUE,CHARTERED INSTITUTE OF ENVIRONMENTAL HEALTH,119802
North East Lincolnshire Council,http://statistics.data.gov.uk/id/local-authority/00FC,People,Adult Serv & Hlth Improvement,Developing Healthier Comm,Catering,Provisions,LB101,2/10/2014,258527,274.37,REVENUE,NELC FOOD4FITNESS ,102602
North East Lincolnshire Council,http://statistics.data.gov.uk/id/local-authority/00FC,People,Adult Serv & Hlth Improvement,Developing Healthier Comm,Private Contractors,Third Party Prov - Private,PH101,2/17/2014,260656,1005.58,REVENUE,WEST MARSH DEVELOPMENT TRUST,109244
North East Lincolnshire Council,http://statistics.data.gov.uk/id/local-authority/00FC,People,Adult Serv & Hlth Improvement,Developing Healthier Comm,Private Contractors,Third Party Prov - Private,PH101,2/20/2014,261740,1000,REVENUE,N E L AWARD GROUP,124737
North East Lincolnshire Council,http://statistics.data.gov.uk/id/local-authority/00FC,People,Adult Serv & Hlth Improvement,Developing Healthier Comm,Private Contractors,Third Party Prov - Private,PH101,2/20/2014,261717,1000,REVENUE,COOMB BRIGGS PRIMARY SCHOOL,112672
North East Lincolnshire Council,http://statistics.data.gov.uk/id/local-authority/00FC,People,Adult Serv & Hlth Improvement,Developing Healthier Comm,Private Contractors,Third Party Prov - Private,PH101,2/20/2014,261716,516.52,REVENUE,HEALTHY HARDY KIDS,124733
North East Lincolnshire Council,http://statistics.data.gov.uk/id/local-authority/00FC,People,Adult Serv & Hlth Improvement,Developing Healthier Comm,Private Contractors,Third Party Prov - Private,PH101,2/20/2014,261739,1017.85,REVENUE,WYBERS WOOD ACADEMY,107998
North East Lincolnshire Council,http://statistics.data.gov.uk/id/local-authority/00FC,People,Adult Serv & Hlth Improvement,Developing Healthier Comm,Private Contractors,Third Party Prov - Private,PH101,2/17/2014,260659,1000,REVENUE,MISFITS COMMUNITY CIRCUS,112862
North East Lincolnshire Council,http://statistics.data.gov.uk/id/local-authority/00FC,People,Adult Serv & Hlth Improvement,Developing Healthier Comm,Private Contractors,Third Party Prov - Private,PH101,2/17/2014,260637,1000,REVENUE,GET HOOKED ON POSITIVE ACTIVITIES,123262
North East Lincolnshire Council,http://statistics.data.gov.uk/id/local-authority/00FC,People,Adult Serv & Hlth Improvement,Developing Healthier Comm,Private Contractors,Third Party Prov - Private,PH101,2/20/2014,261737,1040,REVENUE,SWIMMING PROVISION,124735
North East Lincolnshire Council,http://statistics.data.gov.uk/id/local-authority/00FC,People,Adult Serv & Hlth Improvement,Developing Healthier Comm,Private Contractors,Third Party Prov - Private,PH101,2/17/2014,260658,1084.6,REVENUE,WEST MARSH TIGERS,118741
North East Lincolnshire Council,http://statistics.data.gov.uk/id/local-authority/00FC,People,Adult Serv & Hlth Improvement,Developing Healthier Comm,Private Contractors,Third Party Prov - Private,PH101,2/17/2014,260657,869.85,REVENUE,GRIMSBY & CLEETHORPES CANOE CLUB,108552
North East Lincolnshire Council,http://statistics.data.gov.uk/id/local-authority/00FC,People,Adult Serv & Hlth Improvement,Developing Healthier Comm,Other Agencies,Fees And Commission All Pay,PJ144,2/13/2014,260191,2492.5,REVENUE,PCC HUMBERSIDE,120398
North East Lincolnshire Council,http://statistics.data.gov.uk/id/local-authority/00FC,People,Adult Serv & Hlth Improvement,Developing Healthier Comm,Private Contractors,Third Party Prov - Private,PH101,2/6/2014,258135,525,REVENUE,REDACTED PERSONAL INFORMATION,REDACTED PERSONAL INFORMATION
North East Lincolnshire Council,http://statistics.data.gov.uk/id/local-authority/00FC,People,Childrens Services,School Access Governor Student,Grants And Subscriptions,Subscriptions,LJ101,2/28/2014,262765,533,REVENUE,LEXISNEXIS UK,101447
North East Lincolnshire Council,http://statistics.data.gov.uk/id/local-authority/00FC,People,Childrens Services,School Access Governor Student,Contract Hire-Operating Leases,Vehicles - Contract Hire,JC101,2/11/2014,259524,REDACTED COMMERCIALLY SENSITIVE,REVENUE,MINICABS CLEETHORPES (LINCS) LTD,102124
North East Lincolnshire Council,http://statistics.data.gov.uk/id/local-authority/00FC,People,Childrens Services,School Access Governor Student,Contract Hire-Operating Leases,Vehicles - Contract Hire,JC101,2/13/2014,259594,REDACTED COMMERCIALLY SENSITIVE,REVENUE,LINKS TAXIS,100546
North East Lincolnshire Council,http://statistics.data.gov.uk/id/local-authority/00FC,People,Childrens Services,School Access Governor Student,Contract Hire-Operating Leases,Vehicles - Contract Hire,JC101,2/17/2014,259945,REDACTED COMMERCIALLY SENSITIVE,REVENUE,LINKS TAXIS,100546
North East Lincolnshire Council,http://statistics.data.gov.uk/id/local-authority/00FC,People,Childrens Services,School Access Governor Student,Contract Hire-Operating Leases,Vehicles - Contract Hire,JC101,2/13/2014,259615,REDACTED COMMERCIALLY SENSITIVE,REVENUE,LINKS TAXIS,100546
North East Lincolnshire Council,http://statistics.data.gov.uk/id/local-authority/00FC,People,Childrens Services,School Access Governor Student,Contract Hire-Operating Leases,Vehicles - Contract Hire,JC101,2/11/2014,259519,REDACTED COMMERCIALLY SENSITIVE,REVENUE,WHEELCHAIR FRIENDLY TAXI SERVICE,101915
North East Lincolnshire Council,http://statistics.data.gov.uk/id/local-authority/00FC,People,Childrens Services,School Access Governor Student,Contract Hire-Operating Leases,Vehicles - Contract Hire,JC101,2/18/2014,260701,REDACTED COMMERCIALLY SENSITIVE,REVENUE,COUNTRY CABS,101999
North East Lincolnshire Council,http://statistics.data.gov.uk/id/local-authority/00FC,People,Childrens Services,School Access Governor Student,Contract Hire-Operating Leases,Vehicles - Contract Hire,JC101,2/13/2014,259577,REDACTED COMMERCIALLY SENSITIVE,REVENUE,COXONS CARS LIMITED,100578
North East Lincolnshire Council,http://statistics.data.gov.uk/id/local-authority/00FC,People,Childrens Services,School Access Governor Student,Contract Hire-Operating Leases,Vehicles - Contract Hire,JC101,2/18/2014,260705,REDACTED COMMERCIALLY SENSITIVE,REVENUE,COUNTRY CABS,101999
North East Lincolnshire Council,http://statistics.data.gov.uk/id/local-authority/00FC,People,Childrens Services,School Access Governor Student,Contract Hire-Operating Leases,Vehicles - Contract Hire,JC101,2/18/2014,260702,REDACTED COMMERCIALLY SENSITIVE,REVENUE,COUNTRY CABS,101999
North East Lincolnshire Council,http://statistics.data.gov.uk/id/local-authority/00FC,People,Childrens Services,School Access Governor Student,Contract Hire-Operating Leases,Vehicles - Contract Hire,JC101,2/24/2014,262209,REDACTED COMMERCIALLY SENSITIVE,REVENUE,LINKS TAXIS,100546
North East Lincolnshire Council,http://statistics.data.gov.uk/id/local-authority/00FC,People,Childrens Services,School Access Governor Student,Contract Hire-Operating Leases,Vehicles - Contract Hire,JC101,2/24/2014,261876,REDACTED COMMERCIALLY SENSITIVE,REVENUE,REVELLS TAXIS (ED/SOC SERV),100559
North East Lincolnshire Council,http://statistics.data.gov.uk/id/local-authority/00FC,People,Childrens Services,School Access Governor Student,Contract Hire-Operating Leases,Vehicles - Contract Hire,JC101,2/17/2014,259944,REDACTED COMMERCIALLY SENSITIVE,REVENUE,LINKS TAXIS,100546
North East Lincolnshire Council,http://statistics.data.gov.uk/id/local-authority/00FC,People,Childrens Services,School Access Governor Student,Contract Hire-Operating Leases,Vehicles - Contract Hire,JC101,2/13/2014,259525,REDACTED COMMERCIALLY SENSITIVE,REVENUE,WHEELCHAIR FRIENDLY TAXI SERVICE,101915
North East Lincolnshire Council,http://statistics.data.gov.uk/id/local-authority/00FC,People,Childrens Services,School Access Governor Student,Contract Hire-Operating Leases,Vehicles - Contract Hire,JC101,2/24/2014,261863,REDACTED COMMERCIALLY SENSITIVE,REVENUE,REVELLS TAXIS (ED/SOC SERV),100559
North East Lincolnshire Council,http://statistics.data.gov.uk/id/local-authority/00FC,People,Childrens Services,School Access Governor Student,Contract Hire-Operating Leases,Vehicles - Contract Hire,JC101,2/13/2014,259631,REDACTED COMMERCIALLY SENSITIVE,REVENUE,COXONS CARS LIMITED,100578
North East Lincolnshire Council,http://statistics.data.gov.uk/id/local-authority/00FC,People,Childrens Services,School Access Governor Student,Contract Hire-Operating Leases,Vehicles - Contract Hire,JC101,2/24/2014,262208,REDACTED COMMERCIALLY SENSITIVE,REVENUE,LINKS TAXIS,100546
North East Lincolnshire Council,http://statistics.data.gov.uk/id/local-authority/00FC,People,Childrens Services,School Access Governor Student,Contract Hire-Operating Leases,Vehicles - Contract Hire,JC101,2/24/2014,261877,REDACTED COMMERCIALLY SENSITIVE,REVENUE,REVELLS TAXIS (ED/SOC SERV),100559
North East Lincolnshire Council,http://statistics.data.gov.uk/id/local-authority/00FC,People,Childrens Services,School Access Governor Student,Contract Hire-Operating Leases,Vehicles - Contract Hire,JC101,2/13/2014,259586,REDACTED COMMERCIALLY SENSITIVE,REVENUE,COXONS CARS LIMITED,100578
North East Lincolnshire Council,http://statistics.data.gov.uk/id/local-authority/00FC,People,Childrens Services,School Access Governor Student,Contract Hire-Operating Leases,Vehicles - Contract Hire,JC101,2/13/2014,259627,REDACTED COMMERCIALLY SENSITIVE,REVENUE,COXONS CARS LIMITED,100578
North East Lincolnshire Council,http://statistics.data.gov.uk/id/local-authority/00FC,People,Childrens Services,School Access Governor Student,Contract Hire-Operating Leases,Vehicles - Contract Hire,JC101,2/24/2014,261864,REDACTED COMMERCIALLY SENSITIVE,REVENUE,REVELLS TAXIS (ED/SOC SERV),100559
North East Lincolnshire Council,http://statistics.data.gov.uk/id/local-authority/00FC,People,Childrens Services,School Access Governor Student,Contract Hire-Operating Leases,Vehicles - Contract Hire,JC101,2/13/2014,259584,REDACTED COMMERCIALLY SENSITIVE,REVENUE,LINKS TAXIS,100546
North East Lincolnshire Council,http://statistics.data.gov.uk/id/local-authority/00FC,People,Childrens Services,School Access Governor Student,Contract Hire-Operating Leases,Vehicles - Contract Hire,JC101,2/13/2014,259604,REDACTED COMMERCIALLY SENSITIVE,REVENUE,COXONS CARS LIMITED,100578
North East Lincolnshire Council,http://statistics.data.gov.uk/id/local-authority/00FC,People,Childrens Services,School Access Governor Student,Contract Hire-Operating Leases,Vehicles - Contract Hire,JC101,2/13/2014,259496,REDACTED COMMERCIALLY SENSITIVE,REVENUE,MINICABS CLEETHORPES (LINCS) LTD,102124
North East Lincolnshire Council,http://statistics.data.gov.uk/id/local-authority/00FC,People,Childrens Services,School Access Governor Student,Contract Hire-Operating Leases,Vehicles - Contract Hire,JC101,2/13/2014,259603,REDACTED COMMERCIALLY SENSITIVE,REVENUE,COXONS CARS LIMITED,100578
North East Lincolnshire Council,http://statistics.data.gov.uk/id/local-authority/00FC,People,Childrens Services,School Access Governor Student,Contract Hire-Operating Leases,Vehicles - Contract Hire,JC101,2/13/2014,259590,REDACTED COMMERCIALLY SENSITIVE,REVENUE,LINKS TAXIS,100546
North East Lincolnshire Council,http://statistics.data.gov.uk/id/local-authority/00FC,People,Childrens Services,School Access Governor Student,Contract Hire-Operating Leases,Vehicles - Contract Hire,JC101,2/13/2014,259609,REDACTED COMMERCIALLY SENSITIVE,REVENUE,LINKS TAXIS,100546
North East Lincolnshire Council,http://statistics.data.gov.uk/id/local-authority/00FC,People,Childrens Services,School Access Governor Student,Contract Hire-Operating Leases,Vehicles - Contract Hire,JC101,2/17/2014,259946,REDACTED COMMERCIALLY SENSITIVE,REVENUE,LINKS TAXIS,100546
North East Lincolnshire Council,http://statistics.data.gov.uk/id/local-authority/00FC,People,Childrens Services,School Access Governor Student,Contract Hire-Operating Leases,Vehicles - Contract Hire,JC101,2/17/2014,259918,REDACTED COMMERCIALLY SENSITIVE,REVENUE,LINKS TAXIS,100546
North East Lincolnshire Council,http://statistics.data.gov.uk/id/local-authority/00FC,People,Childrens Services,School Access Governor Student,Private Contractors,Concessionary Fares,PH104,2/13/2014,259252,REDACTED COMMERCIALLY SENSITIVE,REVENUE,STAGECOACH SERVICES,101404
North East Lincolnshire Council,http://statistics.data.gov.uk/id/local-authority/00FC,People,Childrens Services,School Access Governor Student,Contract Hire-Operating Leases,Vehicles - Contract Hire,JC101,2/17/2014,259724,REDACTED COMMERCIALLY SENSITIVE,REVENUE,AA RADIO CARS LTD,101222
North East Lincolnshire Council,http://statistics.data.gov.uk/id/local-authority/00FC,People,Childrens Services,School Access Governor Student,Contract Hire-Operating Leases,Vehicles - Contract Hire,JC101,2/13/2014,259514,REDACTED COMMERCIALLY SENSITIVE,REVENUE,MINICABS CLEETHORPES (LINCS) LTD,102124
North East Lincolnshire Council,http://statistics.data.gov.uk/id/local-authority/00FC,People,Childrens Services,School Access Governor Student,Contract Hire-Operating Leases,Vehicles - Contract Hire,JC101,2/13/2014,259494,REDACTED COMMERCIALLY SENSITIVE,REVENUE,MINICABS CLEETHORPES (LINCS) LTD,102124
North East Lincolnshire Council,http://statistics.data.gov.uk/id/local-authority/00FC,People,Childrens Services,School Access Governor Student,Contract Hire-Operating Leases,Vehicles - Contract Hire,JC101,2/17/2014,259276,REDACTED COMMERCIALLY SENSITIVE,REVENUE,AMVALE LIMITED,101030
North East Lincolnshire Council,http://statistics.data.gov.uk/id/local-authority/00FC,People,Childrens Services,School Access Governor Student,Contract Hire-Operating Leases,Vehicles - Contract Hire,JC101,2/17/2014,259275,REDACTED COMMERCIALLY SENSITIVE,REVENUE,AMVALE LIMITED,101030
North East Lincolnshire Council,http://statistics.data.gov.uk/id/local-authority/00FC,People,Childrens Services,School Access Governor Student,Contract Hire-Operating Leases,Vehicles - Contract Hire,JC101,2/13/2014,259493,REDACTED COMMERCIALLY SENSITIVE,REVENUE,AMVALE LIMITED,101030
North East Lincolnshire Council,http://statistics.data.gov.uk/id/local-authority/00FC,People,Childrens Services,School Access Governor Student,Contract Hire-Operating Leases,Vehicles - Contract Hire,JC101,2/13/2014,259505,REDACTED COMMERCIALLY SENSITIVE,REVENUE,REDACTED PERSONAL INFORMATION,REDACTED PERSONAL INFORMATION
North East Lincolnshire Council,http://statistics.data.gov.uk/id/local-authority/00FC,People,Childrens Services,School Access Governor Student,Contract Hire-Operating Leases,Vehicles - Contract Hire,JC101,2/13/2014,259523,REDACTED COMMERCIALLY SENSITIVE,REVENUE,SHERWOOD TRAVEL,100868
North East Lincolnshire Council,http://statistics.data.gov.uk/id/local-authority/00FC,People,Childrens Services,School Access Governor Student,Contract Hire-Operating Leases,Vehicles - Contract Hire,JC101,2/24/2014,261861,REDACTED COMMERCIALLY SENSITIVE,REVENUE,FISHERS OF GRIMSBY,111965
North East Lincolnshire Council,http://statistics.data.gov.uk/id/local-authority/00FC,People,Childrens Services,School Access Governor Student,Contract Hire-Operating Leases,Vehicles - Contract Hire,JC101,2/17/2014,259522,REDACTED COMMERCIALLY SENSITIVE,REVENUE,AMVALE LIMITED,101030
North East Lincolnshire Council,http://statistics.data.gov.uk/id/local-authority/00FC,People,Childrens Services,School Access Governor Student,Contract Hire-Operating Leases,Vehicles - Contract Hire,JC101,2/17/2014,259727,REDACTED COMMERCIALLY SENSITIVE,REVENUE,COOPERS TOURS (LINCS) LTD,111878
North East Lincolnshire Council,http://statistics.data.gov.uk/id/local-authority/00FC,People,Childrens Services,School Access Governor Student,Contract Hire-Operating Leases,Vehicles - Contract Hire,JC101,2/13/2014,259483,REDACTED COMMERCIALLY SENSITIVE,REVENUE,AMVALE LIMITED,101030
North East Lincolnshire Council,http://statistics.data.gov.uk/id/local-authority/00FC,People,Childrens Services,School Access Governor Student,Contract Hire-Operating Leases,Vehicles - Contract Hire,JC101,2/13/2014,259611,REDACTED COMMERCIALLY SENSITIVE,REVENUE,LINKS TAXIS,100546
North East Lincolnshire Council,http://statistics.data.gov.uk/id/local-authority/00FC,People,Childrens Services,School Access Governor Student,Contract Hire-Operating Leases,Vehicles - Contract Hire,JC101,2/13/2014,259597,REDACTED COMMERCIALLY SENSITIVE,REVENUE,COXONS CARS LIMITED,100578
North East Lincolnshire Council,http://statistics.data.gov.uk/id/local-authority/00FC,People,Childrens Services,School Access Governor Student,Contract Hire-Operating Leases,Vehicles - Contract Hire,JC101,2/13/2014,259504,REDACTED COMMERCIALLY SENSITIVE,REVENUE,REDACTED PERSONAL INFORMATION,REDACTED PERSONAL INFORMATION
North East Lincolnshire Council,http://statistics.data.gov.uk/id/local-authority/00FC,People,Childrens Services,School Access Governor Student,Contract Hire-Operating Leases,Vehicles - Contract Hire,JC101,2/3/2014,257324,REDACTED COMMERCIALLY SENSITIVE,REVENUE,MILLMAN COACHES,100700
North East Lincolnshire Council,http://statistics.data.gov.uk/id/local-authority/00FC,People,Childrens Services,School Access Governor Student,Contract Hire-Operating Leases,Vehicles - Contract Hire,JC101,2/13/2014,259585,REDACTED COMMERCIALLY SENSITIVE,REVENUE,COXONS CARS LIMITED,100578
North East Lincolnshire Council,http://statistics.data.gov.uk/id/local-authority/00FC,People,Childrens Services,School Access Governor Student,Private Contractors,Concessionary Fares,PH104,2/13/2014,259252,REDACTED COMMERCIALLY SENSITIVE,REVENUE,STAGECOACH SERVICES,101404
North East Lincolnshire Council,http://statistics.data.gov.uk/id/local-authority/00FC,People,Childrens Services,School Access Governor Student,Contract Hire-Operating Leases,Vehicles - Contract Hire,JC101,2/13/2014,259619,REDACTED COMMERCIALLY SENSITIVE,REVENUE,LINKS TAXIS,100546
North East Lincolnshire Council,http://statistics.data.gov.uk/id/local-authority/00FC,People,Childrens Services,School Access Governor Student,Contract Hire-Operating Leases,Vehicles - Contract Hire,JC101,2/13/2014,259608,REDACTED COMMERCIALLY SENSITIVE,REVENUE,LINKS TAXIS,100546
North East Lincolnshire Council,http://statistics.data.gov.uk/id/local-authority/00FC,People,Childrens Services,School Access Governor Student,Contract Hire-Operating Leases,Vehicles - Contract Hire,JC101,2/13/2014,259506,REDACTED COMMERCIALLY SENSITIVE,REVENUE,REDACTED PERSONAL INFORMATION,REDACTED PERSONAL INFORMATION
North East Lincolnshire Council,http://statistics.data.gov.uk/id/local-authority/00FC,People,Childrens Services,School Access Governor Student,Contract Hire-Operating Leases,Vehicles - Contract Hire,JC101,2/13/2014,259616,REDACTED COMMERCIALLY SENSITIVE,REVENUE,LINKS TAXIS,100546
North East Lincolnshire Council,http://statistics.data.gov.uk/id/local-authority/00FC,People,Childrens Services,School Access Governor Student,Contract Hire-Operating Leases,Vehicles - Contract Hire,JC101,2/13/2014,259587,REDACTED COMMERCIALLY SENSITIVE,REVENUE,LINKS TAXIS,100546
North East Lincolnshire Council,http://statistics.data.gov.uk/id/local-authority/00FC,People,Childrens Services,School Access Governor Student,Contract Hire-Operating Leases,Vehicles - Contract Hire,JC101,2/13/2014,259621,REDACTED COMMERCIALLY SENSITIVE,REVENUE,LINKS TAXIS,100546
North East Lincolnshire Council,http://statistics.data.gov.uk/id/local-authority/00FC,People,Childrens Services,School Access Governor Student,Contract Hire-Operating Leases,Vehicles - Contract Hire,JC101,2/17/2014,259730,REDACTED COMMERCIALLY SENSITIVE,REVENUE,AA RADIO CARS LTD,101222
North East Lincolnshire Council,http://statistics.data.gov.uk/id/local-authority/00FC,People,Childrens Services,School Access Governor Student,Contract Hire-Operating Leases,Vehicles - Contract Hire,JC101,2/3/2014,257323,REDACTED COMMERCIALLY SENSITIVE,REVENUE,MILLMAN COACHES,100700
North East Lincolnshire Council,http://statistics.data.gov.uk/id/local-authority/00FC,People,Childrens Services,School Access Governor Student,Contract Hire-Operating Leases,Vehicles - Contract Hire,JC101,2/3/2014,257335,REDACTED COMMERCIALLY SENSITIVE,REVENUE,GRIMSBY MINIBUSES LTD,121524
North East Lincolnshire Council,http://statistics.data.gov.uk/id/local-authority/00FC,People,Childrens Services,School Access Governor Student,Contract Hire-Operating Leases,Vehicles - Contract Hire,JC101,2/3/2014,257487,REDACTED COMMERCIALLY SENSITIVE,REVENUE,GRIMSBY MINIBUSES LTD,121524
North East Lincolnshire Council,http://statistics.data.gov.uk/id/local-authority/00FC,People,Childrens Services,School Access Governor Student,Contract Hire-Operating Leases,Vehicles - Contract Hire,JC101,2/24/2014,261879,REDACTED COMMERCIALLY SENSITIVE,REVENUE,REVELLS TAXIS (ED/SOC SERV),100559
North East Lincolnshire Council,http://statistics.data.gov.uk/id/local-authority/00FC,People,Childrens Services,School Access Governor Student,Contract Hire-Operating Leases,Vehicles - Contract Hire,JC101,2/20/2014,260823,REDACTED COMMERCIALLY SENSITIVE,REVENUE,LINKS TAXIS,100546
North East Lincolnshire Council,http://statistics.data.gov.uk/id/local-authority/00FC,People,Childrens Services,School Access Governor Student,Contract Hire-Operating Leases,Vehicles - Contract Hire,JC101,2/13/2014,259606,REDACTED COMMERCIALLY SENSITIVE,REVENUE,COXONS CARS LIMITED,100578
North East Lincolnshire Council,http://statistics.data.gov.uk/id/local-authority/00FC,People,Childrens Services,School Access Governor Student,Contract Hire-Operating Leases,Vehicles - Contract Hire,JC101,2/13/2014,259605,REDACTED COMMERCIALLY SENSITIVE,REVENUE,COXONS CARS LIMITED,100578
North East Lincolnshire Council,http://statistics.data.gov.uk/id/local-authority/00FC,People,Childrens Services,School Access Governor Student,Contract Hire-Operating Leases,Vehicles - Contract Hire,JC101,2/13/2014,259598,REDACTED COMMERCIALLY SENSITIVE,REVENUE,COXONS CARS LIMITED,100578
North East Lincolnshire Council,http://statistics.data.gov.uk/id/local-authority/00FC,People,Childrens Services,School Access Governor Student,Contract Hire-Operating Leases,Vehicles - Contract Hire,JC101,2/13/2014,259626,REDACTED COMMERCIALLY SENSITIVE,REVENUE,LINKS TAXIS,100546
North East Lincolnshire Council,http://statistics.data.gov.uk/id/local-authority/00FC,People,Childrens Services,School Access Governor Student,Contract Hire-Operating Leases,Vehicles - Contract Hire,JC101,2/17/2014,259942,REDACTED COMMERCIALLY SENSITIVE,REVENUE,LINKS TAXIS,100546
North East Lincolnshire Council,http://statistics.data.gov.uk/id/local-authority/00FC,People,Childrens Services,School Access Governor Student,Contract Hire-Operating Leases,Vehicles - Contract Hire,JC101,2/11/2014,259517,REDACTED COMMERCIALLY SENSITIVE,REVENUE,AMVALE LIMITED,101030
North East Lincolnshire Council,http://statistics.data.gov.uk/id/local-authority/00FC,People,Childrens Services,School Access Governor Student,Contract Hire-Operating Leases,Vehicles - Contract Hire,JC101,2/17/2014,259516,REDACTED COMMERCIALLY SENSITIVE,REVENUE,AMVALE LIMITED,101030
North East Lincolnshire Council,http://statistics.data.gov.uk/id/local-authority/00FC,People,Childrens Services,School Access Governor Student,Contract Hire-Operating Leases,Vehicles - Contract Hire,JC101,2/13/2014,259520,REDACTED COMMERCIALLY SENSITIVE,REVENUE,HANSONS AIRPORT EXPRESS,111879
North East Lincolnshire Council,http://statistics.data.gov.uk/id/local-authority/00FC,People,Childrens Services,School Access Governor Student,Contract Hire-Operating Leases,Vehicles - Contract Hire,JC101,2/3/2014,257325,REDACTED COMMERCIALLY SENSITIVE,REVENUE,CABBYCARS,100847
North East Lincolnshire Council,http://statistics.data.gov.uk/id/local-authority/00FC,People,Childrens Services,School Access Governor Student,Contract Hire-Operating Leases,Vehicles - Contract Hire,JC101,2/13/2014,259502,REDACTED COMMERCIALLY SENSITIVE,REVENUE,THE BUS RUN,101522
North East Lincolnshire Council,http://statistics.data.gov.uk/id/local-authority/00FC,People,Childrens Services,School Access Governor Student,Contract Hire-Operating Leases,Vehicles - Contract Hire,JC101,2/11/2014,259518,REDACTED COMMERCIALLY SENSITIVE,REVENUE,MINICABS CLEETHORPES (LINCS) LTD,102124
North East Lincolnshire Council,http://statistics.data.gov.uk/id/local-authority/00FC,People,Childrens Services,School Access Governor Student,Contract Hire-Operating Leases,Vehicles - Contract Hire,JC101,2/3/2014,257333,REDACTED COMMERCIALLY SENSITIVE,REVENUE,AMVALE LIMITED,101030
North East Lincolnshire Council,http://statistics.data.gov.uk/id/local-authority/00FC,People,Childrens Services,School Access Governor Student,Contract Hire-Operating Leases,Vehicles - Contract Hire,JC101,2/3/2014,257322,REDACTED COMMERCIALLY SENSITIVE,REVENUE,AMVALE LIMITED,101030
North East Lincolnshire Council,http://statistics.data.gov.uk/id/local-authority/00FC,People,Childrens Services,School Access Governor Student,Contract Hire-Operating Leases,Vehicles - Contract Hire,JC101,2/20/2014,260822,REDACTED COMMERCIALLY SENSITIVE,REVENUE,LINKS TAXIS,100546
North East Lincolnshire Council,http://statistics.data.gov.uk/id/local-authority/00FC,People,Childrens Services,School Access Governor Student,Contract Hire-Operating Leases,Vehicles - Contract Hire,JC101,2/24/2014,261880,REDACTED COMMERCIALLY SENSITIVE,REVENUE,REVELLS TAXIS (ED/SOC SERV),100559
North East Lincolnshire Council,http://statistics.data.gov.uk/id/local-authority/00FC,People,Childrens Services,School Access Governor Student,Contract Hire-Operating Leases,Vehicles - Contract Hire,JC101,2/13/2014,259574,REDACTED COMMERCIALLY SENSITIVE,REVENUE,WHEELCHAIR FRIENDLY TAXI SERVICE,101915
North East Lincolnshire Council,http://statistics.data.gov.uk/id/local-authority/00FC,People,Childrens Services,School Access Governor Student,Contract Hire-Operating Leases,Vehicles - Contract Hire,JC101,2/13/2014,259513,REDACTED COMMERCIALLY SENSITIVE,REVENUE,MINICABS CLEETHORPES (LINCS) LTD,102124
North East Lincolnshire Council,http://statistics.data.gov.uk/id/local-authority/00FC,People,Childrens Services,School Access Governor Student,Contract Hire-Operating Leases,Vehicles - Contract Hire,JC101,2/17/2014,259726,REDACTED COMMERCIALLY SENSITIVE,REVENUE,AA RADIO CARS LTD,101222
North East Lincolnshire Council,http://statistics.data.gov.uk/id/local-authority/00FC,People,Childrens Services,School Access Governor Student,Contract Hire-Operating Leases,Vehicles - Contract Hire,JC101,2/13/2014,259592,REDACTED COMMERCIALLY SENSITIVE,REVENUE,LINKS TAXIS,100546
North East Lincolnshire Council,http://statistics.data.gov.uk/id/local-authority/00FC,People,Childrens Services,School Access Governor Student,Contract Hire-Operating Leases,Vehicles - Contract Hire,JC101,2/13/2014,259591,REDACTED COMMERCIALLY SENSITIVE,REVENUE,LINKS TAXIS,100546
North East Lincolnshire Council,http://statistics.data.gov.uk/id/local-authority/00FC,People,Childrens Services,School Access Governor Student,Contract Hire-Operating Leases,Vehicles - Contract Hire,JC101,2/13/2014,259268,REDACTED COMMERCIALLY SENSITIVE,REVENUE,AMVALE LIMITED,101030
North East Lincolnshire Council,http://statistics.data.gov.uk/id/local-authority/00FC,People,Childrens Services,School Access Governor Student,Contract Hire-Operating Leases,Vehicles - Contract Hire,JC101,2/3/2014,257349,REDACTED COMMERCIALLY SENSITIVE,REVENUE,PLACEBOOK MINICABS,122144
North East Lincolnshire Council,http://statistics.data.gov.uk/id/local-authority/00FC,People,Childrens Services,School Access Governor Student,Contract Hire-Operating Leases,Vehicles - Contract Hire,JC101,2/13/2014,259612,REDACTED COMMERCIALLY SENSITIVE,REVENUE,LINKS TAXIS,100546
North East Lincolnshire Council,http://statistics.data.gov.uk/id/local-authority/00FC,People,Childrens Services,School Access Governor Student,Contract Hire-Operating Leases,Vehicles - Contract Hire,JC101,2/17/2014,259697,REDACTED COMMERCIALLY SENSITIVE,REVENUE,LINKS TAXIS,100546
North East Lincolnshire Council,http://statistics.data.gov.uk/id/local-authority/00FC,People,Childrens Services,School Access Governor Student,Contract Hire-Operating Leases,Vehicles - Contract Hire,JC101,2/13/2014,259628,REDACTED COMMERCIALLY SENSITIVE,REVENUE,LINKS TAXIS,100546
North East Lincolnshire Council,http://statistics.data.gov.uk/id/local-authority/00FC,People,Childrens Services,School Access Governor Student,Contract Hire-Operating Leases,Vehicles - Contract Hire,JC101,2/24/2014,261878,REDACTED COMMERCIALLY SENSITIVE,REVENUE,REVELLS TAXIS (ED/SOC SERV),100559
North East Lincolnshire Council,http://statistics.data.gov.uk/id/local-authority/00FC,People,Childrens Services,School Access Governor Student,Contract Hire-Operating Leases,Vehicles - Contract Hire,JC101,2/13/2014,259588,REDACTED COMMERCIALLY SENSITIVE,REVENUE,LINKS TAXIS,100546
North East Lincolnshire Council,http://statistics.data.gov.uk/id/local-authority/00FC,People,Childrens Services,School Access Governor Student,Contract Hire-Operating Leases,Vehicles - Contract Hire,JC101,2/13/2014,259512,REDACTED COMMERCIALLY SENSITIVE,REVENUE,MINICABS CLEETHORPES (LINCS) LTD,102124
North East Lincolnshire Council,http://statistics.data.gov.uk/id/local-authority/00FC,People,Childrens Services,School Access Governor Student,Contract Hire-Operating Leases,Vehicles - Contract Hire,JC101,2/11/2014,259526,REDACTED COMMERCIALLY SENSITIVE,REVENUE,MINICABS CLEETHORPES (LINCS) LTD,102124
North East Lincolnshire Council,http://statistics.data.gov.uk/id/local-authority/00FC,People,Childrens Services,School Access Governor Student,Contract Hire-Operating Leases,Vehicles - Contract Hire,JC101,2/13/2014,259589,REDACTED COMMERCIALLY SENSITIVE,REVENUE,LINKS TAXIS,100546
North East Lincolnshire Council,http://statistics.data.gov.uk/id/local-authority/00FC,People,Childrens Services,School Access Governor Student,Contract Hire-Operating Leases,Vehicles - Contract Hire,JC101,2/13/2014,259602,REDACTED COMMERCIALLY SENSITIVE,REVENUE,COXONS CARS LIMITED,100578
North East Lincolnshire Council,http://statistics.data.gov.uk/id/local-authority/00FC,People,Childrens Services,School Access Governor Student,Contract Hire-Operating Leases,Vehicles - Contract Hire,JC101,2/17/2014,259729,REDACTED COMMERCIALLY SENSITIVE,REVENUE,REDACTED PERSONAL INFORMATION,REDACTED PERSONAL INFORMATION
North East Lincolnshire Council,http://statistics.data.gov.uk/id/local-authority/00FC,People,Childrens Services,School Access Governor Student,Contract Hire-Operating Leases,Vehicles - Contract Hire,JC101,2/11/2014,259524,REDACTED COMMERCIALLY SENSITIVE,REVENUE,MINICABS CLEETHORPES (LINCS) LTD,102124
North East Lincolnshire Council,http://statistics.data.gov.uk/id/local-authority/00FC,People,Childrens Services,School Access Governor Student,Contract Hire-Operating Leases,Vehicles - Contract Hire,JC101,2/13/2014,259492,REDACTED COMMERCIALLY SENSITIVE,REVENUE,AMVALE LIMITED,101030
North East Lincolnshire Council,http://statistics.data.gov.uk/id/local-authority/00FC,People,Childrens Services,School Access Governor Student,Contract Hire-Operating Leases,Vehicles - Contract Hire,JC101,2/13/2014,259491,REDACTED COMMERCIALLY SENSITIVE,REVENUE,AMVALE LIMITED,101030
North East Lincolnshire Council,http://statistics.data.gov.uk/id/local-authority/00FC,People,Childrens Services,School Access Governor Student,Contract Hire-Operating Leases,Vehicles - Contract Hire,JC101,2/13/2014,259617,REDACTED COMMERCIALLY SENSITIVE,REVENUE,LINKS TAXIS,100546
North East Lincolnshire Council,http://statistics.data.gov.uk/id/local-authority/00FC,People,Childrens Services,School Access Governor Student,Contract Hire-Operating Leases,Vehicles - Contract Hire,JC101,2/13/2014,259500,REDACTED COMMERCIALLY SENSITIVE,REVENUE,MINICABS CLEETHORPES (LINCS) LTD,102124
North East Lincolnshire Council,http://statistics.data.gov.uk/id/local-authority/00FC,People,Childrens Services,School Access Governor Student,Contract Hire-Operating Leases,Vehicles - Contract Hire,JC101,2/13/2014,259633,REDACTED COMMERCIALLY SENSITIVE,REVENUE,MINICABS CLEETHORPES (LINCS) LTD,102124
North East Lincolnshire Council,http://statistics.data.gov.uk/id/local-authority/00FC,People,Childrens Services,School Access Governor Student,Contract Hire-Operating Leases,Vehicles - Contract Hire,JC101,2/13/2014,259490,REDACTED COMMERCIALLY SENSITIVE,REVENUE,AMVALE LIMITED,101030
North East Lincolnshire Council,http://statistics.data.gov.uk/id/local-authority/00FC,People,Childrens Services,School Access Governor Student,Contract Hire-Operating Leases,Vehicles - Contract Hire,JC101,2/13/2014,259581,REDACTED COMMERCIALLY SENSITIVE,REVENUE,LINKS TAXIS,100546
North East Lincolnshire Council,http://statistics.data.gov.uk/id/local-authority/00FC,People,Childrens Services,School Access Governor Student,Contract Hire-Operating Leases,Vehicles - Contract Hire,JC101,2/13/2014,259580,REDACTED COMMERCIALLY SENSITIVE,REVENUE,LINKS TAXIS,100546
North East Lincolnshire Council,http://statistics.data.gov.uk/id/local-authority/00FC,People,Childrens Services,School Access Governor Student,Contract Hire-Operating Leases,Vehicles - Contract Hire,JC101,2/17/2014,259274,REDACTED COMMERCIALLY SENSITIVE,REVENUE,REDACTED PERSONAL INFORMATION,REDACTED PERSONAL INFORMATION
North East Lincolnshire Council,http://statistics.data.gov.uk/id/local-authority/00FC,People,Childrens Services,School Access Governor Student,Contract Hire-Operating Leases,Vehicles - Contract Hire,JC101,2/11/2014,259521,REDACTED COMMERCIALLY SENSITIVE,REVENUE,WHEELCHAIR FRIENDLY TAXI SERVICE,101915
North East Lincolnshire Council,http://statistics.data.gov.uk/id/local-authority/00FC,People,Childrens Services,School Access Governor Student,Contract Hire-Operating Leases,Vehicles - Contract Hire,JC101,2/13/2014,259620,REDACTED COMMERCIALLY SENSITIVE,REVENUE,MINICABS CLEETHORPES (LINCS) LTD,102124
North East Lincolnshire Council,http://statistics.data.gov.uk/id/local-authority/00FC,People,Childrens Services,School Access Governor Student,Contract Hire-Operating Leases,Vehicles - Contract Hire,JC101,2/13/2014,259583,REDACTED COMMERCIALLY SENSITIVE,REVENUE,LINKS TAXIS,100546
North East Lincolnshire Council,http://statistics.data.gov.uk/id/local-authority/00FC,People,Childrens Services,School Access Governor Student,Contract Hire-Operating Leases,Vehicles - Contract Hire,JC101,2/13/2014,259489,REDACTED COMMERCIALLY SENSITIVE,REVENUE,AMVALE LIMITED,101030
North East Lincolnshire Council,http://statistics.data.gov.uk/id/local-authority/00FC,People,Childrens Services,School Access Governor Student,Contract Hire-Operating Leases,Vehicles - Contract Hire,JC101,2/13/2014,259488,REDACTED COMMERCIALLY SENSITIVE,REVENUE,AMVALE LIMITED,101030
North East Lincolnshire Council,http://statistics.data.gov.uk/id/local-authority/00FC,People,Childrens Services,School Access Governor Student,Contract Hire-Operating Leases,Vehicles - Contract Hire,JC101,2/13/2014,259486,REDACTED COMMERCIALLY SENSITIVE,REVENUE,AMVALE LIMITED,101030
North East Lincolnshire Council,http://statistics.data.gov.uk/id/local-authority/00FC,People,Childrens Services,School Access Governor Student,Contract Hire-Operating Leases,Vehicles - Contract Hire,JC101,2/13/2014,259485,REDACTED COMMERCIALLY SENSITIVE,REVENUE,AMVALE LIMITED,101030
North East Lincolnshire Council,http://statistics.data.gov.uk/id/local-authority/00FC,People,Childrens Services,School Access Governor Student,Contract Hire-Operating Leases,Vehicles - Contract Hire,JC101,2/13/2014,259579,REDACTED COMMERCIALLY SENSITIVE,REVENUE,LINKS TAXIS,100546
North East Lincolnshire Council,http://statistics.data.gov.uk/id/local-authority/00FC,People,Childrens Services,School Access Governor Student,Contract Hire-Operating Leases,Vehicles - Contract Hire,JC101,2/13/2014,259582,REDACTED COMMERCIALLY SENSITIVE,REVENUE,LINKS TAXIS,100546
North East Lincolnshire Council,http://statistics.data.gov.uk/id/local-authority/00FC,People,Childrens Services,School Access Governor Student,Contract Hire-Operating Leases,Vehicles - Contract Hire,JC101,2/17/2014,259733,REDACTED COMMERCIALLY SENSITIVE,REVENUE,AA RADIO CARS LTD,101222
North East Lincolnshire Council,http://statistics.data.gov.uk/id/local-authority/00FC,People,Childrens Services,School Access Governor Student,Contract Hire-Operating Leases,Vehicles - Contract Hire,JC101,2/13/2014,259593,REDACTED COMMERCIALLY SENSITIVE,REVENUE,LINKS TAXIS,100546
North East Lincolnshire Council,http://statistics.data.gov.uk/id/local-authority/00FC,People,Childrens Services,School Access Governor Student,Contract Hire-Operating Leases,Vehicles - Contract Hire,JC101,2/24/2014,262210,REDACTED COMMERCIALLY SENSITIVE,REVENUE,LINKS TAXIS,100546
North East Lincolnshire Council,http://statistics.data.gov.uk/id/local-authority/00FC,People,Childrens Services,School Access Governor Student,Contract Hire-Operating Leases,Vehicles - Contract Hire,JC101,2/13/2014,259578,REDACTED COMMERCIALLY SENSITIVE,REVENUE,LINKS TAXIS,100546
North East Lincolnshire Council,http://statistics.data.gov.uk/id/local-authority/00FC,People,Childrens Services,School Access Governor Student,Contract Hire-Operating Leases,Vehicles - Contract Hire,JC101,2/18/2014,260809,REDACTED COMMERCIALLY SENSITIVE,REVENUE,LINKS TAXIS,100546
North East Lincolnshire Council,http://statistics.data.gov.uk/id/local-authority/00FC,People,Childrens Services,School Access Governor Student,Contract Hire-Operating Leases,Vehicles - Contract Hire,JC101,2/17/2014,259732,REDACTED COMMERCIALLY SENSITIVE,REVENUE,AA RADIO CARS LTD,101222
North East Lincolnshire Council,http://statistics.data.gov.uk/id/local-authority/00FC,People,Childrens Services,School Access Governor Student,Contract Hire-Operating Leases,Vehicles - Contract Hire,JC101,2/13/2014,259497,REDACTED COMMERCIALLY SENSITIVE,REVENUE,M & J CARS,112068
North East Lincolnshire Council,http://statistics.data.gov.uk/id/local-authority/00FC,People,Childrens Services,School Access Governor Student,Contract Hire-Operating Leases,Vehicles - Contract Hire,JC101,2/17/2014,259919,REDACTED COMMERCIALLY SENSITIVE,REVENUE,LINKS TAXIS,100546
North East Lincolnshire Council,http://statistics.data.gov.uk/id/local-authority/00FC,People,Childrens Services,School Access Governor Student,Contract Hire-Operating Leases,Vehicles - Contract Hire,JC101,2/17/2014,259902,REDACTED COMMERCIALLY SENSITIVE,REVENUE,AA RADIO CARS LTD,101222
North East Lincolnshire Council,http://statistics.data.gov.uk/id/local-authority/00FC,People,Childrens Services,School Access Governor Student,Contract Hire-Operating Leases,Vehicles - Contract Hire,JC101,2/24/2014,262207,REDACTED COMMERCIALLY SENSITIVE,REVENUE,LINKS TAXIS,100546
North East Lincolnshire Council,http://statistics.data.gov.uk/id/local-authority/00FC,People,Childrens Services,School Access Governor Student,Contract Hire-Operating Leases,Vehicles - Contract Hire,JC101,2/13/2014,259618,REDACTED COMMERCIALLY SENSITIVE,REVENUE,LINKS TAXIS,100546
North East Lincolnshire Council,http://statistics.data.gov.uk/id/local-authority/00FC,People,Childrens Services,School Access Governor Student,Contract Hire-Operating Leases,Vehicles - Contract Hire,JC101,2/13/2014,259600,REDACTED COMMERCIALLY SENSITIVE,REVENUE,COXONS CARS LIMITED,100578
North East Lincolnshire Council,http://statistics.data.gov.uk/id/local-authority/00FC,People,Childrens Services,School Access Governor Student,Contributions To Provisions,Contributions - Other,LK103,2/10/2014,211687,392.52,REVENUE,REDACTED PERSONAL INFORMATION,REDACTED PERSONAL INFORMATION
North East Lincolnshire Council,http://statistics.data.gov.uk/id/local-authority/00FC,People,Childrens Services,Strategic Management,Indirect Employee Expenses,Allowances - Employees,EB110,2/13/2014,260179,945,REVENUE,NASUWT G76 GRIMSBY & DISTRICT,107363
North East Lincolnshire Council,http://statistics.data.gov.uk/id/local-authority/00FC,People,Childrens Services,Sen/Inclusion,Direct Employee Expenses,Agency Staff,EA105,2/13/2014,259575,1488.79,REVENUE,IDM CONSULTING,119926
North East Lincolnshire Council,http://statistics.data.gov.uk/id/local-authority/00FC,People,Childrens Services,Sen/Inclusion,Direct Employee Expenses,Agency Staff,EA105,2/27/2014,262528,1103.04,REVENUE,IDM CONSULTING,119926
North East Lincolnshire Council,http://statistics.data.gov.uk/id/local-authority/00FC,People,Childrens Services,Sen/Inclusion,Direct Employee Expenses,Agency Staff,EA105,2/18/2014,260766,4600,REVENUE,KAREN CHESTER,122100
North East Lincolnshire Council,http://statistics.data.gov.uk/id/local-authority/00FC,People,Childrens Services,Sen/Inclusion,Consultancy,Consultancy,PL101,2/17/2014,259637,2100,REVENUE,GLENN ALLGOOD,109255
North East Lincolnshire Council,http://statistics.data.gov.uk/id/local-authority/00FC,People,Childrens Services,Sen/Inclusion,Other Local Authorities,Third Pp - Other Local Auth,PC101,2/27/2014,262524,6832.34,REVENUE,NEW OPTIONS LTD,105590
North East Lincolnshire Council,http://statistics.data.gov.uk/id/local-authority/00FC,People,Childrens Services,Sen/Inclusion,Other Local Authorities,Third Pp - Other Local Auth,PC101,2/27/2014,262525,7651.8,REVENUE,NEW OPTIONS LTD,105590
North East Lincolnshire Council,http://statistics.data.gov.uk/id/local-authority/00FC,People,Childrens Services,Sen/Inclusion,Other Local Authorities,Third Pp - Other Local Auth,PC101,2/13/2014,259576,14167,REVENUE,ASPIREONE CARE LTD,110181
North East Lincolnshire Council,http://statistics.data.gov.uk/id/local-authority/00FC,People,Childrens Services,Sen/Inclusion,Other Local Authorities,Third Pp - Other Local Auth,PC101,2/24/2014,261713,12796,REVENUE,ASPIREONE CARE LTD,110181
North East Lincolnshire Council,http://statistics.data.gov.uk/id/local-authority/00FC,People,Childrens Services,Sen/Inclusion,Other Local Authorities,Third Pp - Other Local Auth,PC101,2/27/2014,262521,REDACTED COMMERCIALLY SENSITIVE,REVENUE,KINGSTON UPON HULL CITY COUNCIL,100541
North East Lincolnshire Council,http://statistics.data.gov.uk/id/local-authority/00FC,People,Childrens Services,Sen/Inclusion,Other Local Authorities,Third Pp - Other Local Auth,PC101,2/18/2014,260765,REDACTED COMMERCIALLY SENSITIVE,REVENUE,KINGSTON UPON HULL CITY COUNCIL,100541
North East Lincolnshire Council,http://statistics.data.gov.uk/id/local-authority/00FC,People,Childrens Services,Sen/Inclusion,Other Local Authorities,Third Pp - Other Local Auth,PC101,2/17/2014,259639,378,REVENUE,DKM ASSESSMENT & VERIFICATION LTD,101643
North East Lincolnshire Council,http://statistics.data.gov.uk/id/local-authority/00FC,People,Childrens Services,Sen/Inclusion,Other Local Authorities,Third Pp - Other Local Auth,PC101,2/13/2014,259573,5415.76,REVENUE,DKM ASSESSMENT & VERIFICATION LTD,101643
North East Lincolnshire Council,http://statistics.data.gov.uk/id/local-authority/00FC,People,Childrens Services,Sen/Inclusion,Other Local Authorities,Third Pp - Other Local Auth,PC101,2/24/2014,260593,3564,REVENUE,LINCOLNSHIRE COUNTY COUNCIL,100389
North East Lincolnshire Council,http://statistics.data.gov.uk/id/local-authority/00FC,People,Childrens Services,Sen/Inclusion,Other Local Authorities,Third Pp - Other Local Auth,PC101,2/13/2014,259567,3047.07,REVENUE,REFLEXION CARE GROUP LIMITED,106975
North East Lincolnshire Council,http://statistics.data.gov.uk/id/local-authority/00FC,People,Childrens Services,Sen/Inclusion,Other Local Authorities,Third Pp - Other Local Auth,PC101,2/24/2014,261904,2752.2,REVENUE,REFLEXION CARE GROUP LIMITED,106975
North East Lincolnshire Council,http://statistics.data.gov.uk/id/local-authority/00FC,People,Childrens Services,Sen/Inclusion,Other Local Authorities,Third Pp - Other Local Auth,PC101,2/18/2014,260767,4374,REVENUE,LINCOLNSHIRE COUNTY COUNCIL,100389
North East Lincolnshire Council,http://statistics.data.gov.uk/id/local-authority/00FC,People,Childrens Services,Sen/Inclusion,Other Local Authorities,Third Pp - Other Local Auth,PC101,2/18/2014,260769,4374,REVENUE,LINCOLNSHIRE COUNTY COUNCIL,100389
North East Lincolnshire Council,http://statistics.data.gov.uk/id/local-authority/00FC,People,Childrens Services,Sen/Inclusion,Private Contractors,Third Party Prov - Private,PH101,2/24/2014,262276,18602.79,REVENUE,ST HELENS COUNCIL,122955
North East Lincolnshire Council,http://statistics.data.gov.uk/id/local-authority/00FC,People,Childrens Services,Sen/Inclusion,Private Contractors,Third Party Prov - Private,PH101,2/13/2014,259553,12842.99,REVENUE,ADVANCED CHILDCARE,119448
North East Lincolnshire Council,http://statistics.data.gov.uk/id/local-authority/00FC,People,Childrens Services,Sen/Inclusion,Private Contractors,Third Party Prov - Private,PH101,2/27/2014,261848,11600.12,REVENUE,ADVANCED CHILDCARE,119448
North East Lincolnshire Council,http://statistics.data.gov.uk/id/local-authority/00FC,People,Childrens Services,Sen/Inclusion,Private Contractors,Third Party Prov - Private,PH101,2/20/2014,260584,21478.66,REVENUE,PHYSIS QUANTUM,118777
North East Lincolnshire Council,http://statistics.data.gov.uk/id/local-authority/00FC,People,Childrens Services,Sen/Inclusion,Private Contractors,Third Party Prov - Private,PH101,2/3/2014,257247,15500,REVENUE,MEADOWS CARE LTD,120773
North East Lincolnshire Council,http://statistics.data.gov.uk/id/local-authority/00FC,People,Childrens Services,Sen/Inclusion,Private Contractors,Third Party Prov - Private,PH101,2/3/2014,256835,1113.27,REVENUE,DKM ASSESSMENT & VERIFICATION LTD,101643
North East Lincolnshire Council,http://statistics.data.gov.uk/id/local-authority/00FC,People,Childrens Services,Sen/Inclusion,Private Contractors,Third Party Prov - Private,PH101,2/13/2014,259568,1484.36,REVENUE,DKM ASSESSMENT & VERIFICATION LTD,101643
North East Lincolnshire Council,http://statistics.data.gov.uk/id/local-authority/00FC,People,Childrens Services,Sen/Inclusion,Private Contractors,Third Party Prov - Private,PH101,2/13/2014,259567,18852.41,REVENUE,REFLEXION CARE GROUP LIMITED,106975
North East Lincolnshire Council,http://statistics.data.gov.uk/id/local-authority/00FC,People,Childrens Services,Sen/Inclusion,Private Contractors,Third Party Prov - Private,PH101,2/24/2014,261904,17028,REVENUE,REFLEXION CARE GROUP LIMITED,106975
North East Lincolnshire Council,http://statistics.data.gov.uk/id/local-authority/00FC,People,Childrens Services,Sen/Inclusion,Private Contractors,Third Party Prov - Private,PH101,2/18/2014,260770,19928.66,REVENUE,TIMEOUT HOMES LTD,110615
North East Lincolnshire Council,http://statistics.data.gov.uk/id/local-authority/00FC,People,Childrens Services,Sen/Inclusion,Private Contractors,Third Party Prov - Private,PH101,2/24/2014,262192,7600.04,REVENUE,KEYS CHILDCARE LTD,122934
North East Lincolnshire Council,http://statistics.data.gov.uk/id/local-authority/00FC,People,Childrens Services,Sen/Inclusion,Private Contractors,Third Party Prov - Private,PH101,2/17/2014,259638,8414.33,REVENUE,KEYS CHILDCARE LTD,122934
North East Lincolnshire Council,http://statistics.data.gov.uk/id/local-authority/00FC,People,Childrens Services,Sen/Inclusion,Private Contractors,Third Party Prov - Private,PH101,2/24/2014,261715,12796,REVENUE,ASPIREONE CARE LTD,110181
North East Lincolnshire Council,http://statistics.data.gov.uk/id/local-authority/00FC,People,Childrens Services,Sen/Inclusion,Private Contractors,Third Party Prov - Private,PH101,2/18/2014,260771,14167,REVENUE,ASPIREONE CARE LTD,110181
North East Lincolnshire Council,http://statistics.data.gov.uk/id/local-authority/00FC,People,Childrens Services,Sen/Inclusion,Private Contractors,Third Party Prov - Private,PH101,2/18/2014,260788,10054,REVENUE,ASPIREONE CARE LTD,110181
North East Lincolnshire Council,http://statistics.data.gov.uk/id/local-authority/00FC,People,Childrens Services,Sen/Inclusion,Private Contractors,Third Party Prov - Private,PH101,2/24/2014,261843,REDACTED COMMERCIALLY SENSITIVE,REVENUE,SERCO SHARED SERVICES CENTRE,101875
North East Lincolnshire Council,http://statistics.data.gov.uk/id/local-authority/00FC,People,Childrens Services,Sen/Inclusion,Contributions To Provisions,Contributions - Other,LK103,2/17/2014,259636,3880,REVENUE,N LINCS & GOOLE HOSPITALS NHS,111074
North East Lincolnshire Council,http://statistics.data.gov.uk/id/local-authority/00FC,People,Childrens Services,Sen/Inclusion,Direct Employee Expenses,Agency Staff,EA105,2/17/2014,259642,3360,REVENUE,FIONA MACAULAY EDUCATION CONSULTANT -SEN,112087
North East Lincolnshire Council,http://statistics.data.gov.uk/id/local-authority/00FC,People,Childrens Services,Sen/Inclusion,Direct Employee Expenses,Agency Staff,EA105,2/10/2014,258570,444.45,REVENUE,MATRIX SCM LTD,108117
North East Lincolnshire Council,http://statistics.data.gov.uk/id/local-authority/00FC,People,Childrens Services,Sen/Inclusion,Direct Employee Expenses,Pay Teachers Supply Cover,EA106,2/20/2014,261611,273.04,REVENUE,MATRIX SCM LTD,108117
North East Lincolnshire Council,http://statistics.data.gov.uk/id/local-authority/00FC,People,Childrens Services,Sen/Inclusion,Equip / Furniture / Materials,Teaching Materials,LA117,2/25/2014,260617,398,REVENUE,ANN ARBOR PUBLISHERS LTD,105547
North East Lincolnshire Council,http://statistics.data.gov.uk/id/local-authority/00FC,People,Childrens Services,Sen/Inclusion,Equip / Furniture / Materials,Teaching Materials,LA117,2/25/2014,260616,615,REVENUE,ANN ARBOR PUBLISHERS LTD,105547
North East Lincolnshire Council,http://statistics.data.gov.uk/id/local-authority/00FC,People,Childrens Services,Sen/Inclusion,Private Contractors,Concessionary Fares,PH104,2/11/2014,258151,REDACTED COMMERCIALLY SENSITIVE,REVENUE,DKM ASSESSMENT & VERIFICATION LTD,101643
North East Lincolnshire Council,http://statistics.data.gov.uk/id/local-authority/00FC,People,Childrens Services,Sen/Inclusion,Private Contractors,Third Party Prov - Private,PH101,2/24/2014,262202,21136.2,REVENUE,PLAYSPORTS,107535
North East Lincolnshire Council,http://statistics.data.gov.uk/id/local-authority/00FC,People,Childrens Services,Sen/Inclusion,Private Contractors,Third Party Prov - Private,PH101,2/10/2014,258538,7638,REVENUE,A4E CONSULT LTD,101656
North East Lincolnshire Council,http://statistics.data.gov.uk/id/local-authority/00FC,People,Childrens Services,Sen/Inclusion,Private Contractors,Third Party Prov - Private,PH101,2/25/2014,261894,798,REVENUE,A4E CONSULT LTD,101656
North East Lincolnshire Council,http://statistics.data.gov.uk/id/local-authority/00FC,People,Childrens Services,Sen/Inclusion,Private Contractors,Third Party Prov - Private,PH101,2/25/2014,261895,513.15,REVENUE,A4E CONSULT LTD,101656
North East Lincolnshire Council,http://statistics.data.gov.uk/id/local-authority/00FC,People,Childrens Services,Sen/Inclusion,Private Contractors,Third Party Prov - Private,PH101,2/24/2014,262203,3404,REVENUE,NORTH EAST LINCS MOTOR PROJECT,101121
North East Lincolnshire Council,http://statistics.data.gov.uk/id/local-authority/00FC,People,Childrens Services,Sen/Inclusion,Private Contractors,Third Party Prov - Private,PH101,2/6/2014,257991,2520,REVENUE,DKM ASSESSMENT & VERIFICATION LTD,101643
North East Lincolnshire Council,http://statistics.data.gov.uk/id/local-authority/00FC,People,Childrens Services,Sen/Inclusion,Private Contractors,Third Party Prov - Private,PH101,2/6/2014,257994,900,REVENUE,DKM ASSESSMENT & VERIFICATION LTD,101643
North East Lincolnshire Council,http://statistics.data.gov.uk/id/local-authority/00FC,People,Childrens Services,Sen/Inclusion,Private Contractors,Third Party Prov - Private,PH101,2/6/2014,257998,900,REVENUE,DKM ASSESSMENT & VERIFICATION LTD,101643
North East Lincolnshire Council,http://statistics.data.gov.uk/id/local-authority/00FC,People,Childrens Services,Sen/Inclusion,Private Contractors,Third Party Prov - Private,PH101,2/6/2014,257995,2520,REVENUE,DKM ASSESSMENT & VERIFICATION LTD,101643
North East Lincolnshire Council,http://statistics.data.gov.uk/id/local-authority/00FC,People,Childrens Services,Sen/Inclusion,Private Contractors,Third Party Prov - Private,PH101,2/6/2014,257987,2520,REVENUE,DKM ASSESSMENT & VERIFICATION LTD,101643
North East Lincolnshire Council,http://statistics.data.gov.uk/id/local-authority/00FC,People,Childrens Services,Sen/Inclusion,Private Contractors,Third Party Prov - Private,PH101,2/6/2014,257988,2520,REVENUE,DKM ASSESSMENT & VERIFICATION LTD,101643
North East Lincolnshire Council,http://statistics.data.gov.uk/id/local-authority/00FC,People,Childrens Services,Sen/Inclusion,Private Contractors,Third Party Prov - Private,PH101,2/6/2014,258141,900,REVENUE,DKM ASSESSMENT & VERIFICATION LTD,101643
North East Lincolnshire Council,http://statistics.data.gov.uk/id/local-authority/00FC,People,Childrens Services,Sen/Inclusion,Private Contractors,Third Party Prov - Private,PH101,2/6/2014,258149,900,REVENUE,DKM ASSESSMENT & VERIFICATION LTD,101643
North East Lincolnshire Council,http://statistics.data.gov.uk/id/local-authority/00FC,People,Childrens Services,Sen/Inclusion,Private Contractors,Third Party Prov - Private,PH101,2/6/2014,258150,350,REVENUE,DKM ASSESSMENT & VERIFICATION LTD,101643
North East Lincolnshire Council,http://statistics.data.gov.uk/id/local-authority/00FC,People,Childrens Services,Sen/Inclusion,Private Contractors,Third Party Prov - Private,PH101,2/6/2014,258152,900,REVENUE,DKM ASSESSMENT & VERIFICATION LTD,101643
North East Lincolnshire Council,http://statistics.data.gov.uk/id/local-authority/00FC,People,Childrens Services,Sen/Inclusion,Private Contractors,Third Party Prov - Private,PH101,2/10/2014,258154,421.2,REVENUE,DKM ASSESSMENT & VERIFICATION LTD,101643
North East Lincolnshire Council,http://statistics.data.gov.uk/id/local-authority/00FC,People,Childrens Services,Sen/Inclusion,Private Contractors,Third Party Prov - Private,PH101,2/11/2014,258138,2520,REVENUE,DKM ASSESSMENT & VERIFICATION LTD,101643
North East Lincolnshire Council,http://statistics.data.gov.uk/id/local-authority/00FC,People,Childrens Services,Sen/Inclusion,Private Contractors,Third Party Prov - Private,PH101,2/11/2014,258139,900,REVENUE,DKM ASSESSMENT & VERIFICATION LTD,101643
North East Lincolnshire Council,http://statistics.data.gov.uk/id/local-authority/00FC,People,Childrens Services,Sen/Inclusion,Private Contractors,Third Party Prov - Private,PH101,2/11/2014,258140,900,REVENUE,DKM ASSESSMENT & VERIFICATION LTD,101643
North East Lincolnshire Council,http://statistics.data.gov.uk/id/local-authority/00FC,People,Childrens Services,Sen/Inclusion,Private Contractors,Third Party Prov - Private,PH101,2/24/2014,261893,7653.2,REVENUE,CPO MEDIA,102186
North East Lincolnshire Council,http://statistics.data.gov.uk/id/local-authority/00FC,People,Childrens Services,Sen/Inclusion,Direct Employee Expenses,Agency Staff,EA105,2/20/2014,260727,1601.4,REVENUE,IRWIN EDUCATION LTD,106910
North East Lincolnshire Council,http://statistics.data.gov.uk/id/local-authority/00FC,People,Childrens Services,Sen/Inclusion,Direct Employee Expenses,Agency Staff,EA105,2/6/2014,256774,1601.4,REVENUE,IRWIN EDUCATION LTD,106910
North East Lincolnshire Council,http://statistics.data.gov.uk/id/local-authority/00FC,People,Childrens Services,Sen/Inclusion,Direct Employee Expenses,Agency Staff,EA105,2/3/2014,257309,1601.4,REVENUE,IRWIN EDUCATION LTD,106910
North East Lincolnshire Council,http://statistics.data.gov.uk/id/local-authority/00FC,People,Childrens Services,Sen/Inclusion,Direct Employee Expenses,Agency Staff,EA105,2/11/2014,259547,1601.4,REVENUE,IRWIN EDUCATION LTD,106910
North East Lincolnshire Council,http://statistics.data.gov.uk/id/local-authority/00FC,People,Childrens Services,Sen/Inclusion,Direct Employee Expenses,Agency Staff,EA105,2/13/2014,259529,1601.4,REVENUE,IRWIN EDUCATION LTD,106910
North East Lincolnshire Council,http://statistics.data.gov.uk/id/local-authority/00FC,People,Childrens Services,Sen/Inclusion,Direct Employee Expenses,Agency Staff,EA105,2/24/2014,261841,565,REVENUE,RANDSTAD EDUCATION LTD,102465
North East Lincolnshire Council,http://statistics.data.gov.uk/id/local-authority/00FC,People,Childrens Services,Sen/Inclusion,Direct Employee Expenses,Agency Staff,EA105,2/28/2014,262492,565,REVENUE,RANDSTAD EDUCATION LTD,102465
North East Lincolnshire Council,http://statistics.data.gov.uk/id/local-authority/00FC,People,Childrens Services,Sen/Inclusion,Direct Employee Expenses,Agency Staff,EA105,2/6/2014,257248,563.75,REVENUE,TEACHING PERSONNEL LTD,101305
North East Lincolnshire Council,http://statistics.data.gov.uk/id/local-authority/00FC,People,Childrens Services,Sen/Inclusion,Direct Employee Expenses,Agency Staff,EA105,2/13/2014,259572,700,REVENUE,TEACHING PERSONNEL LTD,101305
North East Lincolnshire Council,http://statistics.data.gov.uk/id/local-authority/00FC,People,Childrens Services,Sen/Inclusion,Direct Employee Expenses,Agency Staff,EA105,2/13/2014,260220,700,REVENUE,TEACHING PERSONNEL LTD,101305
North East Lincolnshire Council,http://statistics.data.gov.uk/id/local-authority/00FC,People,Childrens Services,Sen/Inclusion,Direct Employee Expenses,Agency Staff,EA105,2/13/2014,259554,563.75,REVENUE,TEACHING PERSONNEL LTD,101305
North East Lincolnshire Council,http://statistics.data.gov.uk/id/local-authority/00FC,People,Childrens Services,Sen/Inclusion,Direct Employee Expenses,Agency Staff,EA105,2/13/2014,260217,563.75,REVENUE,TEACHING PERSONNEL LTD,101305
North East Lincolnshire Council,http://statistics.data.gov.uk/id/local-authority/00FC,People,Childrens Services,Sen/Inclusion,Direct Employee Expenses,Agency Staff,EA105,2/13/2014,260219,563.75,REVENUE,TEACHING PERSONNEL LTD,101305
North East Lincolnshire Council,http://statistics.data.gov.uk/id/local-authority/00FC,People,Childrens Services,Sen/Inclusion,Direct Employee Expenses,Agency Staff,EA105,2/13/2014,260221,563.75,REVENUE,TEACHING PERSONNEL LTD,101305
North East Lincolnshire Council,http://statistics.data.gov.uk/id/local-authority/00FC,People,Childrens Services,Sen/Inclusion,Direct Employee Expenses,Agency Staff,EA105,2/17/2014,259643,563.75,REVENUE,TEACHING PERSONNEL LTD,101305
North East Lincolnshire Council,http://statistics.data.gov.uk/id/local-authority/00FC,People,Childrens Services,Sen/Inclusion,Direct Employee Expenses,Agency Staff,EA105,2/24/2014,261844,563.75,REVENUE,TEACHING PERSONNEL LTD,101305
North East Lincolnshire Council,http://statistics.data.gov.uk/id/local-authority/00FC,People,Childrens Services,Sen/Inclusion,Direct Employee Expenses,Agency Staff,EA105,2/24/2014,261846,569.5,REVENUE,TEACHING PERSONNEL LTD,101305
North East Lincolnshire Council,http://statistics.data.gov.uk/id/local-authority/00FC,People,Childrens Services,Sen/Inclusion,Direct Employee Expenses,Agency Staff,EA105,2/24/2014,261850,700,REVENUE,TEACHING PERSONNEL LTD,101305
North East Lincolnshire Council,http://statistics.data.gov.uk/id/local-authority/00FC,People,Childrens Services,Sen/Inclusion,Direct Employee Expenses,Agency Staff,EA105,2/24/2014,261852,569.5,REVENUE,TEACHING PERSONNEL LTD,101305
North East Lincolnshire Council,http://statistics.data.gov.uk/id/local-authority/00FC,People,Childrens Services,Sen/Inclusion,Direct Employee Expenses,Agency Staff,EA105,2/24/2014,261838,560,REVENUE,TEACHING PERSONNEL LTD,101305
North East Lincolnshire Council,http://statistics.data.gov.uk/id/local-authority/00FC,People,Childrens Services,Sen/Inclusion,Direct Employee Expenses,Agency Staff,EA105,2/24/2014,261840,451,REVENUE,TEACHING PERSONNEL LTD,101305
North East Lincolnshire Council,http://statistics.data.gov.uk/id/local-authority/00FC,People,Childrens Services,Sen/Inclusion,Direct Employee Expenses,Agency Staff,EA105,2/27/2014,261854,563.75,REVENUE,TEACHING PERSONNEL LTD,101305
North East Lincolnshire Council,http://statistics.data.gov.uk/id/local-authority/00FC,People,Childrens Services,Sen/Inclusion,Indirect Employee Expenses,Mandatory Compensation,EB106,2/18/2014,261317,1590,REVENUE,MAUREEN CARMODY,124548
North East Lincolnshire Council,http://statistics.data.gov.uk/id/local-authority/00FC,People,Childrens Services,Sen/Inclusion,Equip / Furniture / Materials,Teaching Materials,LA117,2/11/2014,257955,303.48,REVENUE,YORKSHIRE PURCHASING,100573
North East Lincolnshire Council,http://statistics.data.gov.uk/id/local-authority/00FC,People,Childrens Services,Sen/Inclusion,Private Contractors,Third Party Prov - Private,PH101,2/24/2014,261763,33406.64,REVENUE,THE GRIMSBY INSTITUTE OF FURTHER,102742
North East Lincolnshire Council,http://statistics.data.gov.uk/id/local-authority/00FC,People,Childrens Services,Sen/Inclusion,Private Contractors,Third Party Prov - Private,PH101,2/4/2014,211309,593.68,REVENUE,REDACTED PERSONAL INFORMATION,REDACTED PERSONAL INFORMATION
North East Lincolnshire Council,http://statistics.data.gov.uk/id/local-authority/00FC,People,Childrens Services,Sen/Inclusion,Private Contractors,Third Party Prov - Private,PH101,2/4/2014,211310,593.68,REVENUE,REDACTED PERSONAL INFORMATION,REDACTED PERSONAL INFORMATION
North East Lincolnshire Council,http://statistics.data.gov.uk/id/local-authority/00FC,People,Childrens Services,Sen/Inclusion,Private Contractors,Third Party Prov - Private,PH101,2/4/2014,211311,593.68,REVENUE,REDACTED PERSONAL INFORMATION,REDACTED PERSONAL INFORMATION
North East Lincolnshire Council,http://statistics.data.gov.uk/id/local-authority/00FC,People,Childrens Services,Sen/Inclusion,Private Contractors,Third Party Prov - Private,PH101,2/4/2014,211312,593.68,REVENUE,REDACTED PERSONAL INFORMATION,REDACTED PERSONAL INFORMATION
North East Lincolnshire Council,http://statistics.data.gov.uk/id/local-authority/00FC,People,Childrens Services,Sen/Inclusion,Private Contractors,Third Party Prov - Private,PH101,2/4/2014,211313,593.68,REVENUE,REDACTED PERSONAL INFORMATION,REDACTED PERSONAL INFORMATION
North East Lincolnshire Council,http://statistics.data.gov.uk/id/local-authority/00FC,People,Childrens Services,Sen/Inclusion,Private Contractors,Third Party Prov - Private,PH101,2/4/2014,211314,593.68,REVENUE,REDACTED PERSONAL INFORMATION,REDACTED PERSONAL INFORMATION
North East Lincolnshire Council,http://statistics.data.gov.uk/id/local-authority/00FC,People,Childrens Services,Sen/Inclusion,Private Contractors,Third Party Prov - Private,PH101,2/4/2014,211315,593.68,REVENUE,REDACTED PERSONAL INFORMATION,REDACTED PERSONAL INFORMATION
North East Lincolnshire Council,http://statistics.data.gov.uk/id/local-authority/00FC,People,Childrens Services,Sen/Inclusion,Private Contractors,Third Party Prov - Private,PH101,2/20/2014,214255,593.68,REVENUE,REDACTED PERSONAL INFORMATION,REDACTED PERSONAL INFORMATION
North East Lincolnshire Council,http://statistics.data.gov.uk/id/local-authority/00FC,People,Childrens Services,Sen/Inclusion,Private Contractors,Third Party Prov - Private,PH101,2/24/2014,261915,-1659,REVENUE,DONCASTER DEAF TRUST,101268
North East Lincolnshire Council,http://statistics.data.gov.uk/id/local-authority/00FC,People,Childrens Services,Sen/Inclusion,Private Contractors,Third Party Prov - Private,PH101,2/17/2014,260215,18685.67,REVENUE,PORTLAND COLLEGE,100384
North East Lincolnshire Council,http://statistics.data.gov.uk/id/local-authority/00FC,People,Childrens Services,Sen/Inclusion,Private Contractors,Third Party Prov - Private,PH101,2/17/2014,260212,10989,REVENUE,DONCASTER DEAF TRUST,101268
North East Lincolnshire Council,http://statistics.data.gov.uk/id/local-authority/00FC,People,Childrens Services,Sen/Inclusion,Contributions To Provisions,Contributions - Other,LK103,2/18/2014,260831,567,REVENUE,REYNOLDS PRIMARY ACADEMY,122175
North East Lincolnshire Council,http://statistics.data.gov.uk/id/local-authority/00FC,People,Childrens Services,Sen/Inclusion,Contributions To Provisions,Contributions - Other,LK103,2/20/2014,260870,2466,REVENUE,SCARTHO JUNIOR ACADEMY,108738
North East Lincolnshire Council,http://statistics.data.gov.uk/id/local-authority/00FC,People,Childrens Services,Sen/Inclusion,Contributions To Provisions,Contributions - Other,LK103,2/18/2014,260881,491,REVENUE,ST MARY'S PRIMARY ACADEMY,112851
North East Lincolnshire Council,http://statistics.data.gov.uk/id/local-authority/00FC,People,Childrens Services,Sen/Inclusion,Miscellaneous Expenses,Contingency Reserve,LL123,2/20/2014,261686,86696.58,REVENUE,HUMBERSTON PARK SPECIAL SCHOOL,107911
North East Lincolnshire Council,http://statistics.data.gov.uk/id/local-authority/00FC,People,Childrens Services,Sen/Inclusion,Miscellaneous Expenses,Contingency Reserve,LL123,2/20/2014,261687,121347.67,REVENUE,THE CAMBRIDGE PARK ACADEMY,107472
North East Lincolnshire Council,http://statistics.data.gov.uk/id/local-authority/00FC,People,Childrens Services,Placement & Support,Rents,Rent,GC101,2/27/2014,261887,1020.12,REVENUE,SHORELINE HOUSING PARTNERSHIP LTD,100139
North East Lincolnshire Council,http://statistics.data.gov.uk/id/local-authority/00FC,People,Childrens Services,Placement & Support,Miscellaneous Expenses,Activities - Service Users,LL114,2/3/2014,254716,253.54,REVENUE,LARCO LTD,100542
North East Lincolnshire Council,http://statistics.data.gov.uk/id/local-authority/00FC,People,Childrens Services,Placement & Support,Miscellaneous Expenses,Activities - Service Users,LL114,2/20/2014,261624,680,REVENUE,LINDSEY TREE SERVICES LTD,100981
North East Lincolnshire Council,http://statistics.data.gov.uk/id/local-authority/00FC,People,Childrens Services,Placement & Support,Miscellaneous Expenses,Activities - Service Users,LL114,2/28/2014,216565,-7,REVENUE,REDACTED PERSONAL INFORMATION,REDACTED PERSONAL INFORMATION
North East Lincolnshire Council,http://statistics.data.gov.uk/id/local-authority/00FC,People,Childrens Services,Placement & Support,Miscellaneous Expenses,Activities - Service Users,LL114,2/20/2014,261656,289.57,REVENUE,VULNERABLE YOUNG PEOPLE PROJECT HENEAGE,110637
North East Lincolnshire Council,http://statistics.data.gov.uk/id/local-authority/00FC,People,Childrens Services,Placement & Support,Rents,Rent,GC101,2/20/2014,261617,1048.32,REVENUE,SHORELINE HOUSING PARTNERSHIP LTD,100139
North East Lincolnshire Council,http://statistics.data.gov.uk/id/local-authority/00FC,People,Childrens Services,Placement & Support,Equip / Furniture / Materials,Equipment - Purchase,LA101,2/3/2014,257341,-70.82,REVENUE,ARGOS BUSINESS SOLUTIONS,101032
North East Lincolnshire Council,http://statistics.data.gov.uk/id/local-authority/00FC,People,Childrens Services,Placement & Support,Other Agencies,Additional Cost,PJ114,2/18/2014,260729,450,REVENUE,READY RENT A CAR (GRIMSBY) LTD,100557
North East Lincolnshire Council,http://statistics.data.gov.uk/id/local-authority/00FC,People,Childrens Services,Placement & Support,Other Agencies,Additional Cost,PJ114,2/11/2014,212502,250,REVENUE,REDACTED PERSONAL INFORMATION,REDACTED PERSONAL INFORMATION
North East Lincolnshire Council,http://statistics.data.gov.uk/id/local-authority/00FC,People,Childrens Services,Placement & Support,Other Agencies,Additional Cost,PJ114,2/13/2014,253739,928,REVENUE,REVELLS TAXIS (ED/SOC SERV),100559
North East Lincolnshire Council,http://statistics.data.gov.uk/id/local-authority/00FC,People,Childrens Services,Placement & Support,Other Agencies,Additional Cost,PJ114,2/24/2014,261358,1178,REVENUE,REVELLS TAXIS (ED/SOC SERV),100559
North East Lincolnshire Council,http://statistics.data.gov.uk/id/local-authority/00FC,People,Childrens Services,Placement & Support,Other Agencies,Child Care Payments,PJ104,2/4/2014,211042,634,REVENUE,REDACTED PERSONAL INFORMATION,REDACTED PERSONAL INFORMATION
North East Lincolnshire Council,http://statistics.data.gov.uk/id/local-authority/00FC,People,Childrens Services,Placement & Support,Other Agencies,Child Care Payments,PJ104,2/4/2014,211046,314,REVENUE,REDACTED PERSONAL INFORMATION,REDACTED PERSONAL INFORMATION
North East Lincolnshire Council,http://statistics.data.gov.uk/id/local-authority/00FC,People,Childrens Services,Placement & Support,Other Agencies,Child Care Payments,PJ104,2/4/2014,211047,333,REVENUE,REDACTED PERSONAL INFORMATION,REDACTED PERSONAL INFORMATION
North East Lincolnshire Council,http://statistics.data.gov.uk/id/local-authority/00FC,People,Childrens Services,Placement & Support,Other Agencies,Child Care Payments,PJ104,2/4/2014,210833,301,REVENUE,REDACTED PERSONAL INFORMATION,REDACTED PERSONAL INFORMATION
North East Lincolnshire Council,http://statistics.data.gov.uk/id/local-authority/00FC,People,Childrens Services,Placement & Support,Other Agencies,Child Care Payments,PJ104,2/4/2014,210837,333,REVENUE,REDACTED PERSONAL INFORMATION,REDACTED PERSONAL INFORMATION
North East Lincolnshire Council,http://statistics.data.gov.uk/id/local-authority/00FC,People,Childrens Services,Placement & Support,Other Agencies,Child Care Payments,PJ104,2/4/2014,210840,615,REVENUE,REDACTED PERSONAL INFORMATION,REDACTED PERSONAL INFORMATION
North East Lincolnshire Council,http://statistics.data.gov.uk/id/local-authority/00FC,People,Childrens Services,Placement & Support,Other Agencies,Child Care Payments,PJ104,2/4/2014,210842,1004,REVENUE,REDACTED PERSONAL INFORMATION,REDACTED PERSONAL INFORMATION
North East Lincolnshire Council,http://statistics.data.gov.uk/id/local-authority/00FC,People,Childrens Services,Placement & Support,Other Agencies,Child Care Payments,PJ104,2/4/2014,210845,602,REVENUE,REDACTED PERSONAL INFORMATION,REDACTED PERSONAL INFORMATION
North East Lincolnshire Council,http://statistics.data.gov.uk/id/local-authority/00FC,People,Childrens Services,Placement & Support,Other Agencies,Child Care Payments,PJ104,2/4/2014,210850,860,REVENUE,REDACTED PERSONAL INFORMATION,REDACTED PERSONAL INFORMATION
North East Lincolnshire Council,http://statistics.data.gov.uk/id/local-authority/00FC,People,Childrens Services,Placement & Support,Other Agencies,Child Care Payments,PJ104,2/4/2014,210851,628,REVENUE,REDACTED PERSONAL INFORMATION,REDACTED PERSONAL INFORMATION
North East Lincolnshire Council,http://statistics.data.gov.uk/id/local-authority/00FC,People,Childrens Services,Placement & Support,Other Agencies,Child Care Payments,PJ104,2/4/2014,210853,615,REVENUE,REDACTED PERSONAL INFORMATION,REDACTED PERSONAL INFORMATION
North East Lincolnshire Council,http://statistics.data.gov.uk/id/local-authority/00FC,People,Childrens Services,Placement & Support,Other Agencies,Child Care Payments,PJ104,2/4/2014,210854,301,REVENUE,REDACTED PERSONAL INFORMATION,REDACTED PERSONAL INFORMATION
North East Lincolnshire Council,http://statistics.data.gov.uk/id/local-authority/00FC,People,Childrens Services,Placement & Support,Other Agencies,Child Care Payments,PJ104,2/4/2014,210855,666,REVENUE,REDACTED PERSONAL INFORMATION,REDACTED PERSONAL INFORMATION
North East Lincolnshire Council,http://statistics.data.gov.uk/id/local-authority/00FC,People,Childrens Services,Placement & Support,Other Agencies,Child Care Payments,PJ104,2/4/2014,210864,314,REVENUE,REDACTED PERSONAL INFORMATION,REDACTED PERSONAL INFORMATION
North East Lincolnshire Council,http://statistics.data.gov.uk/id/local-authority/00FC,People,Childrens Services,Placement & Support,Other Agencies,Child Care Payments,PJ104,2/4/2014,210865,357,REVENUE,REDACTED PERSONAL INFORMATION,REDACTED PERSONAL INFORMATION
North East Lincolnshire Council,http://statistics.data.gov.uk/id/local-authority/00FC,People,Childrens Services,Placement & Support,Other Agencies,Child Care Payments,PJ104,2/4/2014,210868,314,REVENUE,REDACTED PERSONAL INFORMATION,REDACTED PERSONAL INFORMATION
North East Lincolnshire Council,http://statistics.data.gov.uk/id/local-authority/00FC,People,Childrens Services,Placement & Support,Other Agencies,Child Care Payments,PJ104,2/4/2014,210869,301,REVENUE,REDACTED PERSONAL INFORMATION,REDACTED PERSONAL INFORMATION
North East Lincolnshire Council,http://statistics.data.gov.uk/id/local-authority/00FC,People,Childrens Services,Placement & Support,Other Agencies,Child Care Payments,PJ104,2/4/2014,210878,1004,REVENUE,REDACTED PERSONAL INFORMATION,REDACTED PERSONAL INFORMATION
North East Lincolnshire Council,http://statistics.data.gov.uk/id/local-authority/00FC,People,Childrens Services,Placement & Support,Other Agencies,Child Care Payments,PJ104,2/4/2014,210882,628,REVENUE,REDACTED PERSONAL INFORMATION,REDACTED PERSONAL INFORMATION
North East Lincolnshire Council,http://statistics.data.gov.uk/id/local-authority/00FC,People,Childrens Services,Placement & Support,Other Agencies,Child Care Payments,PJ104,2/4/2014,210885,628,REVENUE,REDACTED PERSONAL INFORMATION,REDACTED PERSONAL INFORMATION
North East Lincolnshire Council,http://statistics.data.gov.uk/id/local-authority/00FC,People,Childrens Services,Placement & Support,Other Agencies,Child Care Payments,PJ104,2/4/2014,210886,903,REVENUE,REDACTED PERSONAL INFORMATION,REDACTED PERSONAL INFORMATION
North East Lincolnshire Council,http://statistics.data.gov.uk/id/local-authority/00FC,People,Childrens Services,Placement & Support,Other Agencies,Child Care Payments,PJ104,2/4/2014,210888,999,REVENUE,REDACTED PERSONAL INFORMATION,REDACTED PERSONAL INFORMATION
North East Lincolnshire Council,http://statistics.data.gov.uk/id/local-authority/00FC,People,Childrens Services,Placement & Support,Other Agencies,Child Care Payments,PJ104,2/4/2014,210889,628,REVENUE,REDACTED PERSONAL INFORMATION,REDACTED PERSONAL INFORMATION
North East Lincolnshire Council,http://statistics.data.gov.uk/id/local-authority/00FC,People,Childrens Services,Placement & Support,Other Agencies,Child Care Payments,PJ104,2/4/2014,210891,314,REVENUE,REDACTED PERSONAL INFORMATION,REDACTED PERSONAL INFORMATION
North East Lincolnshire Council,http://statistics.data.gov.uk/id/local-authority/00FC,People,Childrens Services,Placement & Support,Other Agencies,Child Care Payments,PJ104,2/4/2014,210893,1023,REVENUE,REDACTED PERSONAL INFORMATION,REDACTED PERSONAL INFORMATION
North East Lincolnshire Council,http://statistics.data.gov.uk/id/local-authority/00FC,People,Childrens Services,Placement & Support,Other Agencies,Child Care Payments,PJ104,2/4/2014,210898,929,REVENUE,REDACTED PERSONAL INFORMATION,REDACTED PERSONAL INFORMATION
North East Lincolnshire Council,http://statistics.data.gov.uk/id/local-authority/00FC,People,Childrens Services,Placement & Support,Other Agencies,Child Care Payments,PJ104,2/4/2014,210901,787,REVENUE,REDACTED PERSONAL INFORMATION,REDACTED PERSONAL INFORMATION
North East Lincolnshire Council,http://statistics.data.gov.uk/id/local-authority/00FC,People,Childrens Services,Placement & Support,Other Agencies,Child Care Payments,PJ104,2/4/2014,210923,666,REVENUE,REDACTED PERSONAL INFORMATION,REDACTED PERSONAL INFORMATION
North East Lincolnshire Council,http://statistics.data.gov.uk/id/local-authority/00FC,People,Childrens Services,Placement & Support,Other Agencies,Child Care Payments,PJ104,2/4/2014,210926,647,REVENUE,REDACTED PERSONAL INFORMATION,REDACTED PERSONAL INFORMATION
North East Lincolnshire Council,http://statistics.data.gov.uk/id/local-authority/00FC,People,Childrens Services,Placement & Support,Other Agencies,Child Care Payments,PJ104,2/4/2014,210930,314,REVENUE,REDACTED PERSONAL INFORMATION,REDACTED PERSONAL INFORMATION
North East Lincolnshire Council,http://statistics.data.gov.uk/id/local-authority/00FC,People,Childrens Services,Placement & Support,Other Agencies,Child Care Payments,PJ104,2/4/2014,210933,615,REVENUE,REDACTED PERSONAL INFORMATION,REDACTED PERSONAL INFORMATION
North East Lincolnshire Council,http://statistics.data.gov.uk/id/local-authority/00FC,People,Childrens Services,Placement & Support,Other Agencies,Child Care Payments,PJ104,2/4/2014,210934,615,REVENUE,REDACTED PERSONAL INFORMATION,REDACTED PERSONAL INFORMATION
North East Lincolnshire Council,http://statistics.data.gov.uk/id/local-authority/00FC,People,Childrens Services,Placement & Support,Other Agencies,Child Care Payments,PJ104,2/4/2014,210939,935,REVENUE,REDACTED PERSONAL INFORMATION,REDACTED PERSONAL INFORMATION
North East Lincolnshire Council,http://statistics.data.gov.uk/id/local-authority/00FC,People,Childrens Services,Placement & Support,Other Agencies,Child Care Payments,PJ104,2/4/2014,210942,559,REVENUE,REDACTED PERSONAL INFORMATION,REDACTED PERSONAL INFORMATION
North East Lincolnshire Council,http://statistics.data.gov.uk/id/local-authority/00FC,People,Childrens Services,Placement & Support,Other Agencies,Child Care Payments,PJ104,2/4/2014,210949,602,REVENUE,REDACTED PERSONAL INFORMATION,REDACTED PERSONAL INFORMATION
North East Lincolnshire Council,http://statistics.data.gov.uk/id/local-authority/00FC,People,Childrens Services,Placement & Support,Other Agencies,Child Care Payments,PJ104,2/4/2014,210954,647,REVENUE,REDACTED PERSONAL INFORMATION,REDACTED PERSONAL INFORMATION
North East Lincolnshire Council,http://statistics.data.gov.uk/id/local-authority/00FC,People,Childrens Services,Placement & Support,Other Agencies,Child Care Payments,PJ104,2/4/2014,210958,628,REVENUE,REDACTED PERSONAL INFORMATION,REDACTED PERSONAL INFORMATION
North East Lincolnshire Council,http://statistics.data.gov.uk/id/local-authority/00FC,People,Childrens Services,Placement & Support,Other Agencies,Child Care Payments,PJ104,2/4/2014,210967,916,REVENUE,REDACTED PERSONAL INFORMATION,REDACTED PERSONAL INFORMATION
North East Lincolnshire Council,http://statistics.data.gov.uk/id/local-authority/00FC,People,Childrens Services,Placement & Support,Other Agencies,Child Care Payments,PJ104,2/4/2014,210980,615,REVENUE,REDACTED PERSONAL INFORMATION,REDACTED PERSONAL INFORMATION
North East Lincolnshire Council,http://statistics.data.gov.uk/id/local-authority/00FC,People,Childrens Services,Placement & Support,Other Agencies,Child Care Payments,PJ104,2/4/2014,210990,1204,REVENUE,REDACTED PERSONAL INFORMATION,REDACTED PERSONAL INFORMATION
North East Lincolnshire Council,http://statistics.data.gov.uk/id/local-authority/00FC,People,Childrens Services,Placement & Support,Other Agencies,Child Care Payments,PJ104,2/4/2014,211006,314,REVENUE,REDACTED PERSONAL INFORMATION,REDACTED PERSONAL INFORMATION
North East Lincolnshire Council,http://statistics.data.gov.uk/id/local-authority/00FC,People,Childrens Services,Placement & Support,Other Agencies,Child Care Payments,PJ104,2/11/2014,212057,301,REVENUE,REDACTED PERSONAL INFORMATION,REDACTED PERSONAL INFORMATION
North East Lincolnshire Council,http://statistics.data.gov.uk/id/local-authority/00FC,People,Childrens Services,Placement & Support,Other Agencies,Child Care Payments,PJ104,2/11/2014,212061,333,REVENUE,REDACTED PERSONAL INFORMATION,REDACTED PERSONAL INFORMATION
North East Lincolnshire Council,http://statistics.data.gov.uk/id/local-authority/00FC,People,Childrens Services,Placement & Support,Other Agencies,Child Care Payments,PJ104,2/11/2014,212064,615,REVENUE,REDACTED PERSONAL INFORMATION,REDACTED PERSONAL INFORMATION
North East Lincolnshire Council,http://statistics.data.gov.uk/id/local-authority/00FC,People,Childrens Services,Placement & Support,Other Agencies,Child Care Payments,PJ104,2/11/2014,212066,1004,REVENUE,REDACTED PERSONAL INFORMATION,REDACTED PERSONAL INFORMATION
North East Lincolnshire Council,http://statistics.data.gov.uk/id/local-authority/00FC,People,Childrens Services,Placement & Support,Other Agencies,Child Care Payments,PJ104,2/11/2014,212069,602,REVENUE,REDACTED PERSONAL INFORMATION,REDACTED PERSONAL INFORMATION
North East Lincolnshire Council,http://statistics.data.gov.uk/id/local-authority/00FC,People,Childrens Services,Placement & Support,Other Agencies,Child Care Payments,PJ104,2/11/2014,212074,602,REVENUE,REDACTED PERSONAL INFORMATION,REDACTED PERSONAL INFORMATION
North East Lincolnshire Council,http://statistics.data.gov.uk/id/local-authority/00FC,People,Childrens Services,Placement & Support,Other Agencies,Child Care Payments,PJ104,2/11/2014,212075,628,REVENUE,REDACTED PERSONAL INFORMATION,REDACTED PERSONAL INFORMATION
North East Lincolnshire Council,http://statistics.data.gov.uk/id/local-authority/00FC,People,Childrens Services,Placement & Support,Other Agencies,Child Care Payments,PJ104,2/11/2014,212077,830,REVENUE,REDACTED PERSONAL INFORMATION,REDACTED PERSONAL INFORMATION
North East Lincolnshire Council,http://statistics.data.gov.uk/id/local-authority/00FC,People,Childrens Services,Placement & Support,Other Agencies,Child Care Payments,PJ104,2/11/2014,212078,301,REVENUE,REDACTED PERSONAL INFORMATION,REDACTED PERSONAL INFORMATION
North East Lincolnshire Council,http://statistics.data.gov.uk/id/local-authority/00FC,People,Childrens Services,Placement & Support,Other Agencies,Child Care Payments,PJ104,2/11/2014,212079,666,REVENUE,REDACTED PERSONAL INFORMATION,REDACTED PERSONAL INFORMATION
North East Lincolnshire Council,http://statistics.data.gov.uk/id/local-authority/00FC,People,Childrens Services,Placement & Support,Other Agencies,Child Care Payments,PJ104,2/11/2014,212088,314,REVENUE,REDACTED PERSONAL INFORMATION,REDACTED PERSONAL INFORMATION
North East Lincolnshire Council,http://statistics.data.gov.uk/id/local-authority/00FC,People,Childrens Services,Placement & Support,Other Agencies,Child Care Payments,PJ104,2/11/2014,212089,357,REVENUE,REDACTED PERSONAL INFORMATION,REDACTED PERSONAL INFORMATION
North East Lincolnshire Council,http://statistics.data.gov.uk/id/local-authority/00FC,People,Childrens Services,Placement & Support,Other Agencies,Child Care Payments,PJ104,2/11/2014,212092,314,REVENUE,REDACTED PERSONAL INFORMATION,REDACTED PERSONAL INFORMATION
North East Lincolnshire Council,http://statistics.data.gov.uk/id/local-authority/00FC,People,Childrens Services,Placement & Support,Other Agencies,Child Care Payments,PJ104,2/11/2014,212093,301,REVENUE,REDACTED PERSONAL INFORMATION,REDACTED PERSONAL INFORMATION
North East Lincolnshire Council,http://statistics.data.gov.uk/id/local-authority/00FC,People,Childrens Services,Placement & Support,Other Agencies,Child Care Payments,PJ104,2/11/2014,212102,1004,REVENUE,REDACTED PERSONAL INFORMATION,REDACTED PERSONAL INFORMATION
North East Lincolnshire Council,http://statistics.data.gov.uk/id/local-authority/00FC,People,Childrens Services,Placement & Support,Other Agencies,Child Care Payments,PJ104,2/11/2014,212106,628,REVENUE,REDACTED PERSONAL INFORMATION,REDACTED PERSONAL INFORMATION
North East Lincolnshire Council,http://statistics.data.gov.uk/id/local-authority/00FC,People,Childrens Services,Placement & Support,Other Agencies,Child Care Payments,PJ104,2/11/2014,212109,628,REVENUE,REDACTED PERSONAL INFORMATION,REDACTED PERSONAL INFORMATION
North East Lincolnshire Council,http://statistics.data.gov.uk/id/local-authority/00FC,People,Childrens Services,Placement & Support,Other Agencies,Child Care Payments,PJ104,2/11/2014,212110,903,REVENUE,REDACTED PERSONAL INFORMATION,REDACTED PERSONAL INFORMATION
North East Lincolnshire Council,http://statistics.data.gov.uk/id/local-authority/00FC,People,Childrens Services,Placement & Support,Other Agencies,Child Care Payments,PJ104,2/11/2014,212112,999,REVENUE,REDACTED PERSONAL INFORMATION,REDACTED PERSONAL INFORMATION
North East Lincolnshire Council,http://statistics.data.gov.uk/id/local-authority/00FC,People,Childrens Services,Placement & Support,Other Agencies,Child Care Payments,PJ104,2/11/2014,212113,628,REVENUE,REDACTED PERSONAL INFORMATION,REDACTED PERSONAL INFORMATION
North East Lincolnshire Council,http://statistics.data.gov.uk/id/local-authority/00FC,People,Childrens Services,Placement & Support,Other Agencies,Child Care Payments,PJ104,2/11/2014,212115,314,REVENUE,REDACTED PERSONAL INFORMATION,REDACTED PERSONAL INFORMATION
North East Lincolnshire Council,http://statistics.data.gov.uk/id/local-authority/00FC,People,Childrens Services,Placement & Support,Other Agencies,Child Care Payments,PJ104,2/11/2014,212117,1023,REVENUE,REDACTED PERSONAL INFORMATION,REDACTED PERSONAL INFORMATION
North East Lincolnshire Council,http://statistics.data.gov.uk/id/local-authority/00FC,People,Childrens Services,Placement & Support,Other Agencies,Child Care Payments,PJ104,2/11/2014,212122,929,REVENUE,REDACTED PERSONAL INFORMATION,REDACTED PERSONAL INFORMATION
North East Lincolnshire Council,http://statistics.data.gov.uk/id/local-authority/00FC,People,Childrens Services,Placement & Support,Other Agencies,Child Care Payments,PJ104,2/11/2014,212125,658,REVENUE,REDACTED PERSONAL INFORMATION,REDACTED PERSONAL INFORMATION
North East Lincolnshire Council,http://statistics.data.gov.uk/id/local-authority/00FC,People,Childrens Services,Placement & Support,Other Agencies,Child Care Payments,PJ104,2/11/2014,212146,666,REVENUE,REDACTED PERSONAL INFORMATION,REDACTED PERSONAL INFORMATION
North East Lincolnshire Council,http://statistics.data.gov.uk/id/local-authority/00FC,People,Childrens Services,Placement & Support,Other Agencies,Child Care Payments,PJ104,2/11/2014,212149,647,REVENUE,REDACTED PERSONAL INFORMATION,REDACTED PERSONAL INFORMATION
North East Lincolnshire Council,http://statistics.data.gov.uk/id/local-authority/00FC,People,Childrens Services,Placement & Support,Other Agencies,Child Care Payments,PJ104,2/11/2014,212153,314,REVENUE,REDACTED PERSONAL INFORMATION,REDACTED PERSONAL INFORMATION
North East Lincolnshire Council,http://statistics.data.gov.uk/id/local-authority/00FC,People,Childrens Services,Placement & Support,Other Agencies,Child Care Payments,PJ104,2/11/2014,212156,615,REVENUE,REDACTED PERSONAL INFORMATION,REDACTED PERSONAL INFORMATION
North East Lincolnshire Council,http://statistics.data.gov.uk/id/local-authority/00FC,People,Childrens Services,Placement & Support,Other Agencies,Child Care Payments,PJ104,2/11/2014,212157,615,REVENUE,REDACTED PERSONAL INFORMATION,REDACTED PERSONAL INFORMATION
North East Lincolnshire Council,http://statistics.data.gov.uk/id/local-authority/00FC,People,Childrens Services,Placement & Support,Other Agencies,Child Care Payments,PJ104,2/11/2014,212161,935,REVENUE,REDACTED PERSONAL INFORMATION,REDACTED PERSONAL INFORMATION
North East Lincolnshire Council,http://statistics.data.gov.uk/id/local-authority/00FC,People,Childrens Services,Placement & Support,Other Agencies,Child Care Payments,PJ104,2/11/2014,212164,602,REVENUE,REDACTED PERSONAL INFORMATION,REDACTED PERSONAL INFORMATION
North East Lincolnshire Council,http://statistics.data.gov.uk/id/local-authority/00FC,People,Childrens Services,Placement & Support,Other Agencies,Child Care Payments,PJ104,2/11/2014,212170,602,REVENUE,REDACTED PERSONAL INFORMATION,REDACTED PERSONAL INFORMATION
North East Lincolnshire Council,http://statistics.data.gov.uk/id/local-authority/00FC,People,Childrens Services,Placement & Support,Other Agencies,Child Care Payments,PJ104,2/11/2014,212175,647,REVENUE,REDACTED PERSONAL INFORMATION,REDACTED PERSONAL INFORMATION
North East Lincolnshire Council,http://statistics.data.gov.uk/id/local-authority/00FC,People,Childrens Services,Placement & Support,Other Agencies,Child Care Payments,PJ104,2/11/2014,212179,628,REVENUE,REDACTED PERSONAL INFORMATION,REDACTED PERSONAL INFORMATION
North East Lincolnshire Council,http://statistics.data.gov.uk/id/local-authority/00FC,People,Childrens Services,Placement & Support,Other Agencies,Child Care Payments,PJ104,2/11/2014,212188,916,REVENUE,REDACTED PERSONAL INFORMATION,REDACTED PERSONAL INFORMATION
North East Lincolnshire Council,http://statistics.data.gov.uk/id/local-authority/00FC,People,Childrens Services,Placement & Support,Other Agencies,Child Care Payments,PJ104,2/11/2014,212200,615,REVENUE,REDACTED PERSONAL INFORMATION,REDACTED PERSONAL INFORMATION
North East Lincolnshire Council,http://statistics.data.gov.uk/id/local-authority/00FC,People,Childrens Services,Placement & Support,Other Agencies,Child Care Payments,PJ104,2/11/2014,212205,258,REVENUE,REDACTED PERSONAL INFORMATION,REDACTED PERSONAL INFORMATION
North East Lincolnshire Council,http://statistics.data.gov.uk/id/local-authority/00FC,People,Childrens Services,Placement & Support,Other Agencies,Child Care Payments,PJ104,2/11/2014,212211,1204,REVENUE,REDACTED PERSONAL INFORMATION,REDACTED PERSONAL INFORMATION
North East Lincolnshire Council,http://statistics.data.gov.uk/id/local-authority/00FC,People,Childrens Services,Placement & Support,Other Agencies,Child Care Payments,PJ104,2/11/2014,212226,314,REVENUE,REDACTED PERSONAL INFORMATION,REDACTED PERSONAL INFORMATION
North East Lincolnshire Council,http://statistics.data.gov.uk/id/local-authority/00FC,People,Childrens Services,Placement & Support,Other Agencies,Child Care Payments,PJ104,2/11/2014,212262,634,REVENUE,REDACTED PERSONAL INFORMATION,REDACTED PERSONAL INFORMATION
North East Lincolnshire Council,http://statistics.data.gov.uk/id/local-authority/00FC,People,Childrens Services,Placement & Support,Other Agencies,Child Care Payments,PJ104,2/11/2014,212266,314,REVENUE,REDACTED PERSONAL INFORMATION,REDACTED PERSONAL INFORMATION
North East Lincolnshire Council,http://statistics.data.gov.uk/id/local-authority/00FC,People,Childrens Services,Placement & Support,Other Agencies,Child Care Payments,PJ104,2/11/2014,212267,333,REVENUE,REDACTED PERSONAL INFORMATION,REDACTED PERSONAL INFORMATION
North East Lincolnshire Council,http://statistics.data.gov.uk/id/local-authority/00FC,People,Childrens Services,Placement & Support,Other Agencies,Child Care Payments,PJ104,2/18/2014,213705,634,REVENUE,REDACTED PERSONAL INFORMATION,REDACTED PERSONAL INFORMATION
North East Lincolnshire Council,http://statistics.data.gov.uk/id/local-authority/00FC,People,Childrens Services,Placement & Support,Other Agencies,Child Care Payments,PJ104,2/18/2014,213709,314,REVENUE,REDACTED PERSONAL INFORMATION,REDACTED PERSONAL INFORMATION
North East Lincolnshire Council,http://statistics.data.gov.uk/id/local-authority/00FC,People,Childrens Services,Placement & Support,Other Agencies,Child Care Payments,PJ104,2/18/2014,213710,333,REVENUE,REDACTED PERSONAL INFORMATION,REDACTED PERSONAL INFORMATION
North East Lincolnshire Council,http://statistics.data.gov.uk/id/local-authority/00FC,People,Childrens Services,Placement & Support,Other Agencies,Child Care Payments,PJ104,2/18/2014,213495,301,REVENUE,REDACTED PERSONAL INFORMATION,REDACTED PERSONAL INFORMATION
North East Lincolnshire Council,http://statistics.data.gov.uk/id/local-authority/00FC,People,Childrens Services,Placement & Support,Other Agencies,Child Care Payments,PJ104,2/18/2014,213499,333,REVENUE,REDACTED PERSONAL INFORMATION,REDACTED PERSONAL INFORMATION
North East Lincolnshire Council,http://statistics.data.gov.uk/id/local-authority/00FC,People,Childrens Services,Placement & Support,Other Agencies,Child Care Payments,PJ104,2/18/2014,213502,615,REVENUE,REDACTED PERSONAL INFORMATION,REDACTED PERSONAL INFORMATION
North East Lincolnshire Council,http://statistics.data.gov.uk/id/local-authority/00FC,People,Childrens Services,Placement & Support,Other Agencies,Child Care Payments,PJ104,2/18/2014,213504,1004,REVENUE,REDACTED PERSONAL INFORMATION,REDACTED PERSONAL INFORMATION
North East Lincolnshire Council,http://statistics.data.gov.uk/id/local-authority/00FC,People,Childrens Services,Placement & Support,Other Agencies,Child Care Payments,PJ104,2/18/2014,213507,473,REVENUE,REDACTED PERSONAL INFORMATION,REDACTED PERSONAL INFORMATION
North East Lincolnshire Council,http://statistics.data.gov.uk/id/local-authority/00FC,People,Childrens Services,Placement & Support,Other Agencies,Child Care Payments,PJ104,2/18/2014,213513,717.71,REVENUE,REDACTED PERSONAL INFORMATION,REDACTED PERSONAL INFORMATION
North East Lincolnshire Council,http://statistics.data.gov.uk/id/local-authority/00FC,People,Childrens Services,Placement & Support,Other Agencies,Child Care Payments,PJ104,2/18/2014,213515,916,REVENUE,REDACTED PERSONAL INFORMATION,REDACTED PERSONAL INFORMATION
North East Lincolnshire Council,http://statistics.data.gov.uk/id/local-authority/00FC,People,Childrens Services,Placement & Support,Other Agencies,Child Care Payments,PJ104,2/18/2014,213516,301,REVENUE,REDACTED PERSONAL INFORMATION,REDACTED PERSONAL INFORMATION
North East Lincolnshire Council,http://statistics.data.gov.uk/id/local-authority/00FC,People,Childrens Services,Placement & Support,Other Agencies,Child Care Payments,PJ104,2/18/2014,213517,666,REVENUE,REDACTED PERSONAL INFORMATION,REDACTED PERSONAL INFORMATION
North East Lincolnshire Council,http://statistics.data.gov.uk/id/local-authority/00FC,People,Childrens Services,Placement & Support,Other Agencies,Child Care Payments,PJ104,2/18/2014,213526,314,REVENUE,REDACTED PERSONAL INFORMATION,REDACTED PERSONAL INFORMATION
North East Lincolnshire Council,http://statistics.data.gov.uk/id/local-authority/00FC,People,Childrens Services,Placement & Support,Other Agencies,Child Care Payments,PJ104,2/18/2014,213527,357,REVENUE,REDACTED PERSONAL INFORMATION,REDACTED PERSONAL INFORMATION
North East Lincolnshire Council,http://statistics.data.gov.uk/id/local-authority/00FC,People,Childrens Services,Placement & Support,Other Agencies,Child Care Payments,PJ104,2/18/2014,213720,258,REVENUE,REDACTED PERSONAL INFORMATION,REDACTED PERSONAL INFORMATION
North East Lincolnshire Council,http://statistics.data.gov.uk/id/local-authority/00FC,People,Childrens Services,Placement & Support,Other Agencies,Child Care Payments,PJ104,2/18/2014,213530,314,REVENUE,REDACTED PERSONAL INFORMATION,REDACTED PERSONAL INFORMATION
North East Lincolnshire Council,http://statistics.data.gov.uk/id/local-authority/00FC,People,Childrens Services,Placement & Support,Other Agencies,Child Care Payments,PJ104,2/18/2014,213531,301,REVENUE,REDACTED PERSONAL INFORMATION,REDACTED PERSONAL INFORMATION
North East Lincolnshire Council,http://statistics.data.gov.uk/id/local-authority/00FC,People,Childrens Services,Placement & Support,Other Agencies,Child Care Payments,PJ104,2/18/2014,213540,1004,REVENUE,REDACTED PERSONAL INFORMATION,REDACTED PERSONAL INFORMATION
North East Lincolnshire Council,http://statistics.data.gov.uk/id/local-authority/00FC,People,Childrens Services,Placement & Support,Other Agencies,Child Care Payments,PJ104,2/18/2014,213544,628,REVENUE,REDACTED PERSONAL INFORMATION,REDACTED PERSONAL INFORMATION
North East Lincolnshire Council,http://statistics.data.gov.uk/id/local-authority/00FC,People,Childrens Services,Placement & Support,Other Agencies,Child Care Payments,PJ104,2/18/2014,213547,628,REVENUE,REDACTED PERSONAL INFORMATION,REDACTED PERSONAL INFORMATION
North East Lincolnshire Council,http://statistics.data.gov.uk/id/local-authority/00FC,People,Childrens Services,Placement & Support,Other Agencies,Child Care Payments,PJ104,2/18/2014,213548,903,REVENUE,REDACTED PERSONAL INFORMATION,REDACTED PERSONAL INFORMATION
North East Lincolnshire Council,http://statistics.data.gov.uk/id/local-authority/00FC,People,Childrens Services,Placement & Support,Other Agencies,Child Care Payments,PJ104,2/18/2014,213550,999,REVENUE,REDACTED PERSONAL INFORMATION,REDACTED PERSONAL INFORMATION
North East Lincolnshire Council,http://statistics.data.gov.uk/id/local-authority/00FC,People,Childrens Services,Placement & Support,Other Agencies,Child Care Payments,PJ104,2/18/2014,213551,628,REVENUE,REDACTED PERSONAL INFORMATION,REDACTED PERSONAL INFORMATION
North East Lincolnshire Council,http://statistics.data.gov.uk/id/local-authority/00FC,People,Childrens Services,Placement & Support,Other Agencies,Child Care Payments,PJ104,2/18/2014,213553,314,REVENUE,REDACTED PERSONAL INFORMATION,REDACTED PERSONAL INFORMATION
North East Lincolnshire Council,http://statistics.data.gov.uk/id/local-authority/00FC,People,Childrens Services,Placement & Support,Other Agencies,Child Care Payments,PJ104,2/18/2014,213555,1023,REVENUE,REDACTED PERSONAL INFORMATION,REDACTED PERSONAL INFORMATION
North East Lincolnshire Council,http://statistics.data.gov.uk/id/local-authority/00FC,People,Childrens Services,Placement & Support,Other Agencies,Child Care Payments,PJ104,2/18/2014,213560,929,REVENUE,REDACTED PERSONAL INFORMATION,REDACTED PERSONAL INFORMATION
North East Lincolnshire Council,http://statistics.data.gov.uk/id/local-authority/00FC,People,Childrens Services,Placement & Support,Other Agencies,Child Care Payments,PJ104,2/18/2014,213563,443,REVENUE,REDACTED PERSONAL INFORMATION,REDACTED PERSONAL INFORMATION
North East Lincolnshire Council,http://statistics.data.gov.uk/id/local-authority/00FC,People,Childrens Services,Placement & Support,Other Agencies,Child Care Payments,PJ104,2/18/2014,213584,666,REVENUE,REDACTED PERSONAL INFORMATION,REDACTED PERSONAL INFORMATION
North East Lincolnshire Council,http://statistics.data.gov.uk/id/local-authority/00FC,People,Childrens Services,Placement & Support,Other Agencies,Child Care Payments,PJ104,2/18/2014,213587,647,REVENUE,REDACTED PERSONAL INFORMATION,REDACTED PERSONAL INFORMATION
North East Lincolnshire Council,http://statistics.data.gov.uk/id/local-authority/00FC,People,Childrens Services,Placement & Support,Other Agencies,Child Care Payments,PJ104,2/18/2014,213591,314,REVENUE,REDACTED PERSONAL INFORMATION,REDACTED PERSONAL INFORMATION
North East Lincolnshire Council,http://statistics.data.gov.uk/id/local-authority/00FC,People,Childrens Services,Placement & Support,Other Agencies,Child Care Payments,PJ104,2/18/2014,213594,615,REVENUE,REDACTED PERSONAL INFORMATION,REDACTED PERSONAL INFORMATION
North East Lincolnshire Council,http://statistics.data.gov.uk/id/local-authority/00FC,People,Childrens Services,Placement & Support,Other Agencies,Child Care Payments,PJ104,2/18/2014,213595,615,REVENUE,REDACTED PERSONAL INFORMATION,REDACTED PERSONAL INFORMATION
North East Lincolnshire Council,http://statistics.data.gov.uk/id/local-authority/00FC,People,Childrens Services,Placement & Support,Other Agencies,Child Care Payments,PJ104,2/18/2014,213599,935,REVENUE,REDACTED PERSONAL INFORMATION,REDACTED PERSONAL INFORMATION
North East Lincolnshire Council,http://statistics.data.gov.uk/id/local-authority/00FC,People,Childrens Services,Placement & Support,Other Agencies,Child Care Payments,PJ104,2/18/2014,213602,602,REVENUE,REDACTED PERSONAL INFORMATION,REDACTED PERSONAL INFORMATION
North East Lincolnshire Council,http://statistics.data.gov.uk/id/local-authority/00FC,People,Childrens Services,Placement & Support,Other Agencies,Child Care Payments,PJ104,2/18/2014,213609,602,REVENUE,REDACTED PERSONAL INFORMATION,REDACTED PERSONAL INFORMATION
North East Lincolnshire Council,http://statistics.data.gov.uk/id/local-authority/00FC,People,Childrens Services,Placement & Support,Other Agencies,Child Care Payments,PJ104,2/18/2014,213615,647,REVENUE,REDACTED PERSONAL INFORMATION,REDACTED PERSONAL INFORMATION
North East Lincolnshire Council,http://statistics.data.gov.uk/id/local-authority/00FC,People,Childrens Services,Placement & Support,Other Agencies,Child Care Payments,PJ104,2/18/2014,213619,628,REVENUE,REDACTED PERSONAL INFORMATION,REDACTED PERSONAL INFORMATION
North East Lincolnshire Council,http://statistics.data.gov.uk/id/local-authority/00FC,People,Childrens Services,Placement & Support,Other Agencies,Child Care Payments,PJ104,2/18/2014,213629,916,REVENUE,REDACTED PERSONAL INFORMATION,REDACTED PERSONAL INFORMATION
North East Lincolnshire Council,http://statistics.data.gov.uk/id/local-authority/00FC,People,Childrens Services,Placement & Support,Other Agencies,Child Care Payments,PJ104,2/18/2014,213643,615,REVENUE,REDACTED PERSONAL INFORMATION,REDACTED PERSONAL INFORMATION
North East Lincolnshire Council,http://statistics.data.gov.uk/id/local-authority/00FC,People,Childrens Services,Placement & Support,Other Agencies,Child Care Payments,PJ104,2/18/2014,213653,1204,REVENUE,REDACTED PERSONAL INFORMATION,REDACTED PERSONAL INFORMATION
North East Lincolnshire Council,http://statistics.data.gov.uk/id/local-authority/00FC,People,Childrens Services,Placement & Support,Other Agencies,Child Care Payments,PJ104,2/18/2014,213668,314,REVENUE,REDACTED PERSONAL INFORMATION,REDACTED PERSONAL INFORMATION
North East Lincolnshire Council,http://statistics.data.gov.uk/id/local-authority/00FC,People,Childrens Services,Placement & Support,Other Agencies,Child Care Payments,PJ104,2/25/2014,215777,306.57,REVENUE,REDACTED PERSONAL INFORMATION,REDACTED PERSONAL INFORMATION
North East Lincolnshire Council,http://statistics.data.gov.uk/id/local-authority/00FC,People,Childrens Services,Placement & Support,Other Agencies,Child Care Payments,PJ104,2/25/2014,215781,333,REVENUE,REDACTED PERSONAL INFORMATION,REDACTED PERSONAL INFORMATION
North East Lincolnshire Council,http://statistics.data.gov.uk/id/local-authority/00FC,People,Childrens Services,Placement & Support,Other Agencies,Child Care Payments,PJ104,2/25/2014,215784,615,REVENUE,REDACTED PERSONAL INFORMATION,REDACTED PERSONAL INFORMATION
North East Lincolnshire Council,http://statistics.data.gov.uk/id/local-authority/00FC,People,Childrens Services,Placement & Support,Other Agencies,Child Care Payments,PJ104,2/25/2014,215785,1004,REVENUE,REDACTED PERSONAL INFORMATION,REDACTED PERSONAL INFORMATION
North East Lincolnshire Council,http://statistics.data.gov.uk/id/local-authority/00FC,People,Childrens Services,Placement & Support,Other Agencies,Child Care Payments,PJ104,2/25/2014,215788,301,REVENUE,REDACTED PERSONAL INFORMATION,REDACTED PERSONAL INFORMATION
North East Lincolnshire Council,http://statistics.data.gov.uk/id/local-authority/00FC,People,Childrens Services,Placement & Support,Other Agencies,Child Care Payments,PJ104,2/25/2014,215794,628,REVENUE,REDACTED PERSONAL INFORMATION,REDACTED PERSONAL INFORMATION
North East Lincolnshire Council,http://statistics.data.gov.uk/id/local-authority/00FC,People,Childrens Services,Placement & Support,Other Agencies,Child Care Payments,PJ104,2/25/2014,215796,916,REVENUE,REDACTED PERSONAL INFORMATION,REDACTED PERSONAL INFORMATION
North East Lincolnshire Council,http://statistics.data.gov.uk/id/local-authority/00FC,People,Childrens Services,Placement & Support,Other Agencies,Child Care Payments,PJ104,2/25/2014,215797,301,REVENUE,REDACTED PERSONAL INFORMATION,REDACTED PERSONAL INFORMATION
North East Lincolnshire Council,http://statistics.data.gov.uk/id/local-authority/00FC,People,Childrens Services,Placement & Support,Other Agencies,Child Care Payments,PJ104,2/25/2014,215798,666,REVENUE,REDACTED PERSONAL INFORMATION,REDACTED PERSONAL INFORMATION
North East Lincolnshire Council,http://statistics.data.gov.uk/id/local-authority/00FC,People,Childrens Services,Placement & Support,Other Agencies,Child Care Payments,PJ104,2/25/2014,215807,493.43,REVENUE,REDACTED PERSONAL INFORMATION,REDACTED PERSONAL INFORMATION
North East Lincolnshire Council,http://statistics.data.gov.uk/id/local-authority/00FC,People,Childrens Services,Placement & Support,Other Agencies,Child Care Payments,PJ104,2/25/2014,215808,357,REVENUE,REDACTED PERSONAL INFORMATION,REDACTED PERSONAL INFORMATION
North East Lincolnshire Council,http://statistics.data.gov.uk/id/local-authority/00FC,People,Childrens Services,Placement & Support,Other Agencies,Child Care Payments,PJ104,2/25/2014,215811,314,REVENUE,REDACTED PERSONAL INFORMATION,REDACTED PERSONAL INFORMATION
North East Lincolnshire Council,http://statistics.data.gov.uk/id/local-authority/00FC,People,Childrens Services,Placement & Support,Other Agencies,Child Care Payments,PJ104,2/25/2014,215812,301,REVENUE,REDACTED PERSONAL INFORMATION,REDACTED PERSONAL INFORMATION
North East Lincolnshire Council,http://statistics.data.gov.uk/id/local-authority/00FC,People,Childrens Services,Placement & Support,Other Agencies,Child Care Payments,PJ104,2/25/2014,215821,1004,REVENUE,REDACTED PERSONAL INFORMATION,REDACTED PERSONAL INFORMATION
North East Lincolnshire Council,http://statistics.data.gov.uk/id/local-authority/00FC,People,Childrens Services,Placement & Support,Other Agencies,Child Care Payments,PJ104,2/25/2014,215826,628,REVENUE,REDACTED PERSONAL INFORMATION,REDACTED PERSONAL INFORMATION
North East Lincolnshire Council,http://statistics.data.gov.uk/id/local-authority/00FC,People,Childrens Services,Placement & Support,Other Agencies,Child Care Payments,PJ104,2/25/2014,215829,628,REVENUE,REDACTED PERSONAL INFORMATION,REDACTED PERSONAL INFORMATION
North East Lincolnshire Council,http://statistics.data.gov.uk/id/local-authority/00FC,People,Childrens Services,Placement & Support,Other Agencies,Child Care Payments,PJ104,2/25/2014,215830,903,REVENUE,REDACTED PERSONAL INFORMATION,REDACTED PERSONAL INFORMATION
North East Lincolnshire Council,http://statistics.data.gov.uk/id/local-authority/00FC,People,Childrens Services,Placement & Support,Other Agencies,Child Care Payments,PJ104,2/25/2014,215832,1012.71,REVENUE,REDACTED PERSONAL INFORMATION,REDACTED PERSONAL INFORMATION
North East Lincolnshire Council,http://statistics.data.gov.uk/id/local-authority/00FC,People,Childrens Services,Placement & Support,Other Agencies,Child Care Payments,PJ104,2/25/2014,215833,628,REVENUE,REDACTED PERSONAL INFORMATION,REDACTED PERSONAL INFORMATION
North East Lincolnshire Council,http://statistics.data.gov.uk/id/local-authority/00FC,People,Childrens Services,Placement & Support,Other Agencies,Child Care Payments,PJ104,2/25/2014,215835,314,REVENUE,REDACTED PERSONAL INFORMATION,REDACTED PERSONAL INFORMATION
North East Lincolnshire Council,http://statistics.data.gov.uk/id/local-authority/00FC,People,Childrens Services,Placement & Support,Other Agencies,Child Care Payments,PJ104,2/25/2014,215837,1023,REVENUE,REDACTED PERSONAL INFORMATION,REDACTED PERSONAL INFORMATION
North East Lincolnshire Council,http://statistics.data.gov.uk/id/local-authority/00FC,People,Childrens Services,Placement & Support,Other Agencies,Child Care Payments,PJ104,2/25/2014,215842,929,REVENUE,REDACTED PERSONAL INFORMATION,REDACTED PERSONAL INFORMATION
North East Lincolnshire Council,http://statistics.data.gov.uk/id/local-authority/00FC,People,Childrens Services,Placement & Support,Other Agencies,Child Care Payments,PJ104,2/25/2014,215845,357,REVENUE,REDACTED PERSONAL INFORMATION,REDACTED PERSONAL INFORMATION
North East Lincolnshire Council,http://statistics.data.gov.uk/id/local-authority/00FC,People,Childrens Services,Placement & Support,Other Agencies,Child Care Payments,PJ104,2/25/2014,215867,666,REVENUE,REDACTED PERSONAL INFORMATION,REDACTED PERSONAL INFORMATION
North East Lincolnshire Council,http://statistics.data.gov.uk/id/local-authority/00FC,People,Childrens Services,Placement & Support,Other Agencies,Child Care Payments,PJ104,2/25/2014,215870,647,REVENUE,REDACTED PERSONAL INFORMATION,REDACTED PERSONAL INFORMATION
North East Lincolnshire Council,http://statistics.data.gov.uk/id/local-authority/00FC,People,Childrens Services,Placement & Support,Other Agencies,Child Care Payments,PJ104,2/25/2014,215874,314,REVENUE,REDACTED PERSONAL INFORMATION,REDACTED PERSONAL INFORMATION
North East Lincolnshire Council,http://statistics.data.gov.uk/id/local-authority/00FC,People,Childrens Services,Placement & Support,Other Agencies,Child Care Payments,PJ104,2/25/2014,215877,615,REVENUE,REDACTED PERSONAL INFORMATION,REDACTED PERSONAL INFORMATION
North East Lincolnshire Council,http://statistics.data.gov.uk/id/local-authority/00FC,People,Childrens Services,Placement & Support,Other Agencies,Child Care Payments,PJ104,2/25/2014,215878,615,REVENUE,REDACTED PERSONAL INFORMATION,REDACTED PERSONAL INFORMATION
North East Lincolnshire Council,http://statistics.data.gov.uk/id/local-authority/00FC,People,Childrens Services,Placement & Support,Other Agencies,Child Care Payments,PJ104,2/25/2014,215882,935,REVENUE,REDACTED PERSONAL INFORMATION,REDACTED PERSONAL INFORMATION
North East Lincolnshire Council,http://statistics.data.gov.uk/id/local-authority/00FC,People,Childrens Services,Placement & Support,Other Agencies,Child Care Payments,PJ104,2/25/2014,215885,602,REVENUE,REDACTED PERSONAL INFORMATION,REDACTED PERSONAL INFORMATION
North East Lincolnshire Council,http://statistics.data.gov.uk/id/local-authority/00FC,People,Childrens Services,Placement & Support,Other Agencies,Child Care Payments,PJ104,2/25/2014,215891,602,REVENUE,REDACTED PERSONAL INFORMATION,REDACTED PERSONAL INFORMATION
North East Lincolnshire Council,http://statistics.data.gov.uk/id/local-authority/00FC,People,Childrens Services,Placement & Support,Other Agencies,Child Care Payments,PJ104,2/25/2014,215896,647,REVENUE,REDACTED PERSONAL INFORMATION,REDACTED PERSONAL INFORMATION
North East Lincolnshire Council,http://statistics.data.gov.uk/id/local-authority/00FC,People,Childrens Services,Placement & Support,Other Agencies,Child Care Payments,PJ104,2/25/2014,215901,628,REVENUE,REDACTED PERSONAL INFORMATION,REDACTED PERSONAL INFORMATION
North East Lincolnshire Council,http://statistics.data.gov.uk/id/local-authority/00FC,People,Childrens Services,Placement & Support,Other Agencies,Child Care Payments,PJ104,2/25/2014,215911,916,REVENUE,REDACTED PERSONAL INFORMATION,REDACTED PERSONAL INFORMATION
North East Lincolnshire Council,http://statistics.data.gov.uk/id/local-authority/00FC,People,Childrens Services,Placement & Support,Other Agencies,Child Care Payments,PJ104,2/25/2014,215923,615,REVENUE,REDACTED PERSONAL INFORMATION,REDACTED PERSONAL INFORMATION
